Workbook

Sheet BOM
B2: NOM PRODUIT | L2: Date de MAJ | P2: Resp. article ach | R2: JACOB | BB2: Modèle | BC2: Modèle A
P3: Resp. article fab | R3: SALPETIER | BB3: Taille
L4: TP Factor | M4: 1.6218 | P4: Groupe article | R4: 1506 | BB4: Classe
L5: Taux horaire | M5: 39.3608 | P5: Groupe produit | R5: 04090 | BB5: Code Movex pdt
C6: PÈRE/FILS | J6: PDS021 COMPOSANTS | L6: MMS001 / 002 / 003 / CRS230 | P6: Données Movex (MMS001 / 002 / 003 / CRS230) | X6: Volume annuel | AA6: Description pièce primaire | AN6: Decomposition prix pièce primaire | AT6: Formules de calcul pièce primaire | BE6: =SUM(BC6:BD6) -> 0
C7: Niveau 1 | D7: Niveau 2 | E7: Niveau 3 | F7: Niveau 4 | G7: Niveau 5 | H7: Niveau | I7: Niveau père | J7: N° SEQ | K7: N° OP | L7: Numéro EPDM | M7: Article produit/ Poste de charge | N7: Catégorie pièce | O7: Nom | P7: Modèle de création MMS | Q7: U/M de base | R7: Poids brut | S7: Poids net | T7: PLAN | U7: Matricule O/N | V7: Type plan | W7: Série économique | X7: Type de pièce | Y7: VCOGS unitaire | Z7: Qté / an | AA7: Série Economique proposée | AB7: Forcer série Economique | AC7: Type Tôle | AD7: Epaisseur mm | AE7: Dimention X (mm) | AF7: Dimention Y (mm) | AG7: Laser | AH7: Nb trous | AI7: Nb plis | AJ7: Nb goujons | AK7: peinture | AL7: Interdire cisaillage | AM7: VCOGS pièce primaire | AN7: VCOGS Tôle | AO7: VCOGS cisaillage | AP7: VCOGS découpe (poinçonage ou laser) | AQ7: VCOGS Pliage | AR7: VCOGS goujons | AS7: VCOGS peinture | AT7: surface de la tôle (m²) | AU7: Surface de la pièce (m²) | AV7: Nb Pièces possible dans tole 11115015 | AW7: Nb Pièces possible dans tole cisaillée | AX7: Série économique2 | AY7: Cisaillage nécessaire | AZ7: Taux peinture ? | BA7: Simulation de coût découpe laser CVP | BB7: Simulation de coût poinçonnage CVP | BC7: Modèle A | BD7: Modèle B
B8: PORTE ET CAISSE | C8: 1 | H8: =SUBSTITUTE(TRIM(CONCATENATE(Tableau3[[#This Row],[Niveau 1]]," ",Tableau3[[#This Row],[Niveau 2]]," ",Tableau3[[#This Row],[Niveau 3]]," ",Tableau3[[#This Row],[Niveau 4]]," ",Tableau3[[#This Row],[Niveau 5]]))," ",".") -> 1 | I8: =IF(COUNTBLANK(Tableau3[[#This Row],[Niveau 1]:[Niveau 5]])=4,"0",LEFT(Tableau3[[#This Row],[Niveau]],(LEN(Tableau3[[#This Row],[Niveau]])-LEN(OFFSET(Tableau3[[#This Row],[Niveau 5]],0,(-COUNTBLANK(Tableau3[[#This Row],[Niveau 1]:[Niveau 5]]))))-1))) -> 0 | M8: 94098701 | N8: Nouveau | O8: =IF(Tableau3[[#This Row],[Catégorie pièce]]="Opérations",VLOOKUP(M8,'Poste de charge'!A:C,2,FALSE),VLOOKUP(CONCATENATE(M8),[1]ARTRDCL!$A$1:$U$25000,2,FALSE)) -> P/C CR4 700 SENS A | P8: MODEL09 | Q8: PI | R8: 10 | S8: 20 | T8: =IF(N8="Nouveau",MID(Tableau3[[#This Row],[Article produit/ Poste de charge]],2,15),"") -> 4098701 | U8: N | V8: PL | W8: 1 | X8: Assemblage | Y8: =IF(Tableau3[[#This Row],[Catégorie pièce]]="Opérations",$M$5/100,VLOOKUP(CONCATENATE(Tableau3[[#This Row],[Article produit/ Poste de charge]]),[1]ARTRDCL!$A$1:$U$65536,15,FALSE)) -> 601.227 | Z8: =SUMPRODUCT($BC$6:$BD$6) -> 0 | AM8: =SUM(AN8:AS8) -> 0 | AN8: =IFERROR(VLOOKUP(CONCATENATE(AC8),Tôles!A:W,10,FALSE)/AA8*(IF(AY8=TRUE,BOM!B8,Tableau3[[#This Row],[surface de la tôle (m²)]])),0) -> 0 | AO8: =IF(AY8=TRUE,Paramètres!$B$13/AX8,0) -> 0 | AP8: =IF(AG8= "Oui",$BA8,BB8) -> 0 | AQ8: =IF(AI8>0, (40/AX8 +0.4*AI8)*Paramètres!$B$2/100,0) -> 0 | AR8: =IF(AJ8>0,(0.15/$AX8+$AJ8)*Paramètres!$B$2/100,0) -> 0 | AS8: =IF(AK8="Oui",(13/AX8 +AZ8)*Paramètres!$B$2/100,0) -> 0 | AT8: =IFERROR(VLOOKUP(CONCATENATE(AC8),Tôles!A:W,9,FALSE),0) -> 0 | AU8: =AE8/1000*AF8/1000 -> 0 | AV8: =IFERROR(AT8/AU8/Paramètres!$B$9,0) -> 0 | AW8: =IFERROR(Paramètres!$B$8/Tableau3[[#This Row],[Surface de la pièce (m²)]]/Paramètres!$B$9,0) -> 0 | AX8: =IF(AB8>0,AB8,AA8) -> 0 | AY8: =AND(IF(AV8>50,TRUE,FALSE),AL8<>"Oui") -> FALSE | AZ8: =MAX(AE8,AF8)/1000 + 0.5 -> 0.5 | BA8: =IF(OR(ISERROR((5/$AN8 +$X8*0.08*$T8+ ($U8+$V8) * 0.001)*Paramètres!$B$2/100),AD8 = ""),0,(5/$AN8 +$X8*0.08*$T8+ ($U8+$V8) * 0.001)*Paramètres!$B$2/100) -> 0 | BB8: =IF(OR(ISERROR((10/$AN8+$X8*0.007 + ($U8+$V8) * 0.0005)*Paramètres!$B$2/100),AD8= ""),0,(10/$AN8+$X8*0.007 + ($U8+$V8) * 0.0005)*Paramètres!$B$2/100) -> 0 | BC8: 1
C9: 1 | H9: =SUBSTITUTE(TRIM(CONCATENATE(Tableau3[[#This Row],[Niveau 1]]," ",Tableau3[[#This Row],[Niveau 2]]," ",Tableau3[[#This Row],[Niveau 3]]," ",Tableau3[[#This Row],[Niveau 4]]," ",Tableau3[[#This Row],[Niveau 5]]))," ",".") -> 1 | I9: =IF(COUNTBLANK(Tableau3[[#This Row],[Niveau 1]:[Niveau 5]])=4,"0",LEFT(Tableau3[[#This Row],[Niveau]],(LEN(Tableau3[[#This Row],[Niveau]])-LEN(OFFSET(Tableau3[[#This Row],[Niveau 5]],0,(-COUNTBLANK(Tableau3[[#This Row],[Niveau 1]:[Niveau 5]]))))-1))) -> 0 | M9: 94098702 | N9: Nouveau | O9: =IF(Tableau3[[#This Row],[Catégorie pièce]]="Opérations",VLOOKUP(M9,'Poste de charge'!A:C,2,FALSE),VLOOKUP(CONCATENATE(M9),[1]ARTRDCL!$A$1:$U$25000,2,FALSE)) -> P/C CR4 700 SENS D | P9: MODEL03 | Q9: PI | R9: 0 | S9: 0 | T9: =IF(N9="Nouveau",MID(Tableau3[[#This Row],[Article produit/ Poste de charge]],2,15),"") -> 4098702 | U9: N | V9: PL | W9: 1 | X9: Assemblage | Y9: =IF(Tableau3[[#This Row],[Catégorie pièce]]="Opérations",$M$5/100,VLOOKUP(CONCATENATE(Tableau3[[#This Row],[Article produit/ Poste de charge]]),[1]ARTRDCL!$A$1:$U$65536,15,FALSE)) -> 601.227 | Z9: =SUMPRODUCT($BC$6:$BD$6) -> 0 | AA9: =ROUNDDOWN(IF($AO9= TRUE,$AM9,$AL9),0) -> 0 | AB9: =Z9*2/25 -> 0 | AM9: =SUM(AN9:AS9) -> 0 | AN9: =IFERROR(VLOOKUP(CONCATENATE(AC9),Tôles!A:W,10,FALSE)/AA9*(IF(AY9=TRUE,BOM!B9,Tableau3[[#This Row],[surface de la tôle (m²)]])),0) -> 0 | AO9: =IF(AY9=TRUE,Paramètres!$B$13/AX9,0) -> 0 | AP9: =IF(AG9= "Oui",$BA9,BB9) -> 0 | AQ9: =IF(AI9>0, (40/AX9 +0.4*AI9)*Paramètres!$B$2/100,0) -> 0 | AR9: =IF(AJ9>0,(0.15/$AX9+$AJ9)*Paramètres!$B$2/100,0) -> 0 | AS9: =IF(AK9="Oui",(13/AX9 +AZ9)*Paramètres!$B$2/100,0) -> 0 | AT9: =IFERROR(VLOOKUP(CONCATENATE(AC9),Tôles!A:W,9,FALSE),0) -> 0 | AU9: =AE9/1000*AF9/1000 -> 0 | AV9: =IFERROR(AT9/AU9/Paramètres!$B$9,0) -> 0 | AW9: =IFERROR(Paramètres!$B$8/Tableau3[[#This Row],[Surface de la pièce (m²)]]/Paramètres!$B$9,0) -> 0 | AX9: =IF(AB9>0,AB9,AA9) -> 0 | AY9: =AND(IF(AV9>50,TRUE,FALSE),AL9<>"Oui") -> FALSE | AZ9: =MAX(AE9,AF9)/1000 + 0.5 -> 0.5 | BA9: =IF(OR(ISERROR((5/$AN9 +$X9*0.08*$T9+ ($U9+$V9) * 0.001)*Paramètres!$B$2/100),AD9 = ""),0,(5/$AN9 +$X9*0.08*$T9+ ($U9+$V9) * 0.001)*Paramètres!$B$2/100) -> 0 | BB9: =IF(OR(ISERROR((10/$AN9+$X9*0.007 + ($U9+$V9) * 0.0005)*Paramètres!$B$2/100),AD9= ""),0,(10/$AN9+$X9*0.007 + ($U9+$V9) * 0.0005)*Paramètres!$B$2/100) -> 0 | BD9: 1
C10: 1 | D10: 1 | H10: =SUBSTITUTE(TRIM(CONCATENATE(Tableau3[[#This Row],[Niveau 1]]," ",Tableau3[[#This Row],[Niveau 2]]," ",Tableau3[[#This Row],[Niveau 3]]," ",Tableau3[[#This Row],[Niveau 4]]," ",Tableau3[[#This Row],[Niveau 5]]))," ",".") -> 1.1 | I10: =IF(COUNTBLANK(Tableau3[[#This Row],[Niveau 1]:[Niveau 5]])=4,"0",LEFT(Tableau3[[#This Row],[Niveau]],(LEN(Tableau3[[#This Row],[Niveau]])-LEN(OFFSET(Tableau3[[#This Row],[Niveau 5]],0,(-COUNTBLANK(Tableau3[[#This Row],[Niveau 1]:[Niveau 5]]))))-1))) -> 1 | J10: 20 | K10: 100 | M10: 84045006 | N10: Nouveau | O10: =IF(Tableau3[[#This Row],[Catégorie pièce]]="Opérations",VLOOKUP(M10,'Poste de charge'!A:C,2,FALSE),VLOOKUP(CONCATENATE(M10),[1]ARTRDCL!$A$1:$U$25000,2,FALSE)) -> FONCET MOBILE LISSE GCHE | P10: MODEL04 | Q10: PI | R10: 11 | S10: 21 | T10: =IF(N10="Nouveau",MID(Tableau3[[#This Row],[Article produit/ Poste de charge]],2,15),"") -> 4045006 | U10: N | V10: PL | W10: 1 | X10: Fabriquée | Y10: =IF(Tableau3[[#This Row],[Catégorie pièce]]="Opérations",$M$5/100,VLOOKUP(CONCATENATE(Tableau3[[#This Row],[Article produit/ Poste de charge]]),[1]ARTRDCL!$A$1:$U$65536,15,FALSE)) -> 19.691 | Z10: =SUMPRODUCT($BC$6:$BD$6) -> 0 | AM10: =SUM(AN10:AS10) -> 0 | AN10: =IFERROR(VLOOKUP(CONCATENATE(AC10),Tôles!A:W,10,FALSE)/AA10*(IF(AY10=TRUE,BOM!B10,Tableau3[[#This Row],[surface de la tôle (m²)]])),0) -> 0 | AO10: =IF(AY10=TRUE,Paramètres!$B$13/AX10,0) -> 0 | AP10: =IF(AG10= "Oui",$BA10,BB10) -> 0 | AQ10: =IF(AI10>0, (40/AX10 +0.4*AI10)*Paramètres!$B$2/100,0) -> 0 | AR10: =IF(AJ10>0,(0.15/$AX10+$AJ10)*Paramètres!$B$2/100,0) -> 0 | AS10: =IF(AK10="Oui",(13/AX10 +AZ10)*Paramètres!$B$2/100,0) -> 0 | AT10: =IFERROR(VLOOKUP(CONCATENATE(AC10),Tôles!A:W,9,FALSE),0) -> 0 | AU10: =AE10/1000*AF10/1000 -> 0 | AV10: =IFERROR(AT10/AU10/Paramètres!$B$9,0) -> 0 | AW10: =IFERROR(Paramètres!$B$8/Tableau3[[#This Row],[Surface de la pièce (m²)]]/Paramètres!$B$9,0) -> 0 | AX10: =IF(AB10>0,AB10,AA10) -> 0 | AY10: =AND(IF(AV10>50,TRUE,FALSE),AL10<>"Oui") -> FALSE | AZ10: =MAX(AE10,AF10)/1000 + 0.5 -> 0.5 | BA10: =IF(OR(ISERROR((5/$AN10 +$X10*0.08*$T10+ ($U10+$V10) * 0.001)*Paramètres!$B$2/100),AD10 = ""),0,(5/$AN10 +$X10*0.08*$T10+ ($U10+$V10) * 0.001)*Paramètres!$B$2/100) -> 0 | BB10: =IF(OR(ISERROR((10/$AN10+$X10*0.007 + ($U10+$V10) * 0.0005)*Paramètres!$B$2/100),AD10= ""),0,(10/$AN10+$X10*0.007 + ($U10+$V10) * 0.0005)*Paramètres!$B$2/100) -> 0 | BC10: 1 | BD10: 2
C11: 1 | D11: 1 | E11: 1 | H11: =SUBSTITUTE(TRIM(CONCATENATE(Tableau3[[#This Row],[Niveau 1]]," ",Tableau3[[#This Row],[Niveau 2]]," ",Tableau3[[#This Row],[Niveau 3]]," ",Tableau3[[#This Row],[Niveau 4]]," ",Tableau3[[#This Row],[Niveau 5]]))," ",".") -> 1.1.1 | I11: =IF(COUNTBLANK(Tableau3[[#This Row],[Niveau 1]:[Niveau 5]])=4,"0",LEFT(Tableau3[[#This Row],[Niveau]],(LEN(Tableau3[[#This Row],[Niveau]])-LEN(OFFSET(Tableau3[[#This Row],[Niveau 5]],0,(-COUNTBLANK(Tableau3[[#This Row],[Niveau 1]:[Niveau 5]]))))-1))) -> 1.1 | J11: 5 | K11: 10 | M11: 11110021 | N11: Composants | O11: =IF(Tableau3[[#This Row],[Catégorie pièce]]="Opérations",VLOOKUP(M11,'Poste de charge'!A:C,2,FALSE),VLOOKUP(CONCATENATE(M11),[1]ARTRDCL!$A$1:$U$25000,2,FALSE)) -> TOLE TC 1250X2500X10/10 | T11: =IF(N11="Nouveau",MID(Tableau3[[#This Row],[Article produit/ Poste de charge]],2,15),"") ->  | X11: Achetée | Y11: =IF(Tableau3[[#This Row],[Catégorie pièce]]="Opérations",$M$5/100,VLOOKUP(CONCATENATE(Tableau3[[#This Row],[Article produit/ Poste de charge]]),[1]ARTRDCL!$A$1:$U$65536,15,FALSE)) -> 21.222 | Z11: =SUMPRODUCT($BC$6:$BD$6) -> 0 | AA11: =ROUNDDOWN(IF($AO11= TRUE,$AM11,$AL11),0) -> 0 | AB11: =Z11*2/25 -> 0 | AM11: =SUM(AN11:AS11) -> 0 | AN11: =IFERROR(VLOOKUP(CONCATENATE(AC11),Tôles!A:W,10,FALSE)/AA11*(IF(AY11=TRUE,BOM!B11,Tableau3[[#This Row],[surface de la tôle (m²)]])),0) -> 0 | AO11: =IF(AY11=TRUE,Paramètres!$B$13/AX11,0) -> 0 | AP11: =IF(AG11= "Oui",$BA11,BB11) -> 0 | AQ11: =IF(AI11>0, (40/AX11 +0.4*AI11)*Paramètres!$B$2/100,0) -> 0 | AR11: =IF(AJ11>0,(0.15/$AX11+$AJ11)*Paramètres!$B$2/100,0) -> 0 | AS11: =IF(AK11="Oui",(13/AX11 +AZ11)*Paramètres!$B$2/100,0) -> 0 | AT11: =IFERROR(VLOOKUP(CONCATENATE(AC11),Tôles!A:W,9,FALSE),0) -> 0 | AU11: =AE11/1000*AF11/1000 -> 0 | AV11: =IFERROR(AT11/AU11/Paramètres!$B$9,0) -> 0 | AW11: =IFERROR(Paramètres!$B$8/Tableau3[[#This Row],[Surface de la pièce (m²)]]/Paramètres!$B$9,0) -> 0 | AX11: =IF(AB11>0,AB11,AA11) -> 0 | AY11: =AND(IF(AV11>50,TRUE,FALSE),AL11<>"Oui") -> FALSE | AZ11: =MAX(AE11,AF11)/1000 + 0.5 -> 0.5 | BA11: =IF(OR(ISERROR((5/$AN11 +$X11*0.08*$T11+ ($U11+$V11) * 0.001)*Paramètres!$B$2/100),AD11 = ""),0,(5/$AN11 +$X11*0.08*$T11+ ($U11+$V11) * 0.001)*Paramètres!$B$2/100) -> 0 | BB11: =IF(OR(ISERROR((10/$AN11+$X11*0.007 + ($U11+$V11) * 0.0005)*Paramètres!$B$2/100),AD11= ""),0,(10/$AN11+$X11*0.007 + ($U11+$V11) * 0.0005)*Paramètres!$B$2/100) -> 0 | BC11: 1
C12: 1 | D12: 1 | E12: 2 | H12: =SUBSTITUTE(TRIM(CONCATENATE(Tableau3[[#This Row],[Niveau 1]]," ",Tableau3[[#This Row],[Niveau 2]]," ",Tableau3[[#This Row],[Niveau 3]]," ",Tableau3[[#This Row],[Niveau 4]]," ",Tableau3[[#This Row],[Niveau 5]]))," ",".") -> 1.1.2 | I12: =IF(COUNTBLANK(Tableau3[[#This Row],[Niveau 1]:[Niveau 5]])=4,"0",LEFT(Tableau3[[#This Row],[Niveau]],(LEN(Tableau3[[#This Row],[Niveau]])-LEN(OFFSET(Tableau3[[#This Row],[Niveau 5]],0,(-COUNTBLANK(Tableau3[[#This Row],[Niveau 1]:[Niveau 5]]))))-1))) -> 1.1 | K12: 10 | M12: 22520 | N12: Opérations | O12: =IF(Tableau3[[#This Row],[Catégorie pièce]]="Opérations",VLOOKUP(M12,'Poste de charge'!A:C,2,FALSE),VLOOKUP(CONCATENATE(M12),[1]ARTRDCL!$A$1:$U$25000,2,FALSE)) -> LASER BYSTRONIC | T12: PANO-MDPX | X12: PP | Y12: =IF(Tableau3[[#This Row],[Catégorie pièce]]="Opérations",$M$5/100,VLOOKUP(CONCATENATE(Tableau3[[#This Row],[Article produit/ Poste de charge]]),[1]ARTRDCL!$A$1:$U$65536,15,FALSE)) -> 0.393608 | Z12: 0 | AA12: =ROUNDDOWN(IF($AO12= TRUE,$AM12,$AL12),0) -> 0 | AB12: =Z12*2/25 -> 0 | AM12: =SUM(AN12:AS12) -> 0 | AN12: =IFERROR(VLOOKUP(CONCATENATE(AC12),Tôles!A:W,10,FALSE)/AA12*(IF(AY12=TRUE,BOM!B12,Tableau3[[#This Row],[surface de la tôle (m²)]])),0) -> 0 | AO12: =IF(AY12=TRUE,Paramètres!$B$13/AX12,0) -> 0 | AP12: =IF(AG12= "Oui",$BA12,BB12) -> 0 | AQ12: =IF(AI12>0, (40/AX12 +0.4*AI12)*Paramètres!$B$2/100,0) -> 0 | AR12: =IF(AJ12>0,(0.15/$AX12+$AJ12)*Paramètres!$B$2/100,0) -> 0 | AS12: =IF(AK12="Oui",(13/AX12 +AZ12)*Paramètres!$B$2/100,0) -> 0 | AT12: =IFERROR(VLOOKUP(CONCATENATE(AC12),Tôles!A:W,9,FALSE),0) -> 0 | AU12: =AE12/1000*AF12/1000 -> 0 | AV12: =IFERROR(AT12/AU12/Paramètres!$B$9,0) -> 0 | AW12: =IFERROR(Paramètres!$B$8/Tableau3[[#This Row],[Surface de la pièce (m²)]]/Paramètres!$B$9,0) -> 0 | AX12: =IF(AB12>0,AB12,AA12) -> 0 | AY12: =AND(IF(AV12>50,TRUE,FALSE),AL12<>"Oui") -> FALSE | AZ12: =MAX(AE12,AF12)/1000 + 0.5 -> 0.5 | BA12: =IF(OR(ISERROR((5/$AN12 +$X12*0.08*$T12+ ($U12+$V12) * 0.001)*Paramètres!$B$2/100),AD12 = ""),0,(5/$AN12 +$X12*0.08*$T12+ ($U12+$V12) * 0.001)*Paramètres!$B$2/100) -> 0 | BB12: =IF(OR(ISERROR((10/$AN12+$X12*0.007 + ($U12+$V12) * 0.0005)*Paramètres!$B$2/100),AD12= ""),0,(10/$AN12+$X12*0.007 + ($U12+$V12) * 0.0005)*Paramètres!$B$2/100) -> 0 | BC12: 1
C13: 1 | D13: 1 | E13: 3 | H13: =SUBSTITUTE(TRIM(CONCATENATE(Tableau3[[#This Row],[Niveau 1]]," ",Tableau3[[#This Row],[Niveau 2]]," ",Tableau3[[#This Row],[Niveau 3]]," ",Tableau3[[#This Row],[Niveau 4]]," ",Tableau3[[#This Row],[Niveau 5]]))," ",".") -> 1.1.3 | I13: =IF(COUNTBLANK(Tableau3[[#This Row],[Niveau 1]:[Niveau 5]])=4,"0",LEFT(Tableau3[[#This Row],[Niveau]],(LEN(Tableau3[[#This Row],[Niveau]])-LEN(OFFSET(Tableau3[[#This Row],[Niveau 5]],0,(-COUNTBLANK(Tableau3[[#This Row],[Niveau 1]:[Niveau 5]]))))-1))) -> 1.1 | K13: 15 | M13: 22630 | N13: Opérations | O13: =IF(Tableau3[[#This Row],[Catégorie pièce]]="Opérations",VLOOKUP(M13,'Poste de charge'!A:C,2,FALSE),VLOOKUP(CONCATENATE(M13),[1]ARTRDCL!$A$1:$U$25000,2,FALSE)) -> PLIEUSES CN 170T | T13: =IF(N13="Nouveau",MID(Tableau3[[#This Row],[Article produit/ Poste de charge]],2,15),"") ->  | X13: PP | Y13: =IF(Tableau3[[#This Row],[Catégorie pièce]]="Opérations",$M$5/100,VLOOKUP(CONCATENATE(Tableau3[[#This Row],[Article produit/ Poste de charge]]),[1]ARTRDCL!$A$1:$U$65536,15,FALSE)) -> 0.393608 | Z13: 0 | AA13: =ROUNDDOWN(IF($AO13= TRUE,$AM13,$AL13),0) -> 0 | AB13: =Z13*2/25 -> 0 | AM13: =SUM(AN13:AS13) -> 0 | AN13: =IFERROR(VLOOKUP(CONCATENATE(AC13),Tôles!A:W,10,FALSE)/AA13*(IF(AY13=TRUE,BOM!B13,Tableau3[[#This Row],[surface de la tôle (m²)]])),0) -> 0 | AO13: =IF(AY13=TRUE,Paramètres!$B$13/AX13,0) -> 0 | AP13: =IF(AG13= "Oui",$BA13,BB13) -> 0 | AQ13: =IF(AI13>0, (40/AX13 +0.4*AI13)*Paramètres!$B$2/100,0) -> 0 | AR13: =IF(AJ13>0,(0.15/$AX13+$AJ13)*Paramètres!$B$2/100,0) -> 0 | AS13: =IF(AK13="Oui",(13/AX13 +AZ13)*Paramètres!$B$2/100,0) -> 0 | AT13: =IFERROR(VLOOKUP(CONCATENATE(AC13),Tôles!A:W,9,FALSE),0) -> 0 | AU13: =AE13/1000*AF13/1000 -> 0 | AV13: =IFERROR(AT13/AU13/Paramètres!$B$9,0) -> 0 | AW13: =IFERROR(Paramètres!$B$8/Tableau3[[#This Row],[Surface de la pièce (m²)]]/Paramètres!$B$9,0) -> 0 | AX13: =IF(AB13>0,AB13,AA13) -> 0 | AY13: =AND(IF(AV13>50,TRUE,FALSE),AL13<>"Oui") -> FALSE | AZ13: =MAX(AE13,AF13)/1000 + 0.5 -> 0.5 | BA13: =IF(OR(ISERROR((5/$AN13 +$X13*0.08*$T13+ ($U13+$V13) * 0.001)*Paramètres!$B$2/100),AD13 = ""),0,(5/$AN13 +$X13*0.08*$T13+ ($U13+$V13) * 0.001)*Paramètres!$B$2/100) -> 0 | BB13: =IF(OR(ISERROR((10/$AN13+$X13*0.007 + ($U13+$V13) * 0.0005)*Paramètres!$B$2/100),AD13= ""),0,(10/$AN13+$X13*0.007 + ($U13+$V13) * 0.0005)*Paramètres!$B$2/100) -> 0 | BC13: 1
C14: 1 | D14: 2 | H14: =SUBSTITUTE(TRIM(CONCATENATE(Tableau3[[#This Row],[Niveau 1]]," ",Tableau3[[#This Row],[Niveau 2]]," ",Tableau3[[#This Row],[Niveau 3]]," ",Tableau3[[#This Row],[Niveau 4]]," ",Tableau3[[#This Row],[Niveau 5]]))," ",".") -> 1.2 | I14: =IF(COUNTBLANK(Tableau3[[#This Row],[Niveau 1]:[Niveau 5]])=4,"0",LEFT(Tableau3[[#This Row],[Niveau]],(LEN(Tableau3[[#This Row],[Niveau]])-LEN(OFFSET(Tableau3[[#This Row],[Niveau 5]],0,(-COUNTBLANK(Tableau3[[#This Row],[Niveau 1]:[Niveau 5]]))))-1))) -> 1 | J14: 25 | K14: 100 | M14: 84045007 | N14: Nouveau | O14: =IF(Tableau3[[#This Row],[Catégorie pièce]]="Opérations",VLOOKUP(M14,'Poste de charge'!A:C,2,FALSE),VLOOKUP(CONCATENATE(M14),[1]ARTRDCL!$A$1:$U$25000,2,FALSE)) -> FONCET MOBILE LISSE DRT | P14: MODEL04Q | Q14: PI | R14: 10 | S14: 20 | T14: SP | U14: N | V14: PL | W14: 1 | X14: Assemblage | Y14: =IF(Tableau3[[#This Row],[Catégorie pièce]]="Opérations",$M$5/100,VLOOKUP(CONCATENATE(Tableau3[[#This Row],[Article produit/ Poste de charge]]),[1]ARTRDCL!$A$1:$U$65536,15,FALSE)) -> 19.691 | Z14: 0 | AM14: 0 | AN14: =IFERROR(VLOOKUP(CONCATENATE(AC14),Tôles!A:W,10,FALSE)/AA14*(IF(AY14=TRUE,BOM!B14,Tableau3[[#This Row],[surface de la tôle (m²)]])),0) -> 0 | AO14: =IF(AY14=TRUE,Paramètres!$B$13/AX14,0) -> 0 | AP14: 0 | AQ14: =IF(AI14>0, (40/AX14 +0.4*AI14)*Paramètres!$B$2/100,0) -> 0 | AR14: =IF(AJ14>0,(0.15/$AX14+$AJ14)*Paramètres!$B$2/100,0) -> 0 | AS14: =IF(AK14="Oui",(13/AX14 +AZ14)*Paramètres!$B$2/100,0) -> 0 | AT14: =IFERROR(VLOOKUP(CONCATENATE(AC14),Tôles!A:W,9,FALSE),0) -> 0 | AU14: 0 | AV14: =IFERROR(AT14/AU14/Paramètres!$B$9,0) -> 0 | AW14: =IFERROR(Paramètres!$B$8/Tableau3[[#This Row],[Surface de la pièce (m²)]]/Paramètres!$B$9,0) -> 0 | AX14: 0 | AY14: FALSE | AZ14: 0.5 | BA14: =IF(OR(ISERROR((5/$AN14 +$X14*0.08*$T14+ ($U14+$V14) * 0.001)*Paramètres!$B$2/100),AD14 = ""),0,(5/$AN14 +$X14*0.08*$T14+ ($U14+$V14) * 0.001)*Paramètres!$B$2/100) -> 0 | BB14: =IF(OR(ISERROR((10/$AN14+$X14*0.007 + ($U14+$V14) * 0.0005)*Paramètres!$B$2/100),AD14= ""),0,(10/$AN14+$X14*0.007 + ($U14+$V14) * 0.0005)*Paramètres!$B$2/100) -> 0 | BC14: 2 | BD14: 3
C15: 1 | D15: 2 | E15: 1 | H15: =SUBSTITUTE(TRIM(CONCATENATE(Tableau3[[#This Row],[Niveau 1]]," ",Tableau3[[#This Row],[Niveau 2]]," ",Tableau3[[#This Row],[Niveau 3]]," ",Tableau3[[#This Row],[Niveau 4]]," ",Tableau3[[#This Row],[Niveau 5]]))," ",".") -> 1.2.1 | I15: =IF(COUNTBLANK(Tableau3[[#This Row],[Niveau 1]:[Niveau 5]])=4,"0",LEFT(Tableau3[[#This Row],[Niveau]],(LEN(Tableau3[[#This Row],[Niveau]])-LEN(OFFSET(Tableau3[[#This Row],[Niveau 5]],0,(-COUNTBLANK(Tableau3[[#This Row],[Niveau 1]:[Niveau 5]]))))-1))) -> 1.2 | J15: 5 | K15: 10 | M15: 11110021 | N15: Composants | O15: =IF(Tableau3[[#This Row],[Catégorie pièce]]="Opérations",VLOOKUP(M15,'Poste de charge'!A:C,2,FALSE),VLOOKUP(CONCATENATE(M15),[1]ARTRDCL!$A$1:$U$25000,2,FALSE)) -> TOLE TC 1250X2500X10/10 | T15: =IF(N15="Nouveau",MID(Tableau3[[#This Row],[Article produit/ Poste de charge]],2,15),"") ->  | X15: Achetée | Y15: =IF(Tableau3[[#This Row],[Catégorie pièce]]="Opérations",$M$5/100,VLOOKUP(CONCATENATE(Tableau3[[#This Row],[Article produit/ Poste de charge]]),[1]ARTRDCL!$A$1:$U$65536,15,FALSE)) -> 21.222 | Z15: 0 | AM15: 0 | AN15: =IFERROR(VLOOKUP(CONCATENATE(AC15),Tôles!A:W,10,FALSE)/AA15*(IF(AY15=TRUE,BOM!B15,Tableau3[[#This Row],[surface de la tôle (m²)]])),0) -> 0 | AO15: =IF(AY15=TRUE,Paramètres!$B$13/AX15,0) -> 0 | AP15: 0 | AQ15: =IF(AI15>0, (40/AX15 +0.4*AI15)*Paramètres!$B$2/100,0) -> 0 | AR15: =IF(AJ15>0,(0.15/$AX15+$AJ15)*Paramètres!$B$2/100,0) -> 0 | AS15: =IF(AK15="Oui",(13/AX15 +AZ15)*Paramètres!$B$2/100,0) -> 0 | AT15: =IFERROR(VLOOKUP(CONCATENATE(AC15),Tôles!A:W,9,FALSE),0) -> 0 | AU15: 0 | AV15: =IFERROR(AT15/AU15/Paramètres!$B$9,0) -> 0 | AW15: =IFERROR(Paramètres!$B$8/Tableau3[[#This Row],[Surface de la pièce (m²)]]/Paramètres!$B$9,0) -> 0 | AX15: 0 | AY15: FALSE | AZ15: 0.5 | BA15: =IF(OR(ISERROR((5/$AN15 +$X15*0.08*$T15+ ($U15+$V15) * 0.001)*Paramètres!$B$2/100),AD15 = ""),0,(5/$AN15 +$X15*0.08*$T15+ ($U15+$V15) * 0.001)*Paramètres!$B$2/100) -> 0 | BB15: =IF(OR(ISERROR((10/$AN15+$X15*0.007 + ($U15+$V15) * 0.0005)*Paramètres!$B$2/100),AD15= ""),0,(10/$AN15+$X15*0.007 + ($U15+$V15) * 0.0005)*Paramètres!$B$2/100) -> 0 | BC15: 1
C16: 1 | D16: 2 | E16: 2 | H16: =SUBSTITUTE(TRIM(CONCATENATE(Tableau3[[#This Row],[Niveau 1]]," ",Tableau3[[#This Row],[Niveau 2]]," ",Tableau3[[#This Row],[Niveau 3]]," ",Tableau3[[#This Row],[Niveau 4]]," ",Tableau3[[#This Row],[Niveau 5]]))," ",".") -> 1.2.2 | I16: =IF(COUNTBLANK(Tableau3[[#This Row],[Niveau 1]:[Niveau 5]])=4,"0",LEFT(Tableau3[[#This Row],[Niveau]],(LEN(Tableau3[[#This Row],[Niveau]])-LEN(OFFSET(Tableau3[[#This Row],[Niveau 5]],0,(-COUNTBLANK(Tableau3[[#This Row],[Niveau 1]:[Niveau 5]]))))-1))) -> 1.2 | K16: 10 | M16: 22520 | N16: Opérations | O16: =IF(Tableau3[[#This Row],[Catégorie pièce]]="Opérations",VLOOKUP(M16,'Poste de charge'!A:C,2,FALSE),VLOOKUP(CONCATENATE(M16),[1]ARTRDCL!$A$1:$U$25000,2,FALSE)) -> LASER BYSTRONIC | T16: =IF(N16="Nouveau",MID(Tableau3[[#This Row],[Article produit/ Poste de charge]],2,15),"") ->  | X16: PP | Y16: =IF(Tableau3[[#This Row],[Catégorie pièce]]="Opérations",$M$5/100,VLOOKUP(CONCATENATE(Tableau3[[#This Row],[Article produit/ Poste de charge]]),[1]ARTRDCL!$A$1:$U$65536,15,FALSE)) -> 0.393608 | Z16: 0 | AM16: 0 | AN16: =IFERROR(VLOOKUP(CONCATENATE(AC16),Tôles!A:W,10,FALSE)/AA16*(IF(AY16=TRUE,BOM!B16,Tableau3[[#This Row],[surface de la tôle (m²)]])),0) -> 0 | AO16: =IF(AY16=TRUE,Paramètres!$B$13/AX16,0) -> 0 | AP16: 0 | AQ16: =IF(AI16>0, (40/AX16 +0.4*AI16)*Paramètres!$B$2/100,0) -> 0 | AR16: =IF(AJ16>0,(0.15/$AX16+$AJ16)*Paramètres!$B$2/100,0) -> 0 | AS16: =IF(AK16="Oui",(13/AX16 +AZ16)*Paramètres!$B$2/100,0) -> 0 | AT16: =IFERROR(VLOOKUP(CONCATENATE(AC16),Tôles!A:W,9,FALSE),0) -> 0 | AU16: 0 | AV16: =IFERROR(AT16/AU16/Paramètres!$B$9,0) -> 0 | AW16: =IFERROR(Paramètres!$B$8/Tableau3[[#This Row],[Surface de la pièce (m²)]]/Paramètres!$B$9,0) -> 0 | AX16: 0 | AY16: FALSE | AZ16: 0.5 | BA16: =IF(OR(ISERROR((5/$AN16 +$X16*0.08*$T16+ ($U16+$V16) * 0.001)*Paramètres!$B$2/100),AD16 = ""),0,(5/$AN16 +$X16*0.08*$T16+ ($U16+$V16) * 0.001)*Paramètres!$B$2/100) -> 0 | BB16: =IF(OR(ISERROR((10/$AN16+$X16*0.007 + ($U16+$V16) * 0.0005)*Paramètres!$B$2/100),AD16= ""),0,(10/$AN16+$X16*0.007 + ($U16+$V16) * 0.0005)*Paramètres!$B$2/100) -> 0 | BC16: 1
C17: 1 | D17: 2 | E17: 3 | H17: =SUBSTITUTE(TRIM(CONCATENATE(Tableau3[[#This Row],[Niveau 1]]," ",Tableau3[[#This Row],[Niveau 2]]," ",Tableau3[[#This Row],[Niveau 3]]," ",Tableau3[[#This Row],[Niveau 4]]," ",Tableau3[[#This Row],[Niveau 5]]))," ",".") -> 1.2.3 | I17: =IF(COUNTBLANK(Tableau3[[#This Row],[Niveau 1]:[Niveau 5]])=4,"0",LEFT(Tableau3[[#This Row],[Niveau]],(LEN(Tableau3[[#This Row],[Niveau]])-LEN(OFFSET(Tableau3[[#This Row],[Niveau 5]],0,(-COUNTBLANK(Tableau3[[#This Row],[Niveau 1]:[Niveau 5]]))))-1))) -> 1.2 | K17: 15 | M17: 22630 | N17: Opérations | O17: =IF(Tableau3[[#This Row],[Catégorie pièce]]="Opérations",VLOOKUP(M17,'Poste de charge'!A:C,2,FALSE),VLOOKUP(CONCATENATE(M17),[1]ARTRDCL!$A$1:$U$25000,2,FALSE)) -> PLIEUSES CN 170T | T17: =IF(N17="Nouveau",MID(Tableau3[[#This Row],[Article produit/ Poste de charge]],2,15),"") ->  | X17: PP | Y17: =IF(Tableau3[[#This Row],[Catégorie pièce]]="Opérations",$M$5/100,VLOOKUP(CONCATENATE(Tableau3[[#This Row],[Article produit/ Poste de charge]]),[1]ARTRDCL!$A$1:$U$65536,15,FALSE)) -> 0.393608 | Z17: 0 | AA17: =ROUNDDOWN(IF($AO17= TRUE,$AM17,$AL17),0) -> 0 | AB17: =Z17*2/25 -> 0 | AM17: =SUM(AN17:AS17) -> 0 | AN17: =IFERROR(VLOOKUP(CONCATENATE(AC17),Tôles!A:W,10,FALSE)/AA17*(IF(AY17=TRUE,BOM!B17,Tableau3[[#This Row],[surface de la tôle (m²)]])),0) -> 0 | AO17: =IF(AY17=TRUE,Paramètres!$B$13/AX17,0) -> 0 | AP17: =IF(AG17= "Oui",$BA17,BB17) -> 0 | AQ17: =IF(AI17>0, (40/AX17 +0.4*AI17)*Paramètres!$B$2/100,0) -> 0 | AR17: =IF(AJ17>0,(0.15/$AX17+$AJ17)*Paramètres!$B$2/100,0) -> 0 | AS17: =IF(AK17="Oui",(13/AX17 +AZ17)*Paramètres!$B$2/100,0) -> 0 | AT17: =IFERROR(VLOOKUP(CONCATENATE(AC17),Tôles!A:W,9,FALSE),0) -> 0 | AU17: =AE17/1000*AF17/1000 -> 0 | AV17: =IFERROR(AT17/AU17/Paramètres!$B$9,0) -> 0 | AW17: =IFERROR(Paramètres!$B$8/Tableau3[[#This Row],[Surface de la pièce (m²)]]/Paramètres!$B$9,0) -> 0 | AX17: =IF(AB17>0,AB17,AA17) -> 0 | AY17: =AND(IF(AV17>50,TRUE,FALSE),AL17<>"Oui") -> FALSE | AZ17: =MAX(AE17,AF17)/1000 + 0.5 -> 0.5 | BA17: =IF(OR(ISERROR((5/$AN17 +$X17*0.08*$T17+ ($U17+$V17) * 0.001)*Paramètres!$B$2/100),AD17 = ""),0,(5/$AN17 +$X17*0.08*$T17+ ($U17+$V17) * 0.001)*Paramètres!$B$2/100) -> 0 | BB17: =IF(OR(ISERROR((10/$AN17+$X17*0.007 + ($U17+$V17) * 0.0005)*Paramètres!$B$2/100),AD17= ""),0,(10/$AN17+$X17*0.007 + ($U17+$V17) * 0.0005)*Paramètres!$B$2/100) -> 0 | BC17: 1
C18: 1 | D18: 3 | H18: =SUBSTITUTE(TRIM(CONCATENATE(Tableau3[[#This Row],[Niveau 1]]," ",Tableau3[[#This Row],[Niveau 2]]," ",Tableau3[[#This Row],[Niveau 3]]," ",Tableau3[[#This Row],[Niveau 4]]," ",Tableau3[[#This Row],[Niveau 5]]))," ",".") -> 1.3 | I18: =IF(COUNTBLANK(Tableau3[[#This Row],[Niveau 1]:[Niveau 5]])=4,"0",LEFT(Tableau3[[#This Row],[Niveau]],(LEN(Tableau3[[#This Row],[Niveau]])-LEN(OFFSET(Tableau3[[#This Row],[Niveau 5]],0,(-COUNTBLANK(Tableau3[[#This Row],[Niveau 1]:[Niveau 5]]))))-1))) -> 1 | K18: 100 | M18: 26200 | N18: Opérations | O18: =IF(Tableau3[[#This Row],[Catégorie pièce]]="Opérations",VLOOKUP(M18,'Poste de charge'!A:C,2,FALSE),VLOOKUP(CONCATENATE(M18),[1]ARTRDCL!$A$1:$U$25000,2,FALSE)) -> ASSEMBLAGE ESPACE 50C | T18: =IF(N18="Nouveau",MID(Tableau3[[#This Row],[Article produit/ Poste de charge]],2,15),"") ->  | X18: Temps | Y18: =IF(Tableau3[[#This Row],[Catégorie pièce]]="Opérations",$M$5/100,VLOOKUP(CONCATENATE(Tableau3[[#This Row],[Article produit/ Poste de charge]]),[1]ARTRDCL!$A$1:$U$65536,15,FALSE)) -> 0.393608 | Z18: 0 | AM18: 0 | AN18: =IFERROR(VLOOKUP(CONCATENATE(AC18),Tôles!A:W,10,FALSE)/AA18*(IF(AY18=TRUE,BOM!B18,Tableau3[[#This Row],[surface de la tôle (m²)]])),0) -> 0 | AO18: =IF(AY18=TRUE,Paramètres!$B$13/AX18,0) -> 0 | AP18: 0 | AQ18: =IF(AI18>0, (40/AX18 +0.4*AI18)*Paramètres!$B$2/100,0) -> 0 | AR18: =IF(AJ18>0,(0.15/$AX18+$AJ18)*Paramètres!$B$2/100,0) -> 0 | AS18: =IF(AK18="Oui",(13/AX18 +AZ18)*Paramètres!$B$2/100,0) -> 0 | AT18: =IFERROR(VLOOKUP(CONCATENATE(AC18),Tôles!A:W,9,FALSE),0) -> 0 | AU18: 0 | AV18: =IFERROR(AT18/AU18/Paramètres!$B$9,0) -> 0 | AW18: =IFERROR(Paramètres!$B$8/Tableau3[[#This Row],[Surface de la pièce (m²)]]/Paramètres!$B$9,0) -> 0 | AX18: 0 | AY18: FALSE | AZ18: 0.5 | BA18: =IF(OR(ISERROR((5/$AN18 +$X18*0.08*$T18+ ($U18+$V18) * 0.001)*Paramètres!$B$2/100),AD18 = ""),0,(5/$AN18 +$X18*0.08*$T18+ ($U18+$V18) * 0.001)*Paramètres!$B$2/100) -> 0 | BB18: =IF(OR(ISERROR((10/$AN18+$X18*0.007 + ($U18+$V18) * 0.0005)*Paramètres!$B$2/100),AD18= ""),0,(10/$AN18+$X18*0.007 + ($U18+$V18) * 0.0005)*Paramètres!$B$2/100) -> 0 | BC18: 50 | BD18: 50
C19: 1 | D19: 4 | H19: =SUBSTITUTE(TRIM(CONCATENATE(Tableau3[[#This Row],[Niveau 1]]," ",Tableau3[[#This Row],[Niveau 2]]," ",Tableau3[[#This Row],[Niveau 3]]," ",Tableau3[[#This Row],[Niveau 4]]," ",Tableau3[[#This Row],[Niveau 5]]))," ",".") -> 1.4 | I19: =IF(COUNTBLANK(Tableau3[[#This Row],[Niveau 1]:[Niveau 5]])=4,"0",LEFT(Tableau3[[#This Row],[Niveau]],(LEN(Tableau3[[#This Row],[Niveau]])-LEN(OFFSET(Tableau3[[#This Row],[Niveau 5]],0,(-COUNTBLANK(Tableau3[[#This Row],[Niveau 1]:[Niveau 5]]))))-1))) -> 1 | K19: 110 | M19: 27540 | N19: Opérations | O19: =IF(Tableau3[[#This Row],[Catégorie pièce]]="Opérations",VLOOKUP(M19,'Poste de charge'!A:C,2,FALSE),VLOOKUP(CONCATENATE(M19),[1]ARTRDCL!$A$1:$U$25000,2,FALSE)) -> CHAINE PEINTURE POUDRE | T19: =IF(N19="Nouveau",MID(Tableau3[[#This Row],[Article produit/ Poste de charge]],2,15),"") ->  | X19: Temps | Y19: =IF(Tableau3[[#This Row],[Catégorie pièce]]="Opérations",$M$5/100,VLOOKUP(CONCATENATE(Tableau3[[#This Row],[Article produit/ Poste de charge]]),[1]ARTRDCL!$A$1:$U$65536,15,FALSE)) -> 0.393608 | Z19: 0 | AM19: =SUM(AN19:AS19) -> 0 | AN19: =IFERROR(VLOOKUP(CONCATENATE(AC19),Tôles!A:W,10,FALSE)/AA19*(IF(AY19=TRUE,BOM!B19,Tableau3[[#This Row],[surface de la tôle (m²)]])),0) -> 0 | AO19: =IF(AY19=TRUE,Paramètres!$B$13/AX19,0) -> 0 | AP19: =IF(AG19= "Oui",$BA19,BB19) -> 0 | AQ19: =IF(AI19>0, (40/AX19 +0.4*AI19)*Paramètres!$B$2/100,0) -> 0 | AR19: =IF(AJ19>0,(0.15/$AX19+$AJ19)*Paramètres!$B$2/100,0) -> 0 | AS19: =IF(AK19="Oui",(13/AX19 +AZ19)*Paramètres!$B$2/100,0) -> 0 | AT19: =IFERROR(VLOOKUP(CONCATENATE(AC19),Tôles!A:W,9,FALSE),0) -> 0 | AU19: =AE19/1000*AF19/1000 -> 0 | AV19: =IFERROR(AT19/AU19/Paramètres!$B$9,0) -> 0 | AW19: =IFERROR(Paramètres!$B$8/Tableau3[[#This Row],[Surface de la pièce (m²)]]/Paramètres!$B$9,0) -> 0 | AX19: =IF(AB19>0,AB19,AA19) -> 0 | AY19: =AND(IF(AV19>50,TRUE,FALSE),AL19<>"Oui") -> FALSE | AZ19: =MAX(AE19,AF19)/1000 + 0.5 -> 0.5 | BA19: =IF(OR(ISERROR((5/$AN19 +$X19*0.08*$T19+ ($U19+$V19) * 0.001)*Paramètres!$B$2/100),AD19 = ""),0,(5/$AN19 +$X19*0.08*$T19+ ($U19+$V19) * 0.001)*Paramètres!$B$2/100) -> 0 | BB19: =IF(OR(ISERROR((10/$AN19+$X19*0.007 + ($U19+$V19) * 0.0005)*Paramètres!$B$2/100),AD19= ""),0,(10/$AN19+$X19*0.007 + ($U19+$V19) * 0.0005)*Paramètres!$B$2/100) -> 0 | BC19: 50 | BD19: 50
B20: P/C | H20: =SUBSTITUTE(TRIM(CONCATENATE(Tableau3[[#This Row],[Niveau 1]]," ",Tableau3[[#This Row],[Niveau 2]]," ",Tableau3[[#This Row],[Niveau 3]]," ",Tableau3[[#This Row],[Niveau 4]]," ",Tableau3[[#This Row],[Niveau 5]]))," ",".") ->  | I20: =IF(COUNTBLANK(Tableau3[[#This Row],[Niveau 1]:[Niveau 5]])=4,"0",LEFT(Tableau3[[#This Row],[Niveau]],(LEN(Tableau3[[#This Row],[Niveau]])-LEN(OFFSET(Tableau3[[#This Row],[Niveau 5]],0,(-COUNTBLANK(Tableau3[[#This Row],[Niveau 1]:[Niveau 5]]))))-1))) ->  | O20: =IF(Tableau3[[#This Row],[Catégorie pièce]]="Opérations",VLOOKUP(M20,'Poste de charge'!A:C,2,FALSE),VLOOKUP(CONCATENATE(M20),[1]ARTRDCL!$A$1:$U$25000,2,FALSE)) ->  | T20: =IF(N20="Nouveau",MID(Tableau3[[#This Row],[Article produit/ Poste de charge]],2,15),"") ->  | Y20: =IF(Tableau3[[#This Row],[Catégorie pièce]]="Opérations",$M$5/100,VLOOKUP(CONCATENATE(Tableau3[[#This Row],[Article produit/ Poste de charge]]),[1]ARTRDCL!$A$1:$U$65536,15,FALSE)) ->  | AA20: =ROUNDDOWN(IF($AO20= TRUE,$AM20,$AL20),0) -> 0 | AB20: =Z20*2/25 -> 0 | AM20: =SUM(AN20:AS20) -> 0 | AN20: =IFERROR(VLOOKUP(CONCATENATE(AC20),Tôles!A:W,10,FALSE)/AA20*(IF(AY20=TRUE,BOM!B20,Tableau3[[#This Row],[surface de la tôle (m²)]])),0) -> 0 | AO20: =IF(AY20=TRUE,Paramètres!$B$13/AX20,0) -> 0 | AP20: =IF(AG20= "Oui",$BA20,BB20) -> 0 | AQ20: =IF(AI20>0, (40/AX20 +0.4*AI20)*Paramètres!$B$2/100,0) -> 0 | AR20: =IF(AJ20>0,(0.15/$AX20+$AJ20)*Paramètres!$B$2/100,0) -> 0 | AS20: =IF(AK20="Oui",(13/AX20 +AZ20)*Paramètres!$B$2/100,0) -> 0 | AT20: =IFERROR(VLOOKUP(CONCATENATE(AC20),Tôles!A:W,9,FALSE),0) -> 0 | AU20: =AE20/1000*AF20/1000 -> 0 | AV20: =IFERROR(AT20/AU20/Paramètres!$B$9,0) -> 0 | AW20: =IFERROR(Paramètres!$B$8/Tableau3[[#This Row],[Surface de la pièce (m²)]]/Paramètres!$B$9,0) -> 0 | AX20: =IF(AB20>0,AB20,AA20) -> 0 | AY20: =AND(IF(AV20>50,TRUE,FALSE),AL20<>"Oui") -> FALSE | AZ20: =MAX(AE20,AF20)/1000 + 0.5 -> 0.5 | BA20: =IF(OR(ISERROR((5/$AN20 +$X20*0.08*$T20+ ($U20+$V20) * 0.001)*Paramètres!$B$2/100),AD20 = ""),0,(5/$AN20 +$X20*0.08*$T20+ ($U20+$V20) * 0.001)*Paramètres!$B$2/100) -> 0 | BB20: =IF(OR(ISERROR((10/$AN20+$X20*0.007 + ($U20+$V20) * 0.0005)*Paramètres!$B$2/100),AD20= ""),0,(10/$AN20+$X20*0.007 + ($U20+$V20) * 0.0005)*Paramètres!$B$2/100) -> 0
H21: =SUBSTITUTE(TRIM(CONCATENATE(Tableau3[[#This Row],[Niveau 1]]," ",Tableau3[[#This Row],[Niveau 2]]," ",Tableau3[[#This Row],[Niveau 3]]," ",Tableau3[[#This Row],[Niveau 4]]," ",Tableau3[[#This Row],[Niveau 5]]))," ",".") ->  | I21: =IF(COUNTBLANK(Tableau3[[#This Row],[Niveau 1]:[Niveau 5]])=4,"0",LEFT(Tableau3[[#This Row],[Niveau]],(LEN(Tableau3[[#This Row],[Niveau]])-LEN(OFFSET(Tableau3[[#This Row],[Niveau 5]],0,(-COUNTBLANK(Tableau3[[#This Row],[Niveau 1]:[Niveau 5]]))))-1))) ->  | O21: =IF(Tableau3[[#This Row],[Catégorie pièce]]="Opérations",VLOOKUP(M21,'Poste de charge'!A:C,2,FALSE),VLOOKUP(CONCATENATE(M21),[1]ARTRDCL!$A$1:$U$25000,2,FALSE)) ->  | T21: =IF(N21="Nouveau",MID(Tableau3[[#This Row],[Article produit/ Poste de charge]],2,15),"") ->  | Y21: =IF(Tableau3[[#This Row],[Catégorie pièce]]="Opérations",$M$5/100,VLOOKUP(CONCATENATE(Tableau3[[#This Row],[Article produit/ Poste de charge]]),[1]ARTRDCL!$A$1:$U$65536,15,FALSE)) ->  | AA21: 0 | AB21: 0 | AM21: 0 | AN21: =IFERROR(VLOOKUP(CONCATENATE(AC21),Tôles!A:W,10,FALSE)/AA21*(IF(AY21=TRUE,BOM!B21,Tableau3[[#This Row],[surface de la tôle (m²)]])),0) -> 0 | AO21: =IF(AY21=TRUE,Paramètres!$B$13/AX21,0) -> 0 | AP21: 0 | AQ21: =IF(AI21>0, (40/AX21 +0.4*AI21)*Paramètres!$B$2/100,0) -> 0 | AR21: =IF(AJ21>0,(0.15/$AX21+$AJ21)*Paramètres!$B$2/100,0) -> 0 | AS21: =IF(AK21="Oui",(13/AX21 +AZ21)*Paramètres!$B$2/100,0) -> 0 | AT21: =IFERROR(VLOOKUP(CONCATENATE(AC21),Tôles!A:W,9,FALSE),0) -> 0 | AU21: 0 | AV21: =IFERROR(AT21/AU21/Paramètres!$B$9,0) -> 0 | AW21: =IFERROR(Paramètres!$B$8/Tableau3[[#This Row],[Surface de la pièce (m²)]]/Paramètres!$B$9,0) -> 0 | AX21: 0 | AY21: FALSE | AZ21: 0.5 | BA21: =IF(OR(ISERROR((5/$AN21 +$X21*0.08*$T21+ ($U21+$V21) * 0.001)*Paramètres!$B$2/100),AD21 = ""),0,(5/$AN21 +$X21*0.08*$T21+ ($U21+$V21) * 0.001)*Paramètres!$B$2/100) -> 0 | BB21: =IF(OR(ISERROR((10/$AN21+$X21*0.007 + ($U21+$V21) * 0.0005)*Paramètres!$B$2/100),AD21= ""),0,(10/$AN21+$X21*0.007 + ($U21+$V21) * 0.0005)*Paramètres!$B$2/100) -> 0
H22: =SUBSTITUTE(TRIM(CONCATENATE(Tableau3[[#This Row],[Niveau 1]]," ",Tableau3[[#This Row],[Niveau 2]]," ",Tableau3[[#This Row],[Niveau 3]]," ",Tableau3[[#This Row],[Niveau 4]]," ",Tableau3[[#This Row],[Niveau 5]]))," ",".") ->  | I22: =IF(COUNTBLANK(Tableau3[[#This Row],[Niveau 1]:[Niveau 5]])=4,"0",LEFT(Tableau3[[#This Row],[Niveau]],(LEN(Tableau3[[#This Row],[Niveau]])-LEN(OFFSET(Tableau3[[#This Row],[Niveau 5]],0,(-COUNTBLANK(Tableau3[[#This Row],[Niveau 1]:[Niveau 5]]))))-1))) ->  | O22: =IF(Tableau3[[#This Row],[Catégorie pièce]]="Opérations",VLOOKUP(M22,'Poste de charge'!A:C,2,FALSE),VLOOKUP(CONCATENATE(M22),[1]ARTRDCL!$A$1:$U$25000,2,FALSE)) ->  | T22: =IF(N22="Nouveau",MID(Tableau3[[#This Row],[Article produit/ Poste de charge]],2,15),"") ->  | Y22: =IF(Tableau3[[#This Row],[Catégorie pièce]]="Opérations",$M$5/100,VLOOKUP(CONCATENATE(Tableau3[[#This Row],[Article produit/ Poste de charge]]),[1]ARTRDCL!$A$1:$U$65536,15,FALSE)) ->  | AA22: 0 | AB22: 0 | AM22: 0 | AN22: =IFERROR(VLOOKUP(CONCATENATE(AC22),Tôles!A:W,10,FALSE)/AA22*(IF(AY22=TRUE,BOM!B22,Tableau3[[#This Row],[surface de la tôle (m²)]])),0) -> 0 | AO22: =IF(AY22=TRUE,Paramètres!$B$13/AX22,0) -> 0 | AP22: 0 | AQ22: =IF(AI22>0, (40/AX22 +0.4*AI22)*Paramètres!$B$2/100,0) -> 0 | AR22: =IF(AJ22>0,(0.15/$AX22+$AJ22)*Paramètres!$B$2/100,0) -> 0 | AS22: =IF(AK22="Oui",(13/AX22 +AZ22)*Paramètres!$B$2/100,0) -> 0 | AT22: =IFERROR(VLOOKUP(CONCATENATE(AC22),Tôles!A:W,9,FALSE),0) -> 0 | AU22: 0 | AV22: =IFERROR(AT22/AU22/Paramètres!$B$9,0) -> 0 | AW22: =IFERROR(Paramètres!$B$8/Tableau3[[#This Row],[Surface de la pièce (m²)]]/Paramètres!$B$9,0) -> 0 | AX22: 0 | AY22: FALSE | AZ22: 0.5 | BA22: =IF(OR(ISERROR((5/$AN22 +$X22*0.08*$T22+ ($U22+$V22) * 0.001)*Paramètres!$B$2/100),AD22 = ""),0,(5/$AN22 +$X22*0.08*$T22+ ($U22+$V22) * 0.001)*Paramètres!$B$2/100) -> 0 | BB22: =IF(OR(ISERROR((10/$AN22+$X22*0.007 + ($U22+$V22) * 0.0005)*Paramètres!$B$2/100),AD22= ""),0,(10/$AN22+$X22*0.007 + ($U22+$V22) * 0.0005)*Paramètres!$B$2/100) -> 0
H23: =SUBSTITUTE(TRIM(CONCATENATE(Tableau3[[#This Row],[Niveau 1]]," ",Tableau3[[#This Row],[Niveau 2]]," ",Tableau3[[#This Row],[Niveau 3]]," ",Tableau3[[#This Row],[Niveau 4]]," ",Tableau3[[#This Row],[Niveau 5]]))," ",".") ->  | I23: =IF(COUNTBLANK(Tableau3[[#This Row],[Niveau 1]:[Niveau 5]])=4,"0",LEFT(Tableau3[[#This Row],[Niveau]],(LEN(Tableau3[[#This Row],[Niveau]])-LEN(OFFSET(Tableau3[[#This Row],[Niveau 5]],0,(-COUNTBLANK(Tableau3[[#This Row],[Niveau 1]:[Niveau 5]]))))-1))) ->  | O23: =IF(Tableau3[[#This Row],[Catégorie pièce]]="Opérations",VLOOKUP(M23,'Poste de charge'!A:C,2,FALSE),VLOOKUP(CONCATENATE(M23),[1]ARTRDCL!$A$1:$U$25000,2,FALSE)) ->  | T23: =IF(N23="Nouveau",MID(Tableau3[[#This Row],[Article produit/ Poste de charge]],2,15),"") ->  | Y23: =IF(Tableau3[[#This Row],[Catégorie pièce]]="Opérations",$M$5/100,VLOOKUP(CONCATENATE(Tableau3[[#This Row],[Article produit/ Poste de charge]]),[1]ARTRDCL!$A$1:$U$65536,15,FALSE)) ->  | AA23: 0 | AB23: 0 | AM23: 0 | AN23: =IFERROR(VLOOKUP(CONCATENATE(AC23),Tôles!A:W,10,FALSE)/AA23*(IF(AY23=TRUE,BOM!B23,Tableau3[[#This Row],[surface de la tôle (m²)]])),0) -> 0 | AO23: =IF(AY23=TRUE,Paramètres!$B$13/AX23,0) -> 0 | AP23: 0 | AQ23: =IF(AI23>0, (40/AX23 +0.4*AI23)*Paramètres!$B$2/100,0) -> 0 | AR23: =IF(AJ23>0,(0.15/$AX23+$AJ23)*Paramètres!$B$2/100,0) -> 0 | AS23: =IF(AK23="Oui",(13/AX23 +AZ23)*Paramètres!$B$2/100,0) -> 0 | AT23: =IFERROR(VLOOKUP(CONCATENATE(AC23),Tôles!A:W,9,FALSE),0) -> 0 | AU23: 0 | AV23: =IFERROR(AT23/AU23/Paramètres!$B$9,0) -> 0 | AW23: =IFERROR(Paramètres!$B$8/Tableau3[[#This Row],[Surface de la pièce (m²)]]/Paramètres!$B$9,0) -> 0 | AX23: 0 | AY23: FALSE | AZ23: 0.5 | BA23: =IF(OR(ISERROR((5/$AN23 +$X23*0.08*$T23+ ($U23+$V23) * 0.001)*Paramètres!$B$2/100),AD23 = ""),0,(5/$AN23 +$X23*0.08*$T23+ ($U23+$V23) * 0.001)*Paramètres!$B$2/100) -> 0 | BB23: =IF(OR(ISERROR((10/$AN23+$X23*0.007 + ($U23+$V23) * 0.0005)*Paramètres!$B$2/100),AD23= ""),0,(10/$AN23+$X23*0.007 + ($U23+$V23) * 0.0005)*Paramètres!$B$2/100) -> 0
H24: =SUBSTITUTE(TRIM(CONCATENATE(Tableau3[[#This Row],[Niveau 1]]," ",Tableau3[[#This Row],[Niveau 2]]," ",Tableau3[[#This Row],[Niveau 3]]," ",Tableau3[[#This Row],[Niveau 4]]," ",Tableau3[[#This Row],[Niveau 5]]))," ",".") ->  | I24: =IF(COUNTBLANK(Tableau3[[#This Row],[Niveau 1]:[Niveau 5]])=4,"0",LEFT(Tableau3[[#This Row],[Niveau]],(LEN(Tableau3[[#This Row],[Niveau]])-LEN(OFFSET(Tableau3[[#This Row],[Niveau 5]],0,(-COUNTBLANK(Tableau3[[#This Row],[Niveau 1]:[Niveau 5]]))))-1))) ->  | O24: =IF(Tableau3[[#This Row],[Catégorie pièce]]="Opérations",VLOOKUP(M24,'Poste de charge'!A:C,2,FALSE),VLOOKUP(CONCATENATE(M24),[1]ARTRDCL!$A$1:$U$25000,2,FALSE)) ->  | T24: =IF(N24="Nouveau",MID(Tableau3[[#This Row],[Article produit/ Poste de charge]],2,15),"") ->  | Y24: =IF(Tableau3[[#This Row],[Catégorie pièce]]="Opérations",$M$5/100,VLOOKUP(CONCATENATE(Tableau3[[#This Row],[Article produit/ Poste de charge]]),[1]ARTRDCL!$A$1:$U$65536,15,FALSE)) ->  | AA24: 0 | AB24: 0 | AM24: 0 | AN24: =IFERROR(VLOOKUP(CONCATENATE(AC24),Tôles!A:W,10,FALSE)/AA24*(IF(AY24=TRUE,BOM!B24,Tableau3[[#This Row],[surface de la tôle (m²)]])),0) -> 0 | AO24: =IF(AY24=TRUE,Paramètres!$B$13/AX24,0) -> 0 | AP24: 0 | AQ24: =IF(AI24>0, (40/AX24 +0.4*AI24)*Paramètres!$B$2/100,0) -> 0 | AR24: =IF(AJ24>0,(0.15/$AX24+$AJ24)*Paramètres!$B$2/100,0) -> 0 | AS24: =IF(AK24="Oui",(13/AX24 +AZ24)*Paramètres!$B$2/100,0) -> 0 | AT24: =IFERROR(VLOOKUP(CONCATENATE(AC24),Tôles!A:W,9,FALSE),0) -> 0 | AU24: 0 | AV24: =IFERROR(AT24/AU24/Paramètres!$B$9,0) -> 0 | AW24: =IFERROR(Paramètres!$B$8/Tableau3[[#This Row],[Surface de la pièce (m²)]]/Paramètres!$B$9,0) -> 0 | AX24: 0 | AY24: FALSE | AZ24: 0.5 | BA24: =IF(OR(ISERROR((5/$AN24 +$X24*0.08*$T24+ ($U24+$V24) * 0.001)*Paramètres!$B$2/100),AD24 = ""),0,(5/$AN24 +$X24*0.08*$T24+ ($U24+$V24) * 0.001)*Paramètres!$B$2/100) -> 0 | BB24: =IF(OR(ISERROR((10/$AN24+$X24*0.007 + ($U24+$V24) * 0.0005)*Paramètres!$B$2/100),AD24= ""),0,(10/$AN24+$X24*0.007 + ($U24+$V24) * 0.0005)*Paramètres!$B$2/100) -> 0
H25: =SUBSTITUTE(TRIM(CONCATENATE(Tableau3[[#This Row],[Niveau 1]]," ",Tableau3[[#This Row],[Niveau 2]]," ",Tableau3[[#This Row],[Niveau 3]]," ",Tableau3[[#This Row],[Niveau 4]]," ",Tableau3[[#This Row],[Niveau 5]]))," ",".") ->  | I25: =IF(COUNTBLANK(Tableau3[[#This Row],[Niveau 1]:[Niveau 5]])=4,"0",LEFT(Tableau3[[#This Row],[Niveau]],(LEN(Tableau3[[#This Row],[Niveau]])-LEN(OFFSET(Tableau3[[#This Row],[Niveau 5]],0,(-COUNTBLANK(Tableau3[[#This Row],[Niveau 1]:[Niveau 5]]))))-1))) ->  | O25: =IF(Tableau3[[#This Row],[Catégorie pièce]]="Opérations",VLOOKUP(M25,'Poste de charge'!A:C,2,FALSE),VLOOKUP(CONCATENATE(M25),[1]ARTRDCL!$A$1:$U$25000,2,FALSE)) ->  | T25: =IF(N25="Nouveau",MID(Tableau3[[#This Row],[Article produit/ Poste de charge]],2,15),"") ->  | Y25: =IF(Tableau3[[#This Row],[Catégorie pièce]]="Opérations",$M$5/100,VLOOKUP(CONCATENATE(Tableau3[[#This Row],[Article produit/ Poste de charge]]),[1]ARTRDCL!$A$1:$U$65536,15,FALSE)) ->  | AA25: 0 | AB25: 0 | AM25: 0 | AN25: =IFERROR(VLOOKUP(CONCATENATE(AC25),Tôles!A:W,10,FALSE)/AA25*(IF(AY25=TRUE,BOM!B25,Tableau3[[#This Row],[surface de la tôle (m²)]])),0) -> 0 | AO25: =IF(AY25=TRUE,Paramètres!$B$13/AX25,0) -> 0 | AP25: 0 | AQ25: =IF(AI25>0, (40/AX25 +0.4*AI25)*Paramètres!$B$2/100,0) -> 0 | AR25: =IF(AJ25>0,(0.15/$AX25+$AJ25)*Paramètres!$B$2/100,0) -> 0 | AS25: =IF(AK25="Oui",(13/AX25 +AZ25)*Paramètres!$B$2/100,0) -> 0 | AT25: =IFERROR(VLOOKUP(CONCATENATE(AC25),Tôles!A:W,9,FALSE),0) -> 0 | AU25: 0 | AV25: =IFERROR(AT25/AU25/Paramètres!$B$9,0) -> 0 | AW25: =IFERROR(Paramètres!$B$8/Tableau3[[#This Row],[Surface de la pièce (m²)]]/Paramètres!$B$9,0) -> 0 | AX25: 0 | AY25: FALSE | AZ25: 0.5 | BA25: =IF(OR(ISERROR((5/$AN25 +$X25*0.08*$T25+ ($U25+$V25) * 0.001)*Paramètres!$B$2/100),AD25 = ""),0,(5/$AN25 +$X25*0.08*$T25+ ($U25+$V25) * 0.001)*Paramètres!$B$2/100) -> 0 | BB25: =IF(OR(ISERROR((10/$AN25+$X25*0.007 + ($U25+$V25) * 0.0005)*Paramètres!$B$2/100),AD25= ""),0,(10/$AN25+$X25*0.007 + ($U25+$V25) * 0.0005)*Paramètres!$B$2/100) -> 0
H26: =SUBSTITUTE(TRIM(CONCATENATE(Tableau3[[#This Row],[Niveau 1]]," ",Tableau3[[#This Row],[Niveau 2]]," ",Tableau3[[#This Row],[Niveau 3]]," ",Tableau3[[#This Row],[Niveau 4]]," ",Tableau3[[#This Row],[Niveau 5]]))," ",".") ->  | I26: =IF(COUNTBLANK(Tableau3[[#This Row],[Niveau 1]:[Niveau 5]])=4,"0",LEFT(Tableau3[[#This Row],[Niveau]],(LEN(Tableau3[[#This Row],[Niveau]])-LEN(OFFSET(Tableau3[[#This Row],[Niveau 5]],0,(-COUNTBLANK(Tableau3[[#This Row],[Niveau 1]:[Niveau 5]]))))-1))) ->  | O26: =IF(Tableau3[[#This Row],[Catégorie pièce]]="Opérations",VLOOKUP(M26,'Poste de charge'!A:C,2,FALSE),VLOOKUP(CONCATENATE(M26),[1]ARTRDCL!$A$1:$U$25000,2,FALSE)) ->  | T26: =IF(N26="Nouveau",MID(Tableau3[[#This Row],[Article produit/ Poste de charge]],2,15),"") ->  | Y26: =IF(Tableau3[[#This Row],[Catégorie pièce]]="Opérations",$M$5/100,VLOOKUP(CONCATENATE(Tableau3[[#This Row],[Article produit/ Poste de charge]]),[1]ARTRDCL!$A$1:$U$65536,15,FALSE)) ->  | AA26: 0 | AB26: 0 | AM26: 0 | AN26: =IFERROR(VLOOKUP(CONCATENATE(AC26),Tôles!A:W,10,FALSE)/AA26*(IF(AY26=TRUE,BOM!B26,Tableau3[[#This Row],[surface de la tôle (m²)]])),0) -> 0 | AO26: =IF(AY26=TRUE,Paramètres!$B$13/AX26,0) -> 0 | AP26: 0 | AQ26: =IF(AI26>0, (40/AX26 +0.4*AI26)*Paramètres!$B$2/100,0) -> 0 | AR26: =IF(AJ26>0,(0.15/$AX26+$AJ26)*Paramètres!$B$2/100,0) -> 0 | AS26: =IF(AK26="Oui",(13/AX26 +AZ26)*Paramètres!$B$2/100,0) -> 0 | AT26: =IFERROR(VLOOKUP(CONCATENATE(AC26),Tôles!A:W,9,FALSE),0) -> 0 | AU26: 0 | AV26: =IFERROR(AT26/AU26/Paramètres!$B$9,0) -> 0 | AW26: =IFERROR(Paramètres!$B$8/Tableau3[[#This Row],[Surface de la pièce (m²)]]/Paramètres!$B$9,0) -> 0 | AX26: 0 | AY26: FALSE | AZ26: 0.5 | BA26: =IF(OR(ISERROR((5/$AN26 +$X26*0.08*$T26+ ($U26+$V26) * 0.001)*Paramètres!$B$2/100),AD26 = ""),0,(5/$AN26 +$X26*0.08*$T26+ ($U26+$V26) * 0.001)*Paramètres!$B$2/100) -> 0 | BB26: =IF(OR(ISERROR((10/$AN26+$X26*0.007 + ($U26+$V26) * 0.0005)*Paramètres!$B$2/100),AD26= ""),0,(10/$AN26+$X26*0.007 + ($U26+$V26) * 0.0005)*Paramètres!$B$2/100) -> 0
H27: =SUBSTITUTE(TRIM(CONCATENATE(Tableau3[[#This Row],[Niveau 1]]," ",Tableau3[[#This Row],[Niveau 2]]," ",Tableau3[[#This Row],[Niveau 3]]," ",Tableau3[[#This Row],[Niveau 4]]," ",Tableau3[[#This Row],[Niveau 5]]))," ",".") ->  | I27: =IF(COUNTBLANK(Tableau3[[#This Row],[Niveau 1]:[Niveau 5]])=4,"0",LEFT(Tableau3[[#This Row],[Niveau]],(LEN(Tableau3[[#This Row],[Niveau]])-LEN(OFFSET(Tableau3[[#This Row],[Niveau 5]],0,(-COUNTBLANK(Tableau3[[#This Row],[Niveau 1]:[Niveau 5]]))))-1))) ->  | O27: =IF(Tableau3[[#This Row],[Catégorie pièce]]="Opérations",VLOOKUP(M27,'Poste de charge'!A:C,2,FALSE),VLOOKUP(CONCATENATE(M27),[1]ARTRDCL!$A$1:$U$25000,2,FALSE)) ->  | T27: =IF(N27="Nouveau",MID(Tableau3[[#This Row],[Article produit/ Poste de charge]],2,15),"") ->  | Y27: =IF(Tableau3[[#This Row],[Catégorie pièce]]="Opérations",$M$5/100,VLOOKUP(CONCATENATE(Tableau3[[#This Row],[Article produit/ Poste de charge]]),[1]ARTRDCL!$A$1:$U$65536,15,FALSE)) ->  | AA27: 0 | AB27: 0 | AM27: 0 | AN27: =IFERROR(VLOOKUP(CONCATENATE(AC27),Tôles!A:W,10,FALSE)/AA27*(IF(AY27=TRUE,BOM!B27,Tableau3[[#This Row],[surface de la tôle (m²)]])),0) -> 0 | AO27: =IF(AY27=TRUE,Paramètres!$B$13/AX27,0) -> 0 | AP27: 0 | AQ27: =IF(AI27>0, (40/AX27 +0.4*AI27)*Paramètres!$B$2/100,0) -> 0 | AR27: =IF(AJ27>0,(0.15/$AX27+$AJ27)*Paramètres!$B$2/100,0) -> 0 | AS27: =IF(AK27="Oui",(13/AX27 +AZ27)*Paramètres!$B$2/100,0) -> 0 | AT27: =IFERROR(VLOOKUP(CONCATENATE(AC27),Tôles!A:W,9,FALSE),0) -> 0 | AU27: 0 | AV27: =IFERROR(AT27/AU27/Paramètres!$B$9,0) -> 0 | AW27: =IFERROR(Paramètres!$B$8/Tableau3[[#This Row],[Surface de la pièce (m²)]]/Paramètres!$B$9,0) -> 0 | AX27: 0 | AY27: FALSE | AZ27: 0.5 | BA27: =IF(OR(ISERROR((5/$AN27 +$X27*0.08*$T27+ ($U27+$V27) * 0.001)*Paramètres!$B$2/100),AD27 = ""),0,(5/$AN27 +$X27*0.08*$T27+ ($U27+$V27) * 0.001)*Paramètres!$B$2/100) -> 0 | BB27: =IF(OR(ISERROR((10/$AN27+$X27*0.007 + ($U27+$V27) * 0.0005)*Paramètres!$B$2/100),AD27= ""),0,(10/$AN27+$X27*0.007 + ($U27+$V27) * 0.0005)*Paramètres!$B$2/100) -> 0
H28: =SUBSTITUTE(TRIM(CONCATENATE(Tableau3[[#This Row],[Niveau 1]]," ",Tableau3[[#This Row],[Niveau 2]]," ",Tableau3[[#This Row],[Niveau 3]]," ",Tableau3[[#This Row],[Niveau 4]]," ",Tableau3[[#This Row],[Niveau 5]]))," ",".") ->  | I28: =IF(COUNTBLANK(Tableau3[[#This Row],[Niveau 1]:[Niveau 5]])=4,"0",LEFT(Tableau3[[#This Row],[Niveau]],(LEN(Tableau3[[#This Row],[Niveau]])-LEN(OFFSET(Tableau3[[#This Row],[Niveau 5]],0,(-COUNTBLANK(Tableau3[[#This Row],[Niveau 1]:[Niveau 5]]))))-1))) ->  | O28: =IF(Tableau3[[#This Row],[Catégorie pièce]]="Opérations",VLOOKUP(M28,'Poste de charge'!A:C,2,FALSE),VLOOKUP(CONCATENATE(M28),[1]ARTRDCL!$A$1:$U$25000,2,FALSE)) ->  | T28: =IF(N28="Nouveau",MID(Tableau3[[#This Row],[Article produit/ Poste de charge]],2,15),"") ->  | Y28: =IF(Tableau3[[#This Row],[Catégorie pièce]]="Opérations",$M$5/100,VLOOKUP(CONCATENATE(Tableau3[[#This Row],[Article produit/ Poste de charge]]),[1]ARTRDCL!$A$1:$U$65536,15,FALSE)) ->  | AA28: 0 | AB28: 0 | AM28: 0 | AN28: =IFERROR(VLOOKUP(CONCATENATE(AC28),Tôles!A:W,10,FALSE)/AA28*(IF(AY28=TRUE,BOM!B28,Tableau3[[#This Row],[surface de la tôle (m²)]])),0) -> 0 | AO28: =IF(AY28=TRUE,Paramètres!$B$13/AX28,0) -> 0 | AP28: 0 | AQ28: =IF(AI28>0, (40/AX28 +0.4*AI28)*Paramètres!$B$2/100,0) -> 0 | AR28: =IF(AJ28>0,(0.15/$AX28+$AJ28)*Paramètres!$B$2/100,0) -> 0 | AS28: =IF(AK28="Oui",(13/AX28 +AZ28)*Paramètres!$B$2/100,0) -> 0 | AT28: =IFERROR(VLOOKUP(CONCATENATE(AC28),Tôles!A:W,9,FALSE),0) -> 0 | AU28: 0 | AV28: =IFERROR(AT28/AU28/Paramètres!$B$9,0) -> 0 | AW28: =IFERROR(Paramètres!$B$8/Tableau3[[#This Row],[Surface de la pièce (m²)]]/Paramètres!$B$9,0) -> 0 | AX28: 0 | AY28: FALSE | AZ28: 0.5 | BA28: =IF(OR(ISERROR((5/$AN28 +$X28*0.08*$T28+ ($U28+$V28) * 0.001)*Paramètres!$B$2/100),AD28 = ""),0,(5/$AN28 +$X28*0.08*$T28+ ($U28+$V28) * 0.001)*Paramètres!$B$2/100) -> 0 | BB28: =IF(OR(ISERROR((10/$AN28+$X28*0.007 + ($U28+$V28) * 0.0005)*Paramètres!$B$2/100),AD28= ""),0,(10/$AN28+$X28*0.007 + ($U28+$V28) * 0.0005)*Paramètres!$B$2/100) -> 0
H29: =SUBSTITUTE(TRIM(CONCATENATE(Tableau3[[#This Row],[Niveau 1]]," ",Tableau3[[#This Row],[Niveau 2]]," ",Tableau3[[#This Row],[Niveau 3]]," ",Tableau3[[#This Row],[Niveau 4]]," ",Tableau3[[#This Row],[Niveau 5]]))," ",".") ->  | I29: =IF(COUNTBLANK(Tableau3[[#This Row],[Niveau 1]:[Niveau 5]])=4,"0",LEFT(Tableau3[[#This Row],[Niveau]],(LEN(Tableau3[[#This Row],[Niveau]])-LEN(OFFSET(Tableau3[[#This Row],[Niveau 5]],0,(-COUNTBLANK(Tableau3[[#This Row],[Niveau 1]:[Niveau 5]]))))-1))) ->  | O29: =IF(Tableau3[[#This Row],[Catégorie pièce]]="Opérations",VLOOKUP(M29,'Poste de charge'!A:C,2,FALSE),VLOOKUP(CONCATENATE(M29),[1]ARTRDCL!$A$1:$U$25000,2,FALSE)) ->  | T29: =IF(N29="Nouveau",MID(Tableau3[[#This Row],[Article produit/ Poste de charge]],2,15),"") ->  | Y29: =IF(Tableau3[[#This Row],[Catégorie pièce]]="Opérations",$M$5/100,VLOOKUP(CONCATENATE(Tableau3[[#This Row],[Article produit/ Poste de charge]]),[1]ARTRDCL!$A$1:$U$65536,15,FALSE)) ->  | AA29: 0 | AB29: 0 | AM29: 0 | AN29: =IFERROR(VLOOKUP(CONCATENATE(AC29),Tôles!A:W,10,FALSE)/AA29*(IF(AY29=TRUE,BOM!B29,Tableau3[[#This Row],[surface de la tôle (m²)]])),0) -> 0 | AO29: =IF(AY29=TRUE,Paramètres!$B$13/AX29,0) -> 0 | AP29: 0 | AQ29: =IF(AI29>0, (40/AX29 +0.4*AI29)*Paramètres!$B$2/100,0) -> 0 | AR29: =IF(AJ29>0,(0.15/$AX29+$AJ29)*Paramètres!$B$2/100,0) -> 0 | AS29: =IF(AK29="Oui",(13/AX29 +AZ29)*Paramètres!$B$2/100,0) -> 0 | AT29: =IFERROR(VLOOKUP(CONCATENATE(AC29),Tôles!A:W,9,FALSE),0) -> 0 | AU29: 0 | AV29: =IFERROR(AT29/AU29/Paramètres!$B$9,0) -> 0 | AW29: =IFERROR(Paramètres!$B$8/Tableau3[[#This Row],[Surface de la pièce (m²)]]/Paramètres!$B$9,0) -> 0 | AX29: 0 | AY29: FALSE | AZ29: 0.5 | BA29: =IF(OR(ISERROR((5/$AN29 +$X29*0.08*$T29+ ($U29+$V29) * 0.001)*Paramètres!$B$2/100),AD29 = ""),0,(5/$AN29 +$X29*0.08*$T29+ ($U29+$V29) * 0.001)*Paramètres!$B$2/100) -> 0 | BB29: =IF(OR(ISERROR((10/$AN29+$X29*0.007 + ($U29+$V29) * 0.0005)*Paramètres!$B$2/100),AD29= ""),0,(10/$AN29+$X29*0.007 + ($U29+$V29) * 0.0005)*Paramètres!$B$2/100) -> 0
B30: TRINGLERIE | H30: =SUBSTITUTE(TRIM(CONCATENATE(Tableau3[[#This Row],[Niveau 1]]," ",Tableau3[[#This Row],[Niveau 2]]," ",Tableau3[[#This Row],[Niveau 3]]," ",Tableau3[[#This Row],[Niveau 4]]," ",Tableau3[[#This Row],[Niveau 5]]))," ",".") ->  | I30: =IF(COUNTBLANK(Tableau3[[#This Row],[Niveau 1]:[Niveau 5]])=4,"0",LEFT(Tableau3[[#This Row],[Niveau]],(LEN(Tableau3[[#This Row],[Niveau]])-LEN(OFFSET(Tableau3[[#This Row],[Niveau 5]],0,(-COUNTBLANK(Tableau3[[#This Row],[Niveau 1]:[Niveau 5]]))))-1))) ->  | O30: =IF(Tableau3[[#This Row],[Catégorie pièce]]="Opérations",VLOOKUP(M30,'Poste de charge'!A:C,2,FALSE),VLOOKUP(CONCATENATE(M30),[1]ARTRDCL!$A$1:$U$25000,2,FALSE)) ->  | T30: =IF(N30="Nouveau",MID(Tableau3[[#This Row],[Article produit/ Poste de charge]],2,15),"") ->  | Y30: =IF(Tableau3[[#This Row],[Catégorie pièce]]="Opérations",$M$5/100,VLOOKUP(CONCATENATE(Tableau3[[#This Row],[Article produit/ Poste de charge]]),[1]ARTRDCL!$A$1:$U$65536,15,FALSE)) ->  | AA30: 0 | AB30: 0 | AM30: 0 | AN30: =IFERROR(VLOOKUP(CONCATENATE(AC30),Tôles!A:W,10,FALSE)/AA30*(IF(AY30=TRUE,BOM!B30,Tableau3[[#This Row],[surface de la tôle (m²)]])),0) -> 0 | AO30: =IF(AY30=TRUE,Paramètres!$B$13/AX30,0) -> 0 | AP30: 0 | AQ30: =IF(AI30>0, (40/AX30 +0.4*AI30)*Paramètres!$B$2/100,0) -> 0 | AR30: =IF(AJ30>0,(0.15/$AX30+$AJ30)*Paramètres!$B$2/100,0) -> 0 | AS30: =IF(AK30="Oui",(13/AX30 +AZ30)*Paramètres!$B$2/100,0) -> 0 | AT30: =IFERROR(VLOOKUP(CONCATENATE(AC30),Tôles!A:W,9,FALSE),0) -> 0 | AU30: 0 | AV30: =IFERROR(AT30/AU30/Paramètres!$B$9,0) -> 0 | AW30: =IFERROR(Paramètres!$B$8/Tableau3[[#This Row],[Surface de la pièce (m²)]]/Paramètres!$B$9,0) -> 0 | AX30: 0 | AY30: FALSE | AZ30: 0.5 | BA30: =IF(OR(ISERROR((5/$AN30 +$X30*0.08*$T30+ ($U30+$V30) * 0.001)*Paramètres!$B$2/100),AD30 = ""),0,(5/$AN30 +$X30*0.08*$T30+ ($U30+$V30) * 0.001)*Paramètres!$B$2/100) -> 0 | BB30: =IF(OR(ISERROR((10/$AN30+$X30*0.007 + ($U30+$V30) * 0.0005)*Paramètres!$B$2/100),AD30= ""),0,(10/$AN30+$X30*0.007 + ($U30+$V30) * 0.0005)*Paramètres!$B$2/100) -> 0
H31: =SUBSTITUTE(TRIM(CONCATENATE(Tableau3[[#This Row],[Niveau 1]]," ",Tableau3[[#This Row],[Niveau 2]]," ",Tableau3[[#This Row],[Niveau 3]]," ",Tableau3[[#This Row],[Niveau 4]]," ",Tableau3[[#This Row],[Niveau 5]]))," ",".") ->  | I31: =IF(COUNTBLANK(Tableau3[[#This Row],[Niveau 1]:[Niveau 5]])=4,"0",LEFT(Tableau3[[#This Row],[Niveau]],(LEN(Tableau3[[#This Row],[Niveau]])-LEN(OFFSET(Tableau3[[#This Row],[Niveau 5]],0,(-COUNTBLANK(Tableau3[[#This Row],[Niveau 1]:[Niveau 5]]))))-1))) ->  | O31: =IF(Tableau3[[#This Row],[Catégorie pièce]]="Opérations",VLOOKUP(M31,'Poste de charge'!A:C,2,FALSE),VLOOKUP(CONCATENATE(M31),[1]ARTRDCL!$A$1:$U$25000,2,FALSE)) ->  | T31: =IF(N31="Nouveau",MID(Tableau3[[#This Row],[Article produit/ Poste de charge]],2,15),"") ->  | Y31: =IF(Tableau3[[#This Row],[Catégorie pièce]]="Opérations",$M$5/100,VLOOKUP(CONCATENATE(Tableau3[[#This Row],[Article produit/ Poste de charge]]),[1]ARTRDCL!$A$1:$U$65536,15,FALSE)) ->  | AA31: 0 | AB31: 0 | AM31: 0 | AN31: =IFERROR(VLOOKUP(CONCATENATE(AC31),Tôles!A:W,10,FALSE)/AA31*(IF(AY31=TRUE,BOM!B31,Tableau3[[#This Row],[surface de la tôle (m²)]])),0) -> 0 | AO31: =IF(AY31=TRUE,Paramètres!$B$13/AX31,0) -> 0 | AP31: 0 | AQ31: =IF(AI31>0, (40/AX31 +0.4*AI31)*Paramètres!$B$2/100,0) -> 0 | AR31: =IF(AJ31>0,(0.15/$AX31+$AJ31)*Paramètres!$B$2/100,0) -> 0 | AS31: =IF(AK31="Oui",(13/AX31 +AZ31)*Paramètres!$B$2/100,0) -> 0 | AT31: =IFERROR(VLOOKUP(CONCATENATE(AC31),Tôles!A:W,9,FALSE),0) -> 0 | AU31: 0 | AV31: =IFERROR(AT31/AU31/Paramètres!$B$9,0) -> 0 | AW31: =IFERROR(Paramètres!$B$8/Tableau3[[#This Row],[Surface de la pièce (m²)]]/Paramètres!$B$9,0) -> 0 | AX31: 0 | AY31: FALSE | AZ31: 0.5 | BA31: =IF(OR(ISERROR((5/$AN31 +$X31*0.08*$T31+ ($U31+$V31) * 0.001)*Paramètres!$B$2/100),AD31 = ""),0,(5/$AN31 +$X31*0.08*$T31+ ($U31+$V31) * 0.001)*Paramètres!$B$2/100) -> 0 | BB31: =IF(OR(ISERROR((10/$AN31+$X31*0.007 + ($U31+$V31) * 0.0005)*Paramètres!$B$2/100),AD31= ""),0,(10/$AN31+$X31*0.007 + ($U31+$V31) * 0.0005)*Paramètres!$B$2/100) -> 0
H32: =SUBSTITUTE(TRIM(CONCATENATE(Tableau3[[#This Row],[Niveau 1]]," ",Tableau3[[#This Row],[Niveau 2]]," ",Tableau3[[#This Row],[Niveau 3]]," ",Tableau3[[#This Row],[Niveau 4]]," ",Tableau3[[#This Row],[Niveau 5]]))," ",".") ->  | I32: =IF(COUNTBLANK(Tableau3[[#This Row],[Niveau 1]:[Niveau 5]])=4,"0",LEFT(Tableau3[[#This Row],[Niveau]],(LEN(Tableau3[[#This Row],[Niveau]])-LEN(OFFSET(Tableau3[[#This Row],[Niveau 5]],0,(-COUNTBLANK(Tableau3[[#This Row],[Niveau 1]:[Niveau 5]]))))-1))) ->  | O32: =IF(Tableau3[[#This Row],[Catégorie pièce]]="Opérations",VLOOKUP(M32,'Poste de charge'!A:C,2,FALSE),VLOOKUP(CONCATENATE(M32),[1]ARTRDCL!$A$1:$U$25000,2,FALSE)) ->  | T32: =IF(N32="Nouveau",MID(Tableau3[[#This Row],[Article produit/ Poste de charge]],2,15),"") ->  | Y32: =IF(Tableau3[[#This Row],[Catégorie pièce]]="Opérations",$M$5/100,VLOOKUP(CONCATENATE(Tableau3[[#This Row],[Article produit/ Poste de charge]]),[1]ARTRDCL!$A$1:$U$65536,15,FALSE)) ->  | AA32: 0 | AB32: 0 | AM32: 0 | AN32: =IFERROR(VLOOKUP(CONCATENATE(AC32),Tôles!A:W,10,FALSE)/AA32*(IF(AY32=TRUE,BOM!B32,Tableau3[[#This Row],[surface de la tôle (m²)]])),0) -> 0 | AO32: =IF(AY32=TRUE,Paramètres!$B$13/AX32,0) -> 0 | AP32: 0 | AQ32: =IF(AI32>0, (40/AX32 +0.4*AI32)*Paramètres!$B$2/100,0) -> 0 | AR32: =IF(AJ32>0,(0.15/$AX32+$AJ32)*Paramètres!$B$2/100,0) -> 0 | AS32: =IF(AK32="Oui",(13/AX32 +AZ32)*Paramètres!$B$2/100,0) -> 0 | AT32: =IFERROR(VLOOKUP(CONCATENATE(AC32),Tôles!A:W,9,FALSE),0) -> 0 | AU32: 0 | AV32: =IFERROR(AT32/AU32/Paramètres!$B$9,0) -> 0 | AW32: =IFERROR(Paramètres!$B$8/Tableau3[[#This Row],[Surface de la pièce (m²)]]/Paramètres!$B$9,0) -> 0 | AX32: 0 | AY32: FALSE | AZ32: 0.5 | BA32: =IF(OR(ISERROR((5/$AN32 +$X32*0.08*$T32+ ($U32+$V32) * 0.001)*Paramètres!$B$2/100),AD32 = ""),0,(5/$AN32 +$X32*0.08*$T32+ ($U32+$V32) * 0.001)*Paramètres!$B$2/100) -> 0 | BB32: =IF(OR(ISERROR((10/$AN32+$X32*0.007 + ($U32+$V32) * 0.0005)*Paramètres!$B$2/100),AD32= ""),0,(10/$AN32+$X32*0.007 + ($U32+$V32) * 0.0005)*Paramètres!$B$2/100) -> 0
H33: =SUBSTITUTE(TRIM(CONCATENATE(Tableau3[[#This Row],[Niveau 1]]," ",Tableau3[[#This Row],[Niveau 2]]," ",Tableau3[[#This Row],[Niveau 3]]," ",Tableau3[[#This Row],[Niveau 4]]," ",Tableau3[[#This Row],[Niveau 5]]))," ",".") ->  | I33: =IF(COUNTBLANK(Tableau3[[#This Row],[Niveau 1]:[Niveau 5]])=4,"0",LEFT(Tableau3[[#This Row],[Niveau]],(LEN(Tableau3[[#This Row],[Niveau]])-LEN(OFFSET(Tableau3[[#This Row],[Niveau 5]],0,(-COUNTBLANK(Tableau3[[#This Row],[Niveau 1]:[Niveau 5]]))))-1))) ->  | O33: =IF(Tableau3[[#This Row],[Catégorie pièce]]="Opérations",VLOOKUP(M33,'Poste de charge'!A:C,2,FALSE),VLOOKUP(CONCATENATE(M33),[1]ARTRDCL!$A$1:$U$25000,2,FALSE)) ->  | T33: =IF(N33="Nouveau",MID(Tableau3[[#This Row],[Article produit/ Poste de charge]],2,15),"") ->  | Y33: =IF(Tableau3[[#This Row],[Catégorie pièce]]="Opérations",$M$5/100,VLOOKUP(CONCATENATE(Tableau3[[#This Row],[Article produit/ Poste de charge]]),[1]ARTRDCL!$A$1:$U$65536,15,FALSE)) ->  | AA33: 0 | AB33: 0 | AM33: 0 | AN33: =IFERROR(VLOOKUP(CONCATENATE(AC33),Tôles!A:W,10,FALSE)/AA33*(IF(AY33=TRUE,BOM!B33,Tableau3[[#This Row],[surface de la tôle (m²)]])),0) -> 0 | AO33: =IF(AY33=TRUE,Paramètres!$B$13/AX33,0) -> 0 | AP33: 0 | AQ33: =IF(AI33>0, (40/AX33 +0.4*AI33)*Paramètres!$B$2/100,0) -> 0 | AR33: =IF(AJ33>0,(0.15/$AX33+$AJ33)*Paramètres!$B$2/100,0) -> 0 | AS33: =IF(AK33="Oui",(13/AX33 +AZ33)*Paramètres!$B$2/100,0) -> 0 | AT33: =IFERROR(VLOOKUP(CONCATENATE(AC33),Tôles!A:W,9,FALSE),0) -> 0 | AU33: 0 | AV33: =IFERROR(AT33/AU33/Paramètres!$B$9,0) -> 0 | AW33: =IFERROR(Paramètres!$B$8/Tableau3[[#This Row],[Surface de la pièce (m²)]]/Paramètres!$B$9,0) -> 0 | AX33: 0 | AY33: FALSE | AZ33: 0.5 | BA33: =IF(OR(ISERROR((5/$AN33 +$X33*0.08*$T33+ ($U33+$V33) * 0.001)*Paramètres!$B$2/100),AD33 = ""),0,(5/$AN33 +$X33*0.08*$T33+ ($U33+$V33) * 0.001)*Paramètres!$B$2/100) -> 0 | BB33: =IF(OR(ISERROR((10/$AN33+$X33*0.007 + ($U33+$V33) * 0.0005)*Paramètres!$B$2/100),AD33= ""),0,(10/$AN33+$X33*0.007 + ($U33+$V33) * 0.0005)*Paramètres!$B$2/100) -> 0
H34: =SUBSTITUTE(TRIM(CONCATENATE(Tableau3[[#This Row],[Niveau 1]]," ",Tableau3[[#This Row],[Niveau 2]]," ",Tableau3[[#This Row],[Niveau 3]]," ",Tableau3[[#This Row],[Niveau 4]]," ",Tableau3[[#This Row],[Niveau 5]]))," ",".") ->  | I34: =IF(COUNTBLANK(Tableau3[[#This Row],[Niveau 1]:[Niveau 5]])=4,"0",LEFT(Tableau3[[#This Row],[Niveau]],(LEN(Tableau3[[#This Row],[Niveau]])-LEN(OFFSET(Tableau3[[#This Row],[Niveau 5]],0,(-COUNTBLANK(Tableau3[[#This Row],[Niveau 1]:[Niveau 5]]))))-1))) ->  | O34: =IF(Tableau3[[#This Row],[Catégorie pièce]]="Opérations",VLOOKUP(M34,'Poste de charge'!A:C,2,FALSE),VLOOKUP(CONCATENATE(M34),[1]ARTRDCL!$A$1:$U$25000,2,FALSE)) ->  | T34: =IF(N34="Nouveau",MID(Tableau3[[#This Row],[Article produit/ Poste de charge]],2,15),"") ->  | Y34: =IF(Tableau3[[#This Row],[Catégorie pièce]]="Opérations",$M$5/100,VLOOKUP(CONCATENATE(Tableau3[[#This Row],[Article produit/ Poste de charge]]),[1]ARTRDCL!$A$1:$U$65536,15,FALSE)) ->  | AA34: 0 | AB34: 0 | AM34: 0 | AN34: =IFERROR(VLOOKUP(CONCATENATE(AC34),Tôles!A:W,10,FALSE)/AA34*(IF(AY34=TRUE,BOM!B34,Tableau3[[#This Row],[surface de la tôle (m²)]])),0) -> 0 | AO34: =IF(AY34=TRUE,Paramètres!$B$13/AX34,0) -> 0 | AP34: 0 | AQ34: =IF(AI34>0, (40/AX34 +0.4*AI34)*Paramètres!$B$2/100,0) -> 0 | AR34: =IF(AJ34>0,(0.15/$AX34+$AJ34)*Paramètres!$B$2/100,0) -> 0 | AS34: =IF(AK34="Oui",(13/AX34 +AZ34)*Paramètres!$B$2/100,0) -> 0 | AT34: =IFERROR(VLOOKUP(CONCATENATE(AC34),Tôles!A:W,9,FALSE),0) -> 0 | AU34: 0 | AV34: =IFERROR(AT34/AU34/Paramètres!$B$9,0) -> 0 | AW34: =IFERROR(Paramètres!$B$8/Tableau3[[#This Row],[Surface de la pièce (m²)]]/Paramètres!$B$9,0) -> 0 | AX34: 0 | AY34: FALSE | AZ34: 0.5 | BA34: =IF(OR(ISERROR((5/$AN34 +$X34*0.08*$T34+ ($U34+$V34) * 0.001)*Paramètres!$B$2/100),AD34 = ""),0,(5/$AN34 +$X34*0.08*$T34+ ($U34+$V34) * 0.001)*Paramètres!$B$2/100) -> 0 | BB34: =IF(OR(ISERROR((10/$AN34+$X34*0.007 + ($U34+$V34) * 0.0005)*Paramètres!$B$2/100),AD34= ""),0,(10/$AN34+$X34*0.007 + ($U34+$V34) * 0.0005)*Paramètres!$B$2/100) -> 0
H35: =SUBSTITUTE(TRIM(CONCATENATE(Tableau3[[#This Row],[Niveau 1]]," ",Tableau3[[#This Row],[Niveau 2]]," ",Tableau3[[#This Row],[Niveau 3]]," ",Tableau3[[#This Row],[Niveau 4]]," ",Tableau3[[#This Row],[Niveau 5]]))," ",".") ->  | I35: =IF(COUNTBLANK(Tableau3[[#This Row],[Niveau 1]:[Niveau 5]])=4,"0",LEFT(Tableau3[[#This Row],[Niveau]],(LEN(Tableau3[[#This Row],[Niveau]])-LEN(OFFSET(Tableau3[[#This Row],[Niveau 5]],0,(-COUNTBLANK(Tableau3[[#This Row],[Niveau 1]:[Niveau 5]]))))-1))) ->  | O35: =IF(Tableau3[[#This Row],[Catégorie pièce]]="Opérations",VLOOKUP(M35,'Poste de charge'!A:C,2,FALSE),VLOOKUP(CONCATENATE(M35),[1]ARTRDCL!$A$1:$U$25000,2,FALSE)) ->  | T35: =IF(N35="Nouveau",MID(Tableau3[[#This Row],[Article produit/ Poste de charge]],2,15),"") ->  | Y35: =IF(Tableau3[[#This Row],[Catégorie pièce]]="Opérations",$M$5/100,VLOOKUP(CONCATENATE(Tableau3[[#This Row],[Article produit/ Poste de charge]]),[1]ARTRDCL!$A$1:$U$65536,15,FALSE)) ->  | AA35: 0 | AB35: 0 | AM35: 0 | AN35: =IFERROR(VLOOKUP(CONCATENATE(AC35),Tôles!A:W,10,FALSE)/AA35*(IF(AY35=TRUE,BOM!B35,Tableau3[[#This Row],[surface de la tôle (m²)]])),0) -> 0 | AO35: =IF(AY35=TRUE,Paramètres!$B$13/AX35,0) -> 0 | AP35: 0 | AQ35: =IF(AI35>0, (40/AX35 +0.4*AI35)*Paramètres!$B$2/100,0) -> 0 | AR35: =IF(AJ35>0,(0.15/$AX35+$AJ35)*Paramètres!$B$2/100,0) -> 0 | AS35: =IF(AK35="Oui",(13/AX35 +AZ35)*Paramètres!$B$2/100,0) -> 0 | AT35: =IFERROR(VLOOKUP(CONCATENATE(AC35),Tôles!A:W,9,FALSE),0) -> 0 | AU35: 0 | AV35: =IFERROR(AT35/AU35/Paramètres!$B$9,0) -> 0 | AW35: =IFERROR(Paramètres!$B$8/Tableau3[[#This Row],[Surface de la pièce (m²)]]/Paramètres!$B$9,0) -> 0 | AX35: 0 | AY35: FALSE | AZ35: 0.5 | BA35: =IF(OR(ISERROR((5/$AN35 +$X35*0.08*$T35+ ($U35+$V35) * 0.001)*Paramètres!$B$2/100),AD35 = ""),0,(5/$AN35 +$X35*0.08*$T35+ ($U35+$V35) * 0.001)*Paramètres!$B$2/100) -> 0 | BB35: =IF(OR(ISERROR((10/$AN35+$X35*0.007 + ($U35+$V35) * 0.0005)*Paramètres!$B$2/100),AD35= ""),0,(10/$AN35+$X35*0.007 + ($U35+$V35) * 0.0005)*Paramètres!$B$2/100) -> 0
H36: =SUBSTITUTE(TRIM(CONCATENATE(Tableau3[[#This Row],[Niveau 1]]," ",Tableau3[[#This Row],[Niveau 2]]," ",Tableau3[[#This Row],[Niveau 3]]," ",Tableau3[[#This Row],[Niveau 4]]," ",Tableau3[[#This Row],[Niveau 5]]))," ",".") ->  | I36: =IF(COUNTBLANK(Tableau3[[#This Row],[Niveau 1]:[Niveau 5]])=4,"0",LEFT(Tableau3[[#This Row],[Niveau]],(LEN(Tableau3[[#This Row],[Niveau]])-LEN(OFFSET(Tableau3[[#This Row],[Niveau 5]],0,(-COUNTBLANK(Tableau3[[#This Row],[Niveau 1]:[Niveau 5]]))))-1))) ->  | O36: =IF(Tableau3[[#This Row],[Catégorie pièce]]="Opérations",VLOOKUP(M36,'Poste de charge'!A:C,2,FALSE),VLOOKUP(CONCATENATE(M36),[1]ARTRDCL!$A$1:$U$25000,2,FALSE)) ->  | T36: =IF(N36="Nouveau",MID(Tableau3[[#This Row],[Article produit/ Poste de charge]],2,15),"") ->  | Y36: =IF(Tableau3[[#This Row],[Catégorie pièce]]="Opérations",$M$5/100,VLOOKUP(CONCATENATE(Tableau3[[#This Row],[Article produit/ Poste de charge]]),[1]ARTRDCL!$A$1:$U$65536,15,FALSE)) ->  | AA36: 0 | AB36: 0 | AM36: 0 | AN36: =IFERROR(VLOOKUP(CONCATENATE(AC36),Tôles!A:W,10,FALSE)/AA36*(IF(AY36=TRUE,BOM!B36,Tableau3[[#This Row],[surface de la tôle (m²)]])),0) -> 0 | AO36: =IF(AY36=TRUE,Paramètres!$B$13/AX36,0) -> 0 | AP36: 0 | AQ36: =IF(AI36>0, (40/AX36 +0.4*AI36)*Paramètres!$B$2/100,0) -> 0 | AR36: =IF(AJ36>0,(0.15/$AX36+$AJ36)*Paramètres!$B$2/100,0) -> 0 | AS36: =IF(AK36="Oui",(13/AX36 +AZ36)*Paramètres!$B$2/100,0) -> 0 | AT36: =IFERROR(VLOOKUP(CONCATENATE(AC36),Tôles!A:W,9,FALSE),0) -> 0 | AU36: 0 | AV36: =IFERROR(AT36/AU36/Paramètres!$B$9,0) -> 0 | AW36: =IFERROR(Paramètres!$B$8/Tableau3[[#This Row],[Surface de la pièce (m²)]]/Paramètres!$B$9,0) -> 0 | AX36: 0 | AY36: FALSE | AZ36: 0.5 | BA36: =IF(OR(ISERROR((5/$AN36 +$X36*0.08*$T36+ ($U36+$V36) * 0.001)*Paramètres!$B$2/100),AD36 = ""),0,(5/$AN36 +$X36*0.08*$T36+ ($U36+$V36) * 0.001)*Paramètres!$B$2/100) -> 0 | BB36: =IF(OR(ISERROR((10/$AN36+$X36*0.007 + ($U36+$V36) * 0.0005)*Paramètres!$B$2/100),AD36= ""),0,(10/$AN36+$X36*0.007 + ($U36+$V36) * 0.0005)*Paramètres!$B$2/100) -> 0
H37: =SUBSTITUTE(TRIM(CONCATENATE(Tableau3[[#This Row],[Niveau 1]]," ",Tableau3[[#This Row],[Niveau 2]]," ",Tableau3[[#This Row],[Niveau 3]]," ",Tableau3[[#This Row],[Niveau 4]]," ",Tableau3[[#This Row],[Niveau 5]]))," ",".") ->  | I37: =IF(COUNTBLANK(Tableau3[[#This Row],[Niveau 1]:[Niveau 5]])=4,"0",LEFT(Tableau3[[#This Row],[Niveau]],(LEN(Tableau3[[#This Row],[Niveau]])-LEN(OFFSET(Tableau3[[#This Row],[Niveau 5]],0,(-COUNTBLANK(Tableau3[[#This Row],[Niveau 1]:[Niveau 5]]))))-1))) ->  | O37: =IF(Tableau3[[#This Row],[Catégorie pièce]]="Opérations",VLOOKUP(M37,'Poste de charge'!A:C,2,FALSE),VLOOKUP(CONCATENATE(M37),[1]ARTRDCL!$A$1:$U$25000,2,FALSE)) ->  | T37: =IF(N37="Nouveau",MID(Tableau3[[#This Row],[Article produit/ Poste de charge]],2,15),"") ->  | Y37: =IF(Tableau3[[#This Row],[Catégorie pièce]]="Opérations",$M$5/100,VLOOKUP(CONCATENATE(Tableau3[[#This Row],[Article produit/ Poste de charge]]),[1]ARTRDCL!$A$1:$U$65536,15,FALSE)) ->  | AA37: 0 | AB37: 0 | AM37: 0 | AN37: =IFERROR(VLOOKUP(CONCATENATE(AC37),Tôles!A:W,10,FALSE)/AA37*(IF(AY37=TRUE,BOM!B37,Tableau3[[#This Row],[surface de la tôle (m²)]])),0) -> 0 | AO37: =IF(AY37=TRUE,Paramètres!$B$13/AX37,0) -> 0 | AP37: 0 | AQ37: =IF(AI37>0, (40/AX37 +0.4*AI37)*Paramètres!$B$2/100,0) -> 0 | AR37: =IF(AJ37>0,(0.15/$AX37+$AJ37)*Paramètres!$B$2/100,0) -> 0 | AS37: =IF(AK37="Oui",(13/AX37 +AZ37)*Paramètres!$B$2/100,0) -> 0 | AT37: =IFERROR(VLOOKUP(CONCATENATE(AC37),Tôles!A:W,9,FALSE),0) -> 0 | AU37: 0 | AV37: =IFERROR(AT37/AU37/Paramètres!$B$9,0) -> 0 | AW37: =IFERROR(Paramètres!$B$8/Tableau3[[#This Row],[Surface de la pièce (m²)]]/Paramètres!$B$9,0) -> 0 | AX37: 0 | AY37: FALSE | AZ37: 0.5 | BA37: =IF(OR(ISERROR((5/$AN37 +$X37*0.08*$T37+ ($U37+$V37) * 0.001)*Paramètres!$B$2/100),AD37 = ""),0,(5/$AN37 +$X37*0.08*$T37+ ($U37+$V37) * 0.001)*Paramètres!$B$2/100) -> 0 | BB37: =IF(OR(ISERROR((10/$AN37+$X37*0.007 + ($U37+$V37) * 0.0005)*Paramètres!$B$2/100),AD37= ""),0,(10/$AN37+$X37*0.007 + ($U37+$V37) * 0.0005)*Paramètres!$B$2/100) -> 0
H38: =SUBSTITUTE(TRIM(CONCATENATE(Tableau3[[#This Row],[Niveau 1]]," ",Tableau3[[#This Row],[Niveau 2]]," ",Tableau3[[#This Row],[Niveau 3]]," ",Tableau3[[#This Row],[Niveau 4]]," ",Tableau3[[#This Row],[Niveau 5]]))," ",".") ->  | I38: =IF(COUNTBLANK(Tableau3[[#This Row],[Niveau 1]:[Niveau 5]])=4,"0",LEFT(Tableau3[[#This Row],[Niveau]],(LEN(Tableau3[[#This Row],[Niveau]])-LEN(OFFSET(Tableau3[[#This Row],[Niveau 5]],0,(-COUNTBLANK(Tableau3[[#This Row],[Niveau 1]:[Niveau 5]]))))-1))) ->  | O38: =IF(Tableau3[[#This Row],[Catégorie pièce]]="Opérations",VLOOKUP(M38,'Poste de charge'!A:C,2,FALSE),VLOOKUP(CONCATENATE(M38),[1]ARTRDCL!$A$1:$U$25000,2,FALSE)) ->  | T38: =IF(N38="Nouveau",MID(Tableau3[[#This Row],[Article produit/ Poste de charge]],2,15),"") ->  | Y38: =IF(Tableau3[[#This Row],[Catégorie pièce]]="Opérations",$M$5/100,VLOOKUP(CONCATENATE(Tableau3[[#This Row],[Article produit/ Poste de charge]]),[1]ARTRDCL!$A$1:$U$65536,15,FALSE)) ->  | AA38: 0 | AB38: 0 | AM38: 0 | AN38: =IFERROR(VLOOKUP(CONCATENATE(AC38),Tôles!A:W,10,FALSE)/AA38*(IF(AY38=TRUE,BOM!B38,Tableau3[[#This Row],[surface de la tôle (m²)]])),0) -> 0 | AO38: =IF(AY38=TRUE,Paramètres!$B$13/AX38,0) -> 0 | AP38: 0 | AQ38: =IF(AI38>0, (40/AX38 +0.4*AI38)*Paramètres!$B$2/100,0) -> 0 | AR38: =IF(AJ38>0,(0.15/$AX38+$AJ38)*Paramètres!$B$2/100,0) -> 0 | AS38: =IF(AK38="Oui",(13/AX38 +AZ38)*Paramètres!$B$2/100,0) -> 0 | AT38: =IFERROR(VLOOKUP(CONCATENATE(AC38),Tôles!A:W,9,FALSE),0) -> 0 | AU38: 0 | AV38: =IFERROR(AT38/AU38/Paramètres!$B$9,0) -> 0 | AW38: =IFERROR(Paramètres!$B$8/Tableau3[[#This Row],[Surface de la pièce (m²)]]/Paramètres!$B$9,0) -> 0 | AX38: 0 | AY38: FALSE | AZ38: 0.5 | BA38: =IF(OR(ISERROR((5/$AN38 +$X38*0.08*$T38+ ($U38+$V38) * 0.001)*Paramètres!$B$2/100),AD38 = ""),0,(5/$AN38 +$X38*0.08*$T38+ ($U38+$V38) * 0.001)*Paramètres!$B$2/100) -> 0 | BB38: =IF(OR(ISERROR((10/$AN38+$X38*0.007 + ($U38+$V38) * 0.0005)*Paramètres!$B$2/100),AD38= ""),0,(10/$AN38+$X38*0.007 + ($U38+$V38) * 0.0005)*Paramètres!$B$2/100) -> 0
H39: =SUBSTITUTE(TRIM(CONCATENATE(Tableau3[[#This Row],[Niveau 1]]," ",Tableau3[[#This Row],[Niveau 2]]," ",Tableau3[[#This Row],[Niveau 3]]," ",Tableau3[[#This Row],[Niveau 4]]," ",Tableau3[[#This Row],[Niveau 5]]))," ",".") ->  | I39: =IF(COUNTBLANK(Tableau3[[#This Row],[Niveau 1]:[Niveau 5]])=4,"0",LEFT(Tableau3[[#This Row],[Niveau]],(LEN(Tableau3[[#This Row],[Niveau]])-LEN(OFFSET(Tableau3[[#This Row],[Niveau 5]],0,(-COUNTBLANK(Tableau3[[#This Row],[Niveau 1]:[Niveau 5]]))))-1))) ->  | O39: =IF(Tableau3[[#This Row],[Catégorie pièce]]="Opérations",VLOOKUP(M39,'Poste de charge'!A:C,2,FALSE),VLOOKUP(CONCATENATE(M39),[1]ARTRDCL!$A$1:$U$25000,2,FALSE)) ->  | T39: =IF(N39="Nouveau",MID(Tableau3[[#This Row],[Article produit/ Poste de charge]],2,15),"") ->  | Y39: =IF(Tableau3[[#This Row],[Catégorie pièce]]="Opérations",$M$5/100,VLOOKUP(CONCATENATE(Tableau3[[#This Row],[Article produit/ Poste de charge]]),[1]ARTRDCL!$A$1:$U$65536,15,FALSE)) ->  | AA39: 0 | AB39: 0 | AM39: 0 | AN39: =IFERROR(VLOOKUP(CONCATENATE(AC39),Tôles!A:W,10,FALSE)/AA39*(IF(AY39=TRUE,BOM!B39,Tableau3[[#This Row],[surface de la tôle (m²)]])),0) -> 0 | AO39: =IF(AY39=TRUE,Paramètres!$B$13/AX39,0) -> 0 | AP39: 0 | AQ39: =IF(AI39>0, (40/AX39 +0.4*AI39)*Paramètres!$B$2/100,0) -> 0 | AR39: =IF(AJ39>0,(0.15/$AX39+$AJ39)*Paramètres!$B$2/100,0) -> 0 | AS39: =IF(AK39="Oui",(13/AX39 +AZ39)*Paramètres!$B$2/100,0) -> 0 | AT39: =IFERROR(VLOOKUP(CONCATENATE(AC39),Tôles!A:W,9,FALSE),0) -> 0 | AU39: 0 | AV39: =IFERROR(AT39/AU39/Paramètres!$B$9,0) -> 0 | AW39: =IFERROR(Paramètres!$B$8/Tableau3[[#This Row],[Surface de la pièce (m²)]]/Paramètres!$B$9,0) -> 0 | AX39: 0 | AY39: FALSE | AZ39: 0.5 | BA39: =IF(OR(ISERROR((5/$AN39 +$X39*0.08*$T39+ ($U39+$V39) * 0.001)*Paramètres!$B$2/100),AD39 = ""),0,(5/$AN39 +$X39*0.08*$T39+ ($U39+$V39) * 0.001)*Paramètres!$B$2/100) -> 0 | BB39: =IF(OR(ISERROR((10/$AN39+$X39*0.007 + ($U39+$V39) * 0.0005)*Paramètres!$B$2/100),AD39= ""),0,(10/$AN39+$X39*0.007 + ($U39+$V39) * 0.0005)*Paramètres!$B$2/100) -> 0
H40: =SUBSTITUTE(TRIM(CONCATENATE(Tableau3[[#This Row],[Niveau 1]]," ",Tableau3[[#This Row],[Niveau 2]]," ",Tableau3[[#This Row],[Niveau 3]]," ",Tableau3[[#This Row],[Niveau 4]]," ",Tableau3[[#This Row],[Niveau 5]]))," ",".") ->  | I40: =IF(COUNTBLANK(Tableau3[[#This Row],[Niveau 1]:[Niveau 5]])=4,"0",LEFT(Tableau3[[#This Row],[Niveau]],(LEN(Tableau3[[#This Row],[Niveau]])-LEN(OFFSET(Tableau3[[#This Row],[Niveau 5]],0,(-COUNTBLANK(Tableau3[[#This Row],[Niveau 1]:[Niveau 5]]))))-1))) ->  | O40: =IF(Tableau3[[#This Row],[Catégorie pièce]]="Opérations",VLOOKUP(M40,'Poste de charge'!A:C,2,FALSE),VLOOKUP(CONCATENATE(M40),[1]ARTRDCL!$A$1:$U$25000,2,FALSE)) ->  | T40: =IF(N40="Nouveau",MID(Tableau3[[#This Row],[Article produit/ Poste de charge]],2,15),"") ->  | Y40: =IF(Tableau3[[#This Row],[Catégorie pièce]]="Opérations",$M$5/100,VLOOKUP(CONCATENATE(Tableau3[[#This Row],[Article produit/ Poste de charge]]),[1]ARTRDCL!$A$1:$U$65536,15,FALSE)) ->  | AA40: 0 | AB40: 0 | AM40: 0 | AN40: =IFERROR(VLOOKUP(CONCATENATE(AC40),Tôles!A:W,10,FALSE)/AA40*(IF(AY40=TRUE,BOM!B40,Tableau3[[#This Row],[surface de la tôle (m²)]])),0) -> 0 | AO40: =IF(AY40=TRUE,Paramètres!$B$13/AX40,0) -> 0 | AP40: 0 | AQ40: =IF(AI40>0, (40/AX40 +0.4*AI40)*Paramètres!$B$2/100,0) -> 0 | AR40: =IF(AJ40>0,(0.15/$AX40+$AJ40)*Paramètres!$B$2/100,0) -> 0 | AS40: =IF(AK40="Oui",(13/AX40 +AZ40)*Paramètres!$B$2/100,0) -> 0 | AT40: =IFERROR(VLOOKUP(CONCATENATE(AC40),Tôles!A:W,9,FALSE),0) -> 0 | AU40: 0 | AV40: =IFERROR(AT40/AU40/Paramètres!$B$9,0) -> 0 | AW40: =IFERROR(Paramètres!$B$8/Tableau3[[#This Row],[Surface de la pièce (m²)]]/Paramètres!$B$9,0) -> 0 | AX40: 0 | AY40: FALSE | AZ40: 0.5 | BA40: =IF(OR(ISERROR((5/$AN40 +$X40*0.08*$T40+ ($U40+$V40) * 0.001)*Paramètres!$B$2/100),AD40 = ""),0,(5/$AN40 +$X40*0.08*$T40+ ($U40+$V40) * 0.001)*Paramètres!$B$2/100) -> 0 | BB40: =IF(OR(ISERROR((10/$AN40+$X40*0.007 + ($U40+$V40) * 0.0005)*Paramètres!$B$2/100),AD40= ""),0,(10/$AN40+$X40*0.007 + ($U40+$V40) * 0.0005)*Paramètres!$B$2/100) -> 0
H41: =SUBSTITUTE(TRIM(CONCATENATE(Tableau3[[#This Row],[Niveau 1]]," ",Tableau3[[#This Row],[Niveau 2]]," ",Tableau3[[#This Row],[Niveau 3]]," ",Tableau3[[#This Row],[Niveau 4]]," ",Tableau3[[#This Row],[Niveau 5]]))," ",".") ->  | I41: =IF(COUNTBLANK(Tableau3[[#This Row],[Niveau 1]:[Niveau 5]])=4,"0",LEFT(Tableau3[[#This Row],[Niveau]],(LEN(Tableau3[[#This Row],[Niveau]])-LEN(OFFSET(Tableau3[[#This Row],[Niveau 5]],0,(-COUNTBLANK(Tableau3[[#This Row],[Niveau 1]:[Niveau 5]]))))-1))) ->  | O41: =IF(Tableau3[[#This Row],[Catégorie pièce]]="Opérations",VLOOKUP(M41,'Poste de charge'!A:C,2,FALSE),VLOOKUP(CONCATENATE(M41),[1]ARTRDCL!$A$1:$U$25000,2,FALSE)) ->  | T41: =IF(N41="Nouveau",MID(Tableau3[[#This Row],[Article produit/ Poste de charge]],2,15),"") ->  | Y41: =IF(Tableau3[[#This Row],[Catégorie pièce]]="Opérations",$M$5/100,VLOOKUP(CONCATENATE(Tableau3[[#This Row],[Article produit/ Poste de charge]]),[1]ARTRDCL!$A$1:$U$65536,15,FALSE)) ->  | AA41: 0 | AB41: 0 | AM41: 0 | AN41: =IFERROR(VLOOKUP(CONCATENATE(AC41),Tôles!A:W,10,FALSE)/AA41*(IF(AY41=TRUE,BOM!B41,Tableau3[[#This Row],[surface de la tôle (m²)]])),0) -> 0 | AO41: =IF(AY41=TRUE,Paramètres!$B$13/AX41,0) -> 0 | AP41: 0 | AQ41: =IF(AI41>0, (40/AX41 +0.4*AI41)*Paramètres!$B$2/100,0) -> 0 | AR41: =IF(AJ41>0,(0.15/$AX41+$AJ41)*Paramètres!$B$2/100,0) -> 0 | AS41: =IF(AK41="Oui",(13/AX41 +AZ41)*Paramètres!$B$2/100,0) -> 0 | AT41: =IFERROR(VLOOKUP(CONCATENATE(AC41),Tôles!A:W,9,FALSE),0) -> 0 | AU41: 0 | AV41: =IFERROR(AT41/AU41/Paramètres!$B$9,0) -> 0 | AW41: =IFERROR(Paramètres!$B$8/Tableau3[[#This Row],[Surface de la pièce (m²)]]/Paramètres!$B$9,0) -> 0 | AX41: 0 | AY41: FALSE | AZ41: 0.5 | BA41: =IF(OR(ISERROR((5/$AN41 +$X41*0.08*$T41+ ($U41+$V41) * 0.001)*Paramètres!$B$2/100),AD41 = ""),0,(5/$AN41 +$X41*0.08*$T41+ ($U41+$V41) * 0.001)*Paramètres!$B$2/100) -> 0 | BB41: =IF(OR(ISERROR((10/$AN41+$X41*0.007 + ($U41+$V41) * 0.0005)*Paramètres!$B$2/100),AD41= ""),0,(10/$AN41+$X41*0.007 + ($U41+$V41) * 0.0005)*Paramètres!$B$2/100) -> 0
H42: =SUBSTITUTE(TRIM(CONCATENATE(Tableau3[[#This Row],[Niveau 1]]," ",Tableau3[[#This Row],[Niveau 2]]," ",Tableau3[[#This Row],[Niveau 3]]," ",Tableau3[[#This Row],[Niveau 4]]," ",Tableau3[[#This Row],[Niveau 5]]))," ",".") ->  | I42: =IF(COUNTBLANK(Tableau3[[#This Row],[Niveau 1]:[Niveau 5]])=4,"0",LEFT(Tableau3[[#This Row],[Niveau]],(LEN(Tableau3[[#This Row],[Niveau]])-LEN(OFFSET(Tableau3[[#This Row],[Niveau 5]],0,(-COUNTBLANK(Tableau3[[#This Row],[Niveau 1]:[Niveau 5]]))))-1))) ->  | O42: =IF(Tableau3[[#This Row],[Catégorie pièce]]="Opérations",VLOOKUP(M42,'Poste de charge'!A:C,2,FALSE),VLOOKUP(CONCATENATE(M42),[1]ARTRDCL!$A$1:$U$25000,2,FALSE)) ->  | T42: =IF(N42="Nouveau",MID(Tableau3[[#This Row],[Article produit/ Poste de charge]],2,15),"") ->  | Y42: =IF(Tableau3[[#This Row],[Catégorie pièce]]="Opérations",$M$5/100,VLOOKUP(CONCATENATE(Tableau3[[#This Row],[Article produit/ Poste de charge]]),[1]ARTRDCL!$A$1:$U$65536,15,FALSE)) ->  | AA42: 0 | AB42: 0 | AM42: 0 | AN42: =IFERROR(VLOOKUP(CONCATENATE(AC42),Tôles!A:W,10,FALSE)/AA42*(IF(AY42=TRUE,BOM!B42,Tableau3[[#This Row],[surface de la tôle (m²)]])),0) -> 0 | AO42: =IF(AY42=TRUE,Paramètres!$B$13/AX42,0) -> 0 | AP42: 0 | AQ42: =IF(AI42>0, (40/AX42 +0.4*AI42)*Paramètres!$B$2/100,0) -> 0 | AR42: =IF(AJ42>0,(0.15/$AX42+$AJ42)*Paramètres!$B$2/100,0) -> 0 | AS42: =IF(AK42="Oui",(13/AX42 +AZ42)*Paramètres!$B$2/100,0) -> 0 | AT42: =IFERROR(VLOOKUP(CONCATENATE(AC42),Tôles!A:W,9,FALSE),0) -> 0 | AU42: 0 | AV42: =IFERROR(AT42/AU42/Paramètres!$B$9,0) -> 0 | AW42: =IFERROR(Paramètres!$B$8/Tableau3[[#This Row],[Surface de la pièce (m²)]]/Paramètres!$B$9,0) -> 0 | AX42: 0 | AY42: FALSE | AZ42: 0.5 | BA42: =IF(OR(ISERROR((5/$AN42 +$X42*0.08*$T42+ ($U42+$V42) * 0.001)*Paramètres!$B$2/100),AD42 = ""),0,(5/$AN42 +$X42*0.08*$T42+ ($U42+$V42) * 0.001)*Paramètres!$B$2/100) -> 0 | BB42: =IF(OR(ISERROR((10/$AN42+$X42*0.007 + ($U42+$V42) * 0.0005)*Paramètres!$B$2/100),AD42= ""),0,(10/$AN42+$X42*0.007 + ($U42+$V42) * 0.0005)*Paramètres!$B$2/100) -> 0
H43: =SUBSTITUTE(TRIM(CONCATENATE(Tableau3[[#This Row],[Niveau 1]]," ",Tableau3[[#This Row],[Niveau 2]]," ",Tableau3[[#This Row],[Niveau 3]]," ",Tableau3[[#This Row],[Niveau 4]]," ",Tableau3[[#This Row],[Niveau 5]]))," ",".") ->  | I43: =IF(COUNTBLANK(Tableau3[[#This Row],[Niveau 1]:[Niveau 5]])=4,"0",LEFT(Tableau3[[#This Row],[Niveau]],(LEN(Tableau3[[#This Row],[Niveau]])-LEN(OFFSET(Tableau3[[#This Row],[Niveau 5]],0,(-COUNTBLANK(Tableau3[[#This Row],[Niveau 1]:[Niveau 5]]))))-1))) ->  | O43: =IF(Tableau3[[#This Row],[Catégorie pièce]]="Opérations",VLOOKUP(M43,'Poste de charge'!A:C,2,FALSE),VLOOKUP(CONCATENATE(M43),[1]ARTRDCL!$A$1:$U$25000,2,FALSE)) ->  | T43: =IF(N43="Nouveau",MID(Tableau3[[#This Row],[Article produit/ Poste de charge]],2,15),"") ->  | Y43: =IF(Tableau3[[#This Row],[Catégorie pièce]]="Opérations",$M$5/100,VLOOKUP(CONCATENATE(Tableau3[[#This Row],[Article produit/ Poste de charge]]),[1]ARTRDCL!$A$1:$U$65536,15,FALSE)) ->  | AA43: 0 | AB43: 0 | AM43: 0 | AN43: =IFERROR(VLOOKUP(CONCATENATE(AC43),Tôles!A:W,10,FALSE)/AA43*(IF(AY43=TRUE,BOM!B43,Tableau3[[#This Row],[surface de la tôle (m²)]])),0) -> 0 | AO43: =IF(AY43=TRUE,Paramètres!$B$13/AX43,0) -> 0 | AP43: 0 | AQ43: =IF(AI43>0, (40/AX43 +0.4*AI43)*Paramètres!$B$2/100,0) -> 0 | AR43: =IF(AJ43>0,(0.15/$AX43+$AJ43)*Paramètres!$B$2/100,0) -> 0 | AS43: =IF(AK43="Oui",(13/AX43 +AZ43)*Paramètres!$B$2/100,0) -> 0 | AT43: =IFERROR(VLOOKUP(CONCATENATE(AC43),Tôles!A:W,9,FALSE),0) -> 0 | AU43: 0 | AV43: =IFERROR(AT43/AU43/Paramètres!$B$9,0) -> 0 | AW43: =IFERROR(Paramètres!$B$8/Tableau3[[#This Row],[Surface de la pièce (m²)]]/Paramètres!$B$9,0) -> 0 | AX43: 0 | AY43: FALSE | AZ43: 0.5 | BA43: =IF(OR(ISERROR((5/$AN43 +$X43*0.08*$T43+ ($U43+$V43) * 0.001)*Paramètres!$B$2/100),AD43 = ""),0,(5/$AN43 +$X43*0.08*$T43+ ($U43+$V43) * 0.001)*Paramètres!$B$2/100) -> 0 | BB43: =IF(OR(ISERROR((10/$AN43+$X43*0.007 + ($U43+$V43) * 0.0005)*Paramètres!$B$2/100),AD43= ""),0,(10/$AN43+$X43*0.007 + ($U43+$V43) * 0.0005)*Paramètres!$B$2/100) -> 0
H44: =SUBSTITUTE(TRIM(CONCATENATE(Tableau3[[#This Row],[Niveau 1]]," ",Tableau3[[#This Row],[Niveau 2]]," ",Tableau3[[#This Row],[Niveau 3]]," ",Tableau3[[#This Row],[Niveau 4]]," ",Tableau3[[#This Row],[Niveau 5]]))," ",".") ->  | I44: =IF(COUNTBLANK(Tableau3[[#This Row],[Niveau 1]:[Niveau 5]])=4,"0",LEFT(Tableau3[[#This Row],[Niveau]],(LEN(Tableau3[[#This Row],[Niveau]])-LEN(OFFSET(Tableau3[[#This Row],[Niveau 5]],0,(-COUNTBLANK(Tableau3[[#This Row],[Niveau 1]:[Niveau 5]]))))-1))) ->  | O44: =IF(Tableau3[[#This Row],[Catégorie pièce]]="Opérations",VLOOKUP(M44,'Poste de charge'!A:C,2,FALSE),VLOOKUP(CONCATENATE(M44),[1]ARTRDCL!$A$1:$U$25000,2,FALSE)) ->  | T44: =IF(N44="Nouveau",MID(Tableau3[[#This Row],[Article produit/ Poste de charge]],2,15),"") ->  | Y44: =IF(Tableau3[[#This Row],[Catégorie pièce]]="Opérations",$M$5/100,VLOOKUP(CONCATENATE(Tableau3[[#This Row],[Article produit/ Poste de charge]]),[1]ARTRDCL!$A$1:$U$65536,15,FALSE)) ->  | AA44: 0 | AB44: 0 | AM44: 0 | AN44: =IFERROR(VLOOKUP(CONCATENATE(AC44),Tôles!A:W,10,FALSE)/AA44*(IF(AY44=TRUE,BOM!B44,Tableau3[[#This Row],[surface de la tôle (m²)]])),0) -> 0 | AO44: =IF(AY44=TRUE,Paramètres!$B$13/AX44,0) -> 0 | AP44: 0 | AQ44: =IF(AI44>0, (40/AX44 +0.4*AI44)*Paramètres!$B$2/100,0) -> 0 | AR44: =IF(AJ44>0,(0.15/$AX44+$AJ44)*Paramètres!$B$2/100,0) -> 0 | AS44: =IF(AK44="Oui",(13/AX44 +AZ44)*Paramètres!$B$2/100,0) -> 0 | AT44: =IFERROR(VLOOKUP(CONCATENATE(AC44),Tôles!A:W,9,FALSE),0) -> 0 | AU44: 0 | AV44: =IFERROR(AT44/AU44/Paramètres!$B$9,0) -> 0 | AW44: =IFERROR(Paramètres!$B$8/Tableau3[[#This Row],[Surface de la pièce (m²)]]/Paramètres!$B$9,0) -> 0 | AX44: 0 | AY44: FALSE | AZ44: 0.5 | BA44: =IF(OR(ISERROR((5/$AN44 +$X44*0.08*$T44+ ($U44+$V44) * 0.001)*Paramètres!$B$2/100),AD44 = ""),0,(5/$AN44 +$X44*0.08*$T44+ ($U44+$V44) * 0.001)*Paramètres!$B$2/100) -> 0 | BB44: =IF(OR(ISERROR((10/$AN44+$X44*0.007 + ($U44+$V44) * 0.0005)*Paramètres!$B$2/100),AD44= ""),0,(10/$AN44+$X44*0.007 + ($U44+$V44) * 0.0005)*Paramètres!$B$2/100) -> 0
H45: =SUBSTITUTE(TRIM(CONCATENATE(Tableau3[[#This Row],[Niveau 1]]," ",Tableau3[[#This Row],[Niveau 2]]," ",Tableau3[[#This Row],[Niveau 3]]," ",Tableau3[[#This Row],[Niveau 4]]," ",Tableau3[[#This Row],[Niveau 5]]))," ",".") ->  | I45: =IF(COUNTBLANK(Tableau3[[#This Row],[Niveau 1]:[Niveau 5]])=4,"0",LEFT(Tableau3[[#This Row],[Niveau]],(LEN(Tableau3[[#This Row],[Niveau]])-LEN(OFFSET(Tableau3[[#This Row],[Niveau 5]],0,(-COUNTBLANK(Tableau3[[#This Row],[Niveau 1]:[Niveau 5]]))))-1))) ->  | O45: =IF(Tableau3[[#This Row],[Catégorie pièce]]="Opérations",VLOOKUP(M45,'Poste de charge'!A:C,2,FALSE),VLOOKUP(CONCATENATE(M45),[1]ARTRDCL!$A$1:$U$25000,2,FALSE)) ->  | T45: =IF(N45="Nouveau",MID(Tableau3[[#This Row],[Article produit/ Poste de charge]],2,15),"") ->  | Y45: =IF(Tableau3[[#This Row],[Catégorie pièce]]="Opérations",$M$5/100,VLOOKUP(CONCATENATE(Tableau3[[#This Row],[Article produit/ Poste de charge]]),[1]ARTRDCL!$A$1:$U$65536,15,FALSE)) ->  | AA45: 0 | AB45: 0 | AM45: 0 | AN45: =IFERROR(VLOOKUP(CONCATENATE(AC45),Tôles!A:W,10,FALSE)/AA45*(IF(AY45=TRUE,BOM!B45,Tableau3[[#This Row],[surface de la tôle (m²)]])),0) -> 0 | AO45: =IF(AY45=TRUE,Paramètres!$B$13/AX45,0) -> 0 | AP45: 0 | AQ45: =IF(AI45>0, (40/AX45 +0.4*AI45)*Paramètres!$B$2/100,0) -> 0 | AR45: =IF(AJ45>0,(0.15/$AX45+$AJ45)*Paramètres!$B$2/100,0) -> 0 | AS45: =IF(AK45="Oui",(13/AX45 +AZ45)*Paramètres!$B$2/100,0) -> 0 | AT45: =IFERROR(VLOOKUP(CONCATENATE(AC45),Tôles!A:W,9,FALSE),0) -> 0 | AU45: 0 | AV45: =IFERROR(AT45/AU45/Paramètres!$B$9,0) -> 0 | AW45: =IFERROR(Paramètres!$B$8/Tableau3[[#This Row],[Surface de la pièce (m²)]]/Paramètres!$B$9,0) -> 0 | AX45: 0 | AY45: FALSE | AZ45: 0.5 | BA45: =IF(OR(ISERROR((5/$AN45 +$X45*0.08*$T45+ ($U45+$V45) * 0.001)*Paramètres!$B$2/100),AD45 = ""),0,(5/$AN45 +$X45*0.08*$T45+ ($U45+$V45) * 0.001)*Paramètres!$B$2/100) -> 0 | BB45: =IF(OR(ISERROR((10/$AN45+$X45*0.007 + ($U45+$V45) * 0.0005)*Paramètres!$B$2/100),AD45= ""),0,(10/$AN45+$X45*0.007 + ($U45+$V45) * 0.0005)*Paramètres!$B$2/100) -> 0
H46: =SUBSTITUTE(TRIM(CONCATENATE(Tableau3[[#This Row],[Niveau 1]]," ",Tableau3[[#This Row],[Niveau 2]]," ",Tableau3[[#This Row],[Niveau 3]]," ",Tableau3[[#This Row],[Niveau 4]]," ",Tableau3[[#This Row],[Niveau 5]]))," ",".") ->  | I46: =IF(COUNTBLANK(Tableau3[[#This Row],[Niveau 1]:[Niveau 5]])=4,"0",LEFT(Tableau3[[#This Row],[Niveau]],(LEN(Tableau3[[#This Row],[Niveau]])-LEN(OFFSET(Tableau3[[#This Row],[Niveau 5]],0,(-COUNTBLANK(Tableau3[[#This Row],[Niveau 1]:[Niveau 5]]))))-1))) ->  | O46: =IF(Tableau3[[#This Row],[Catégorie pièce]]="Opérations",VLOOKUP(M46,'Poste de charge'!A:C,2,FALSE),VLOOKUP(CONCATENATE(M46),[1]ARTRDCL!$A$1:$U$25000,2,FALSE)) ->  | T46: =IF(N46="Nouveau",MID(Tableau3[[#This Row],[Article produit/ Poste de charge]],2,15),"") ->  | Y46: =IF(Tableau3[[#This Row],[Catégorie pièce]]="Opérations",$M$5/100,VLOOKUP(CONCATENATE(Tableau3[[#This Row],[Article produit/ Poste de charge]]),[1]ARTRDCL!$A$1:$U$65536,15,FALSE)) ->  | AA46: 0 | AB46: 0 | AM46: 0 | AN46: =IFERROR(VLOOKUP(CONCATENATE(AC46),Tôles!A:W,10,FALSE)/AA46*(IF(AY46=TRUE,BOM!B46,Tableau3[[#This Row],[surface de la tôle (m²)]])),0) -> 0 | AO46: =IF(AY46=TRUE,Paramètres!$B$13/AX46,0) -> 0 | AP46: 0 | AQ46: =IF(AI46>0, (40/AX46 +0.4*AI46)*Paramètres!$B$2/100,0) -> 0 | AR46: =IF(AJ46>0,(0.15/$AX46+$AJ46)*Paramètres!$B$2/100,0) -> 0 | AS46: =IF(AK46="Oui",(13/AX46 +AZ46)*Paramètres!$B$2/100,0) -> 0 | AT46: =IFERROR(VLOOKUP(CONCATENATE(AC46),Tôles!A:W,9,FALSE),0) -> 0 | AU46: 0 | AV46: =IFERROR(AT46/AU46/Paramètres!$B$9,0) -> 0 | AW46: =IFERROR(Paramètres!$B$8/Tableau3[[#This Row],[Surface de la pièce (m²)]]/Paramètres!$B$9,0) -> 0 | AX46: 0 | AY46: FALSE | AZ46: 0.5 | BA46: =IF(OR(ISERROR((5/$AN46 +$X46*0.08*$T46+ ($U46+$V46) * 0.001)*Paramètres!$B$2/100),AD46 = ""),0,(5/$AN46 +$X46*0.08*$T46+ ($U46+$V46) * 0.001)*Paramètres!$B$2/100) -> 0 | BB46: =IF(OR(ISERROR((10/$AN46+$X46*0.007 + ($U46+$V46) * 0.0005)*Paramètres!$B$2/100),AD46= ""),0,(10/$AN46+$X46*0.007 + ($U46+$V46) * 0.0005)*Paramètres!$B$2/100) -> 0
H47: =SUBSTITUTE(TRIM(CONCATENATE(Tableau3[[#This Row],[Niveau 1]]," ",Tableau3[[#This Row],[Niveau 2]]," ",Tableau3[[#This Row],[Niveau 3]]," ",Tableau3[[#This Row],[Niveau 4]]," ",Tableau3[[#This Row],[Niveau 5]]))," ",".") ->  | I47: =IF(COUNTBLANK(Tableau3[[#This Row],[Niveau 1]:[Niveau 5]])=4,"0",LEFT(Tableau3[[#This Row],[Niveau]],(LEN(Tableau3[[#This Row],[Niveau]])-LEN(OFFSET(Tableau3[[#This Row],[Niveau 5]],0,(-COUNTBLANK(Tableau3[[#This Row],[Niveau 1]:[Niveau 5]]))))-1))) ->  | O47: =IF(Tableau3[[#This Row],[Catégorie pièce]]="Opérations",VLOOKUP(M47,'Poste de charge'!A:C,2,FALSE),VLOOKUP(CONCATENATE(M47),[1]ARTRDCL!$A$1:$U$25000,2,FALSE)) ->  | T47: =IF(N47="Nouveau",MID(Tableau3[[#This Row],[Article produit/ Poste de charge]],2,15),"") ->  | Y47: =IF(Tableau3[[#This Row],[Catégorie pièce]]="Opérations",$M$5/100,VLOOKUP(CONCATENATE(Tableau3[[#This Row],[Article produit/ Poste de charge]]),[1]ARTRDCL!$A$1:$U$65536,15,FALSE)) ->  | AA47: 0 | AB47: 0 | AM47: 0 | AN47: =IFERROR(VLOOKUP(CONCATENATE(AC47),Tôles!A:W,10,FALSE)/AA47*(IF(AY47=TRUE,BOM!B47,Tableau3[[#This Row],[surface de la tôle (m²)]])),0) -> 0 | AO47: =IF(AY47=TRUE,Paramètres!$B$13/AX47,0) -> 0 | AP47: 0 | AQ47: =IF(AI47>0, (40/AX47 +0.4*AI47)*Paramètres!$B$2/100,0) -> 0 | AR47: =IF(AJ47>0,(0.15/$AX47+$AJ47)*Paramètres!$B$2/100,0) -> 0 | AS47: =IF(AK47="Oui",(13/AX47 +AZ47)*Paramètres!$B$2/100,0) -> 0 | AT47: =IFERROR(VLOOKUP(CONCATENATE(AC47),Tôles!A:W,9,FALSE),0) -> 0 | AU47: 0 | AV47: =IFERROR(AT47/AU47/Paramètres!$B$9,0) -> 0 | AW47: =IFERROR(Paramètres!$B$8/Tableau3[[#This Row],[Surface de la pièce (m²)]]/Paramètres!$B$9,0) -> 0 | AX47: 0 | AY47: FALSE | AZ47: 0.5 | BA47: =IF(OR(ISERROR((5/$AN47 +$X47*0.08*$T47+ ($U47+$V47) * 0.001)*Paramètres!$B$2/100),AD47 = ""),0,(5/$AN47 +$X47*0.08*$T47+ ($U47+$V47) * 0.001)*Paramètres!$B$2/100) -> 0 | BB47: =IF(OR(ISERROR((10/$AN47+$X47*0.007 + ($U47+$V47) * 0.0005)*Paramètres!$B$2/100),AD47= ""),0,(10/$AN47+$X47*0.007 + ($U47+$V47) * 0.0005)*Paramètres!$B$2/100) -> 0
H48: =SUBSTITUTE(TRIM(CONCATENATE(Tableau3[[#This Row],[Niveau 1]]," ",Tableau3[[#This Row],[Niveau 2]]," ",Tableau3[[#This Row],[Niveau 3]]," ",Tableau3[[#This Row],[Niveau 4]]," ",Tableau3[[#This Row],[Niveau 5]]))," ",".") ->  | I48: =IF(COUNTBLANK(Tableau3[[#This Row],[Niveau 1]:[Niveau 5]])=4,"0",LEFT(Tableau3[[#This Row],[Niveau]],(LEN(Tableau3[[#This Row],[Niveau]])-LEN(OFFSET(Tableau3[[#This Row],[Niveau 5]],0,(-COUNTBLANK(Tableau3[[#This Row],[Niveau 1]:[Niveau 5]]))))-1))) ->  | O48: =IF(Tableau3[[#This Row],[Catégorie pièce]]="Opérations",VLOOKUP(M48,'Poste de charge'!A:C,2,FALSE),VLOOKUP(CONCATENATE(M48),[1]ARTRDCL!$A$1:$U$25000,2,FALSE)) ->  | T48: =IF(N48="Nouveau",MID(Tableau3[[#This Row],[Article produit/ Poste de charge]],2,15),"") ->  | Y48: =IF(Tableau3[[#This Row],[Catégorie pièce]]="Opérations",$M$5/100,VLOOKUP(CONCATENATE(Tableau3[[#This Row],[Article produit/ Poste de charge]]),[1]ARTRDCL!$A$1:$U$65536,15,FALSE)) ->  | AA48: 0 | AB48: 0 | AM48: 0 | AN48: =IFERROR(VLOOKUP(CONCATENATE(AC48),Tôles!A:W,10,FALSE)/AA48*(IF(AY48=TRUE,BOM!B48,Tableau3[[#This Row],[surface de la tôle (m²)]])),0) -> 0 | AO48: =IF(AY48=TRUE,Paramètres!$B$13/AX48,0) -> 0 | AP48: 0 | AQ48: =IF(AI48>0, (40/AX48 +0.4*AI48)*Paramètres!$B$2/100,0) -> 0 | AR48: =IF(AJ48>0,(0.15/$AX48+$AJ48)*Paramètres!$B$2/100,0) -> 0 | AS48: =IF(AK48="Oui",(13/AX48 +AZ48)*Paramètres!$B$2/100,0) -> 0 | AT48: =IFERROR(VLOOKUP(CONCATENATE(AC48),Tôles!A:W,9,FALSE),0) -> 0 | AU48: 0 | AV48: =IFERROR(AT48/AU48/Paramètres!$B$9,0) -> 0 | AW48: =IFERROR(Paramètres!$B$8/Tableau3[[#This Row],[Surface de la pièce (m²)]]/Paramètres!$B$9,0) -> 0 | AX48: 0 | AY48: FALSE | AZ48: 0.5 | BA48: =IF(OR(ISERROR((5/$AN48 +$X48*0.08*$T48+ ($U48+$V48) * 0.001)*Paramètres!$B$2/100),AD48 = ""),0,(5/$AN48 +$X48*0.08*$T48+ ($U48+$V48) * 0.001)*Paramètres!$B$2/100) -> 0 | BB48: =IF(OR(ISERROR((10/$AN48+$X48*0.007 + ($U48+$V48) * 0.0005)*Paramètres!$B$2/100),AD48= ""),0,(10/$AN48+$X48*0.007 + ($U48+$V48) * 0.0005)*Paramètres!$B$2/100) -> 0
H49: =SUBSTITUTE(TRIM(CONCATENATE(Tableau3[[#This Row],[Niveau 1]]," ",Tableau3[[#This Row],[Niveau 2]]," ",Tableau3[[#This Row],[Niveau 3]]," ",Tableau3[[#This Row],[Niveau 4]]," ",Tableau3[[#This Row],[Niveau 5]]))," ",".") ->  | I49: =IF(COUNTBLANK(Tableau3[[#This Row],[Niveau 1]:[Niveau 5]])=4,"0",LEFT(Tableau3[[#This Row],[Niveau]],(LEN(Tableau3[[#This Row],[Niveau]])-LEN(OFFSET(Tableau3[[#This Row],[Niveau 5]],0,(-COUNTBLANK(Tableau3[[#This Row],[Niveau 1]:[Niveau 5]]))))-1))) ->  | O49: =IF(Tableau3[[#This Row],[Catégorie pièce]]="Opérations",VLOOKUP(M49,'Poste de charge'!A:C,2,FALSE),VLOOKUP(CONCATENATE(M49),[1]ARTRDCL!$A$1:$U$25000,2,FALSE)) ->  | T49: =IF(N49="Nouveau",MID(Tableau3[[#This Row],[Article produit/ Poste de charge]],2,15),"") ->  | Y49: =IF(Tableau3[[#This Row],[Catégorie pièce]]="Opérations",$M$5/100,VLOOKUP(CONCATENATE(Tableau3[[#This Row],[Article produit/ Poste de charge]]),[1]ARTRDCL!$A$1:$U$65536,15,FALSE)) ->  | AA49: 0 | AB49: 0 | AM49: 0 | AN49: =IFERROR(VLOOKUP(CONCATENATE(AC49),Tôles!A:W,10,FALSE)/AA49*(IF(AY49=TRUE,BOM!B49,Tableau3[[#This Row],[surface de la tôle (m²)]])),0) -> 0 | AO49: =IF(AY49=TRUE,Paramètres!$B$13/AX49,0) -> 0 | AP49: 0 | AQ49: =IF(AI49>0, (40/AX49 +0.4*AI49)*Paramètres!$B$2/100,0) -> 0 | AR49: =IF(AJ49>0,(0.15/$AX49+$AJ49)*Paramètres!$B$2/100,0) -> 0 | AS49: =IF(AK49="Oui",(13/AX49 +AZ49)*Paramètres!$B$2/100,0) -> 0 | AT49: =IFERROR(VLOOKUP(CONCATENATE(AC49),Tôles!A:W,9,FALSE),0) -> 0 | AU49: 0 | AV49: =IFERROR(AT49/AU49/Paramètres!$B$9,0) -> 0 | AW49: =IFERROR(Paramètres!$B$8/Tableau3[[#This Row],[Surface de la pièce (m²)]]/Paramètres!$B$9,0) -> 0 | AX49: 0 | AY49: FALSE | AZ49: 0.5 | BA49: =IF(OR(ISERROR((5/$AN49 +$X49*0.08*$T49+ ($U49+$V49) * 0.001)*Paramètres!$B$2/100),AD49 = ""),0,(5/$AN49 +$X49*0.08*$T49+ ($U49+$V49) * 0.001)*Paramètres!$B$2/100) -> 0 | BB49: =IF(OR(ISERROR((10/$AN49+$X49*0.007 + ($U49+$V49) * 0.0005)*Paramètres!$B$2/100),AD49= ""),0,(10/$AN49+$X49*0.007 + ($U49+$V49) * 0.0005)*Paramètres!$B$2/100) -> 0
H50: =SUBSTITUTE(TRIM(CONCATENATE(Tableau3[[#This Row],[Niveau 1]]," ",Tableau3[[#This Row],[Niveau 2]]," ",Tableau3[[#This Row],[Niveau 3]]," ",Tableau3[[#This Row],[Niveau 4]]," ",Tableau3[[#This Row],[Niveau 5]]))," ",".") ->  | I50: =IF(COUNTBLANK(Tableau3[[#This Row],[Niveau 1]:[Niveau 5]])=4,"0",LEFT(Tableau3[[#This Row],[Niveau]],(LEN(Tableau3[[#This Row],[Niveau]])-LEN(OFFSET(Tableau3[[#This Row],[Niveau 5]],0,(-COUNTBLANK(Tableau3[[#This Row],[Niveau 1]:[Niveau 5]]))))-1))) ->  | O50: =IF(Tableau3[[#This Row],[Catégorie pièce]]="Opérations",VLOOKUP(M50,'Poste de charge'!A:C,2,FALSE),VLOOKUP(CONCATENATE(M50),[1]ARTRDCL!$A$1:$U$25000,2,FALSE)) ->  | T50: =IF(N50="Nouveau",MID(Tableau3[[#This Row],[Article produit/ Poste de charge]],2,15),"") ->  | Y50: =IF(Tableau3[[#This Row],[Catégorie pièce]]="Opérations",$M$5/100,VLOOKUP(CONCATENATE(Tableau3[[#This Row],[Article produit/ Poste de charge]]),[1]ARTRDCL!$A$1:$U$65536,15,FALSE)) ->  | AA50: 0 | AB50: 0 | AM50: 0 | AN50: =IFERROR(VLOOKUP(CONCATENATE(AC50),Tôles!A:W,10,FALSE)/AA50*(IF(AY50=TRUE,BOM!B50,Tableau3[[#This Row],[surface de la tôle (m²)]])),0) -> 0 | AO50: =IF(AY50=TRUE,Paramètres!$B$13/AX50,0) -> 0 | AP50: 0 | AQ50: =IF(AI50>0, (40/AX50 +0.4*AI50)*Paramètres!$B$2/100,0) -> 0 | AR50: =IF(AJ50>0,(0.15/$AX50+$AJ50)*Paramètres!$B$2/100,0) -> 0 | AS50: =IF(AK50="Oui",(13/AX50 +AZ50)*Paramètres!$B$2/100,0) -> 0 | AT50: =IFERROR(VLOOKUP(CONCATENATE(AC50),Tôles!A:W,9,FALSE),0) -> 0 | AU50: 0 | AV50: =IFERROR(AT50/AU50/Paramètres!$B$9,0) -> 0 | AW50: =IFERROR(Paramètres!$B$8/Tableau3[[#This Row],[Surface de la pièce (m²)]]/Paramètres!$B$9,0) -> 0 | AX50: 0 | AY50: FALSE | AZ50: 0.5 | BA50: =IF(OR(ISERROR((5/$AN50 +$X50*0.08*$T50+ ($U50+$V50) * 0.001)*Paramètres!$B$2/100),AD50 = ""),0,(5/$AN50 +$X50*0.08*$T50+ ($U50+$V50) * 0.001)*Paramètres!$B$2/100) -> 0 | BB50: =IF(OR(ISERROR((10/$AN50+$X50*0.007 + ($U50+$V50) * 0.0005)*Paramètres!$B$2/100),AD50= ""),0,(10/$AN50+$X50*0.007 + ($U50+$V50) * 0.0005)*Paramètres!$B$2/100) -> 0
H51: =SUBSTITUTE(TRIM(CONCATENATE(Tableau3[[#This Row],[Niveau 1]]," ",Tableau3[[#This Row],[Niveau 2]]," ",Tableau3[[#This Row],[Niveau 3]]," ",Tableau3[[#This Row],[Niveau 4]]," ",Tableau3[[#This Row],[Niveau 5]]))," ",".") ->  | I51: =IF(COUNTBLANK(Tableau3[[#This Row],[Niveau 1]:[Niveau 5]])=4,"0",LEFT(Tableau3[[#This Row],[Niveau]],(LEN(Tableau3[[#This Row],[Niveau]])-LEN(OFFSET(Tableau3[[#This Row],[Niveau 5]],0,(-COUNTBLANK(Tableau3[[#This Row],[Niveau 1]:[Niveau 5]]))))-1))) ->  | O51: =IF(Tableau3[[#This Row],[Catégorie pièce]]="Opérations",VLOOKUP(M51,'Poste de charge'!A:C,2,FALSE),VLOOKUP(CONCATENATE(M51),[1]ARTRDCL!$A$1:$U$25000,2,FALSE)) ->  | T51: =IF(N51="Nouveau",MID(Tableau3[[#This Row],[Article produit/ Poste de charge]],2,15),"") ->  | Y51: =IF(Tableau3[[#This Row],[Catégorie pièce]]="Opérations",$M$5/100,VLOOKUP(CONCATENATE(Tableau3[[#This Row],[Article produit/ Poste de charge]]),[1]ARTRDCL!$A$1:$U$65536,15,FALSE)) ->  | AA51: 0 | AB51: 0 | AM51: 0 | AN51: =IFERROR(VLOOKUP(CONCATENATE(AC51),Tôles!A:W,10,FALSE)/AA51*(IF(AY51=TRUE,BOM!B51,Tableau3[[#This Row],[surface de la tôle (m²)]])),0) -> 0 | AO51: =IF(AY51=TRUE,Paramètres!$B$13/AX51,0) -> 0 | AP51: 0 | AQ51: =IF(AI51>0, (40/AX51 +0.4*AI51)*Paramètres!$B$2/100,0) -> 0 | AR51: =IF(AJ51>0,(0.15/$AX51+$AJ51)*Paramètres!$B$2/100,0) -> 0 | AS51: =IF(AK51="Oui",(13/AX51 +AZ51)*Paramètres!$B$2/100,0) -> 0 | AT51: =IFERROR(VLOOKUP(CONCATENATE(AC51),Tôles!A:W,9,FALSE),0) -> 0 | AU51: 0 | AV51: =IFERROR(AT51/AU51/Paramètres!$B$9,0) -> 0 | AW51: =IFERROR(Paramètres!$B$8/Tableau3[[#This Row],[Surface de la pièce (m²)]]/Paramètres!$B$9,0) -> 0 | AX51: 0 | AY51: FALSE | AZ51: 0.5 | BA51: =IF(OR(ISERROR((5/$AN51 +$X51*0.08*$T51+ ($U51+$V51) * 0.001)*Paramètres!$B$2/100),AD51 = ""),0,(5/$AN51 +$X51*0.08*$T51+ ($U51+$V51) * 0.001)*Paramètres!$B$2/100) -> 0 | BB51: =IF(OR(ISERROR((10/$AN51+$X51*0.007 + ($U51+$V51) * 0.0005)*Paramètres!$B$2/100),AD51= ""),0,(10/$AN51+$X51*0.007 + ($U51+$V51) * 0.0005)*Paramètres!$B$2/100) -> 0
H52: =SUBSTITUTE(TRIM(CONCATENATE(Tableau3[[#This Row],[Niveau 1]]," ",Tableau3[[#This Row],[Niveau 2]]," ",Tableau3[[#This Row],[Niveau 3]]," ",Tableau3[[#This Row],[Niveau 4]]," ",Tableau3[[#This Row],[Niveau 5]]))," ",".") ->  | I52: =IF(COUNTBLANK(Tableau3[[#This Row],[Niveau 1]:[Niveau 5]])=4,"0",LEFT(Tableau3[[#This Row],[Niveau]],(LEN(Tableau3[[#This Row],[Niveau]])-LEN(OFFSET(Tableau3[[#This Row],[Niveau 5]],0,(-COUNTBLANK(Tableau3[[#This Row],[Niveau 1]:[Niveau 5]]))))-1))) ->  | O52: =IF(Tableau3[[#This Row],[Catégorie pièce]]="Opérations",VLOOKUP(M52,'Poste de charge'!A:C,2,FALSE),VLOOKUP(CONCATENATE(M52),[1]ARTRDCL!$A$1:$U$25000,2,FALSE)) ->  | T52: =IF(N52="Nouveau",MID(Tableau3[[#This Row],[Article produit/ Poste de charge]],2,15),"") ->  | Y52: =IF(Tableau3[[#This Row],[Catégorie pièce]]="Opération",$M$5/100,VLOOKUP(CONCATENATE(Tableau3[[#This Row],[Article produit/ Poste de charge]]),[1]ARTRDCL!$A$1:$U$65536,15,FALSE)) ->  | AA52: =ROUNDDOWN(IF($AO52= TRUE,$AM52,$AL52),0) -> 0 | AB52: =Z52*2/25 -> 0 | AM52: =SUM(AN52:AS52) -> 0 | AN52: =IFERROR(VLOOKUP(CONCATENATE(AC52),Tôles!A:W,10,FALSE)/AA52*(IF(AY52=TRUE,BOM!B52,Tableau3[[#This Row],[surface de la tôle (m²)]])),0) -> 0 | AO52: =IF(AY52=TRUE,Paramètres!$B$13/AX52,0) -> 0 | AP52: =IF(AG52= "Oui",$BA52,BB52) -> 0 | AQ52: =IF(AI52>0, (40/AX52 +0.4*AI52)*Paramètres!$B$2/100,0) -> 0 | AR52: =IF(AJ52>0,(0.15/$AX52+$AJ52)*Paramètres!$B$2/100,0) -> 0 | AS52: =IF(AK52="Oui",(13/AX52 +AZ52)*Paramètres!$B$2/100,0) -> 0 | AT52: =IFERROR(VLOOKUP(CONCATENATE(AC52),Tôles!A:W,9,FALSE),0) -> 0 | AU52: =AE52/1000*AF52/1000 -> 0 | AV52: =IFERROR(AT52/AU52/Paramètres!$B$9,0) -> 0 | AW52: =IFERROR(Paramètres!$B$8/Tableau3[[#This Row],[Surface de la pièce (m²)]]/Paramètres!$B$9,0) -> 0 | AX52: =IF(AB52>0,AB52,AA52) -> 0 | AY52: =AND(IF(AV52>50,TRUE,FALSE),AL52<>"Oui") -> FALSE | AZ52: =MAX(AE52,AF52)/1000 + 0.5 -> 0.5 | BA52: =IF(OR(ISERROR((5/$AN52 +$X52*0.08*$T52+ ($U52+$V52) * 0.001)*Paramètres!$B$2/100),AD52 = ""),0,(5/$AN52 +$X52*0.08*$T52+ ($U52+$V52) * 0.001)*Paramètres!$B$2/100) -> 0 | BB52: =IF(OR(ISERROR((10/$AN52+$X52*0.007 + ($U52+$V52) * 0.0005)*Paramètres!$B$2/100),AD52= ""),0,(10/$AN52+$X52*0.007 + ($U52+$V52) * 0.0005)*Paramètres!$B$2/100) -> 0
B53: Emballage | H53: =SUBSTITUTE(TRIM(CONCATENATE(Tableau3[[#This Row],[Niveau 1]]," ",Tableau3[[#This Row],[Niveau 2]]," ",Tableau3[[#This Row],[Niveau 3]]," ",Tableau3[[#This Row],[Niveau 4]]," ",Tableau3[[#This Row],[Niveau 5]]))," ",".") ->  | I53: =IF(COUNTBLANK(Tableau3[[#This Row],[Niveau 1]:[Niveau 5]])=4,"0",LEFT(Tableau3[[#This Row],[Niveau]],(LEN(Tableau3[[#This Row],[Niveau]])-LEN(OFFSET(Tableau3[[#This Row],[Niveau 5]],0,(-COUNTBLANK(Tableau3[[#This Row],[Niveau 1]:[Niveau 5]]))))-1))) ->  | O53: =IF(Tableau3[[#This Row],[Catégorie pièce]]="Opérations",VLOOKUP(M53,'Poste de charge'!A:C,2,FALSE),VLOOKUP(CONCATENATE(M53),[1]ARTRDCL!$A$1:$U$25000,2,FALSE)) ->  | T53: =IF(N53="Nouveau",MID(Tableau3[[#This Row],[Article produit/ Poste de charge]],2,15),"") ->  | Y53: =IF(Tableau3[[#This Row],[Catégorie pièce]]="Opération",$M$5/100,VLOOKUP(CONCATENATE(Tableau3[[#This Row],[Article produit/ Poste de charge]]),[1]ARTRDCL!$A$1:$U$65536,15,FALSE)) ->  | AA53: 0 | AB53: 0 | AM53: 0 | AN53: =IFERROR(VLOOKUP(CONCATENATE(AC53),Tôles!A:W,10,FALSE)/AA53*(IF(AY53=TRUE,BOM!B53,Tableau3[[#This Row],[surface de la tôle (m²)]])),0) -> 0 | AO53: =IF(AY53=TRUE,Paramètres!$B$13/AX53,0) -> 0 | AP53: 0 | AQ53: =IF(AI53>0, (40/AX53 +0.4*AI53)*Paramètres!$B$2/100,0) -> 0 | AR53: =IF(AJ53>0,(0.15/$AX53+$AJ53)*Paramètres!$B$2/100,0) -> 0 | AS53: =IF(AK53="Oui",(13/AX53 +AZ53)*Paramètres!$B$2/100,0) -> 0 | AT53: =IFERROR(VLOOKUP(CONCATENATE(AC53),Tôles!A:W,9,FALSE),0) -> 0 | AU53: 0 | AV53: =IFERROR(AT53/AU53/Paramètres!$B$9,0) -> 0 | AW53: =IFERROR(Paramètres!$B$8/Tableau3[[#This Row],[Surface de la pièce (m²)]]/Paramètres!$B$9,0) -> 0 | AX53: 0 | AY53: FALSE | AZ53: 0.5 | BA53: =IF(OR(ISERROR((5/$AN53 +$X53*0.08*$T53+ ($U53+$V53) * 0.001)*Paramètres!$B$2/100),AD53 = ""),0,(5/$AN53 +$X53*0.08*$T53+ ($U53+$V53) * 0.001)*Paramètres!$B$2/100) -> 0 | BB53: =IF(OR(ISERROR((10/$AN53+$X53*0.007 + ($U53+$V53) * 0.0005)*Paramètres!$B$2/100),AD53= ""),0,(10/$AN53+$X53*0.007 + ($U53+$V53) * 0.0005)*Paramètres!$B$2/100) -> 0
H54: =SUBSTITUTE(TRIM(CONCATENATE(Tableau3[[#This Row],[Niveau 1]]," ",Tableau3[[#This Row],[Niveau 2]]," ",Tableau3[[#This Row],[Niveau 3]]," ",Tableau3[[#This Row],[Niveau 4]]," ",Tableau3[[#This Row],[Niveau 5]]))," ",".") ->  | I54: =IF(COUNTBLANK(Tableau3[[#This Row],[Niveau 1]:[Niveau 5]])=4,"0",LEFT(Tableau3[[#This Row],[Niveau]],(LEN(Tableau3[[#This Row],[Niveau]])-LEN(OFFSET(Tableau3[[#This Row],[Niveau 5]],0,(-COUNTBLANK(Tableau3[[#This Row],[Niveau 1]:[Niveau 5]]))))-1))) ->  | O54: =IF(Tableau3[[#This Row],[Catégorie pièce]]="Opérations",VLOOKUP(M54,'Poste de charge'!A:C,2,FALSE),VLOOKUP(CONCATENATE(M54),[1]ARTRDCL!$A$1:$U$25000,2,FALSE)) ->  | T54: =IF(N54="Nouveau",MID(Tableau3[[#This Row],[Article produit/ Poste de charge]],2,15),"") ->  | Y54: =IF(Tableau3[[#This Row],[Catégorie pièce]]="Opération",$M$5/100,VLOOKUP(CONCATENATE(Tableau3[[#This Row],[Article produit/ Poste de charge]]),[1]ARTRDCL!$A$1:$U$65536,15,FALSE)) ->  | AA54: 0 | AB54: 0 | AM54: 0 | AN54: =IFERROR(VLOOKUP(CONCATENATE(AC54),Tôles!A:W,10,FALSE)/AA54*(IF(AY54=TRUE,BOM!B54,Tableau3[[#This Row],[surface de la tôle (m²)]])),0) -> 0 | AO54: =IF(AY54=TRUE,Paramètres!$B$13/AX54,0) -> 0 | AP54: 0 | AQ54: =IF(AI54>0, (40/AX54 +0.4*AI54)*Paramètres!$B$2/100,0) -> 0 | AR54: =IF(AJ54>0,(0.15/$AX54+$AJ54)*Paramètres!$B$2/100,0) -> 0 | AS54: =IF(AK54="Oui",(13/AX54 +AZ54)*Paramètres!$B$2/100,0) -> 0 | AT54: =IFERROR(VLOOKUP(CONCATENATE(AC54),Tôles!A:W,9,FALSE),0) -> 0 | AU54: 0 | AV54: =IFERROR(AT54/AU54/Paramètres!$B$9,0) -> 0 | AW54: =IFERROR(Paramètres!$B$8/Tableau3[[#This Row],[Surface de la pièce (m²)]]/Paramètres!$B$9,0) -> 0 | AX54: 0 | AY54: FALSE | AZ54: 0.5 | BA54: =IF(OR(ISERROR((5/$AN54 +$X54*0.08*$T54+ ($U54+$V54) * 0.001)*Paramètres!$B$2/100),AD54 = ""),0,(5/$AN54 +$X54*0.08*$T54+ ($U54+$V54) * 0.001)*Paramètres!$B$2/100) -> 0 | BB54: =IF(OR(ISERROR((10/$AN54+$X54*0.007 + ($U54+$V54) * 0.0005)*Paramètres!$B$2/100),AD54= ""),0,(10/$AN54+$X54*0.007 + ($U54+$V54) * 0.0005)*Paramètres!$B$2/100) -> 0
H55: =SUBSTITUTE(TRIM(CONCATENATE(Tableau3[[#This Row],[Niveau 1]]," ",Tableau3[[#This Row],[Niveau 2]]," ",Tableau3[[#This Row],[Niveau 3]]," ",Tableau3[[#This Row],[Niveau 4]]," ",Tableau3[[#This Row],[Niveau 5]]))," ",".") ->  | I55: =IF(COUNTBLANK(Tableau3[[#This Row],[Niveau 1]:[Niveau 5]])=4,"0",LEFT(Tableau3[[#This Row],[Niveau]],(LEN(Tableau3[[#This Row],[Niveau]])-LEN(OFFSET(Tableau3[[#This Row],[Niveau 5]],0,(-COUNTBLANK(Tableau3[[#This Row],[Niveau 1]:[Niveau 5]]))))-1))) ->  | O55: =IF(Tableau3[[#This Row],[Catégorie pièce]]="Opérations",VLOOKUP(M55,'Poste de charge'!A:C,2,FALSE),VLOOKUP(CONCATENATE(M55),[1]ARTRDCL!$A$1:$U$25000,2,FALSE)) ->  | T55: =IF(N55="Nouveau",MID(Tableau3[[#This Row],[Article produit/ Poste de charge]],2,15),"") ->  | Y55: =IF(Tableau3[[#This Row],[Catégorie pièce]]="Opération",$M$5/100,VLOOKUP(CONCATENATE(Tableau3[[#This Row],[Article produit/ Poste de charge]]),[1]ARTRDCL!$A$1:$U$65536,15,FALSE)) ->  | AA55: 0 | AB55: 0 | AM55: 0 | AN55: =IFERROR(VLOOKUP(CONCATENATE(AC55),Tôles!A:W,10,FALSE)/AA55*(IF(AY55=TRUE,BOM!B55,Tableau3[[#This Row],[surface de la tôle (m²)]])),0) -> 0 | AO55: =IF(AY55=TRUE,Paramètres!$B$13/AX55,0) -> 0 | AP55: 0 | AQ55: =IF(AI55>0, (40/AX55 +0.4*AI55)*Paramètres!$B$2/100,0) -> 0 | AR55: =IF(AJ55>0,(0.15/$AX55+$AJ55)*Paramètres!$B$2/100,0) -> 0 | AS55: =IF(AK55="Oui",(13/AX55 +AZ55)*Paramètres!$B$2/100,0) -> 0 | AT55: =IFERROR(VLOOKUP(CONCATENATE(AC55),Tôles!A:W,9,FALSE),0) -> 0 | AU55: 0 | AV55: =IFERROR(AT55/AU55/Paramètres!$B$9,0) -> 0 | AW55: =IFERROR(Paramètres!$B$8/Tableau3[[#This Row],[Surface de la pièce (m²)]]/Paramètres!$B$9,0) -> 0 | AX55: 0 | AY55: FALSE | AZ55: 0.5 | BA55: =IF(OR(ISERROR((5/$AN55 +$X55*0.08*$T55+ ($U55+$V55) * 0.001)*Paramètres!$B$2/100),AD55 = ""),0,(5/$AN55 +$X55*0.08*$T55+ ($U55+$V55) * 0.001)*Paramètres!$B$2/100) -> 0 | BB55: =IF(OR(ISERROR((10/$AN55+$X55*0.007 + ($U55+$V55) * 0.0005)*Paramètres!$B$2/100),AD55= ""),0,(10/$AN55+$X55*0.007 + ($U55+$V55) * 0.0005)*Paramètres!$B$2/100) -> 0
H56: =SUBSTITUTE(TRIM(CONCATENATE(Tableau3[[#This Row],[Niveau 1]]," ",Tableau3[[#This Row],[Niveau 2]]," ",Tableau3[[#This Row],[Niveau 3]]," ",Tableau3[[#This Row],[Niveau 4]]," ",Tableau3[[#This Row],[Niveau 5]]))," ",".") ->  | I56: =IF(COUNTBLANK(Tableau3[[#This Row],[Niveau 1]:[Niveau 5]])=4,"0",LEFT(Tableau3[[#This Row],[Niveau]],(LEN(Tableau3[[#This Row],[Niveau]])-LEN(OFFSET(Tableau3[[#This Row],[Niveau 5]],0,(-COUNTBLANK(Tableau3[[#This Row],[Niveau 1]:[Niveau 5]]))))-1))) ->  | O56: =IF(Tableau3[[#This Row],[Catégorie pièce]]="Opérations",VLOOKUP(M56,'Poste de charge'!A:C,2,FALSE),VLOOKUP(CONCATENATE(M56),[1]ARTRDCL!$A$1:$U$25000,2,FALSE)) ->  | T56: =IF(N56="Nouveau",MID(Tableau3[[#This Row],[Article produit/ Poste de charge]],2,15),"") ->  | Y56: =IF(Tableau3[[#This Row],[Catégorie pièce]]="Opération",$M$5/100,VLOOKUP(CONCATENATE(Tableau3[[#This Row],[Article produit/ Poste de charge]]),[1]ARTRDCL!$A$1:$U$65536,15,FALSE)) ->  | AA56: 0 | AB56: 0 | AM56: 0 | AN56: =IFERROR(VLOOKUP(CONCATENATE(AC56),Tôles!A:W,10,FALSE)/AA56*(IF(AY56=TRUE,BOM!B56,Tableau3[[#This Row],[surface de la tôle (m²)]])),0) -> 0 | AO56: =IF(AY56=TRUE,Paramètres!$B$13/AX56,0) -> 0 | AP56: 0 | AQ56: =IF(AI56>0, (40/AX56 +0.4*AI56)*Paramètres!$B$2/100,0) -> 0 | AR56: =IF(AJ56>0,(0.15/$AX56+$AJ56)*Paramètres!$B$2/100,0) -> 0 | AS56: =IF(AK56="Oui",(13/AX56 +AZ56)*Paramètres!$B$2/100,0) -> 0 | AT56: =IFERROR(VLOOKUP(CONCATENATE(AC56),Tôles!A:W,9,FALSE),0) -> 0 | AU56: 0 | AV56: =IFERROR(AT56/AU56/Paramètres!$B$9,0) -> 0 | AW56: =IFERROR(Paramètres!$B$8/Tableau3[[#This Row],[Surface de la pièce (m²)]]/Paramètres!$B$9,0) -> 0 | AX56: 0 | AY56: FALSE | AZ56: 0.5 | BA56: =IF(OR(ISERROR((5/$AN56 +$X56*0.08*$T56+ ($U56+$V56) * 0.001)*Paramètres!$B$2/100),AD56 = ""),0,(5/$AN56 +$X56*0.08*$T56+ ($U56+$V56) * 0.001)*Paramètres!$B$2/100) -> 0 | BB56: =IF(OR(ISERROR((10/$AN56+$X56*0.007 + ($U56+$V56) * 0.0005)*Paramètres!$B$2/100),AD56= ""),0,(10/$AN56+$X56*0.007 + ($U56+$V56) * 0.0005)*Paramètres!$B$2/100) -> 0
H57: =SUBSTITUTE(TRIM(CONCATENATE(Tableau3[[#This Row],[Niveau 1]]," ",Tableau3[[#This Row],[Niveau 2]]," ",Tableau3[[#This Row],[Niveau 3]]," ",Tableau3[[#This Row],[Niveau 4]]," ",Tableau3[[#This Row],[Niveau 5]]))," ",".") ->  | I57: =IF(COUNTBLANK(Tableau3[[#This Row],[Niveau 1]:[Niveau 5]])=4,"0",LEFT(Tableau3[[#This Row],[Niveau]],(LEN(Tableau3[[#This Row],[Niveau]])-LEN(OFFSET(Tableau3[[#This Row],[Niveau 5]],0,(-COUNTBLANK(Tableau3[[#This Row],[Niveau 1]:[Niveau 5]]))))-1))) ->  | O57: =IF(Tableau3[[#This Row],[Catégorie pièce]]="Opérations",VLOOKUP(M57,'Poste de charge'!A:C,2,FALSE),VLOOKUP(CONCATENATE(M57),[1]ARTRDCL!$A$1:$U$25000,2,FALSE)) ->  | T57: =IF(N57="Nouveau",MID(Tableau3[[#This Row],[Article produit/ Poste de charge]],2,15),"") ->  | Y57: =IF(Tableau3[[#This Row],[Catégorie pièce]]="Opération",$M$5/100,VLOOKUP(CONCATENATE(Tableau3[[#This Row],[Article produit/ Poste de charge]]),[1]ARTRDCL!$A$1:$U$65536,15,FALSE)) ->  | AA57: 0 | AB57: 0 | AM57: 0 | AN57: =IFERROR(VLOOKUP(CONCATENATE(AC57),Tôles!A:W,10,FALSE)/AA57*(IF(AY57=TRUE,BOM!B57,Tableau3[[#This Row],[surface de la tôle (m²)]])),0) -> 0 | AO57: =IF(AY57=TRUE,Paramètres!$B$13/AX57,0) -> 0 | AP57: 0 | AQ57: =IF(AI57>0, (40/AX57 +0.4*AI57)*Paramètres!$B$2/100,0) -> 0 | AR57: =IF(AJ57>0,(0.15/$AX57+$AJ57)*Paramètres!$B$2/100,0) -> 0 | AS57: =IF(AK57="Oui",(13/AX57 +AZ57)*Paramètres!$B$2/100,0) -> 0 | AT57: =IFERROR(VLOOKUP(CONCATENATE(AC57),Tôles!A:W,9,FALSE),0) -> 0 | AU57: 0 | AV57: =IFERROR(AT57/AU57/Paramètres!$B$9,0) -> 0 | AW57: =IFERROR(Paramètres!$B$8/Tableau3[[#This Row],[Surface de la pièce (m²)]]/Paramètres!$B$9,0) -> 0 | AX57: 0 | AY57: FALSE | AZ57: 0.5 | BA57: =IF(OR(ISERROR((5/$AN57 +$X57*0.08*$T57+ ($U57+$V57) * 0.001)*Paramètres!$B$2/100),AD57 = ""),0,(5/$AN57 +$X57*0.08*$T57+ ($U57+$V57) * 0.001)*Paramètres!$B$2/100) -> 0 | BB57: =IF(OR(ISERROR((10/$AN57+$X57*0.007 + ($U57+$V57) * 0.0005)*Paramètres!$B$2/100),AD57= ""),0,(10/$AN57+$X57*0.007 + ($U57+$V57) * 0.0005)*Paramètres!$B$2/100) -> 0
H58: =SUBSTITUTE(TRIM(CONCATENATE(Tableau3[[#This Row],[Niveau 1]]," ",Tableau3[[#This Row],[Niveau 2]]," ",Tableau3[[#This Row],[Niveau 3]]," ",Tableau3[[#This Row],[Niveau 4]]," ",Tableau3[[#This Row],[Niveau 5]]))," ",".") ->  | I58: =IF(COUNTBLANK(Tableau3[[#This Row],[Niveau 1]:[Niveau 5]])=4,"0",LEFT(Tableau3[[#This Row],[Niveau]],(LEN(Tableau3[[#This Row],[Niveau]])-LEN(OFFSET(Tableau3[[#This Row],[Niveau 5]],0,(-COUNTBLANK(Tableau3[[#This Row],[Niveau 1]:[Niveau 5]]))))-1))) ->  | O58: =IF(Tableau3[[#This Row],[Catégorie pièce]]="Opérations",VLOOKUP(M58,'Poste de charge'!A:C,2,FALSE),VLOOKUP(CONCATENATE(M58),[1]ARTRDCL!$A$1:$U$25000,2,FALSE)) ->  | T58: =IF(N58="Nouveau",MID(Tableau3[[#This Row],[Article produit/ Poste de charge]],2,15),"") ->  | Y58: =IF(Tableau3[[#This Row],[Catégorie pièce]]="Opération",$M$5/100,VLOOKUP(CONCATENATE(Tableau3[[#This Row],[Article produit/ Poste de charge]]),[1]ARTRDCL!$A$1:$U$65536,15,FALSE)) ->  | AA58: 0 | AB58: 0 | AM58: 0 | AN58: =IFERROR(VLOOKUP(CONCATENATE(AC58),Tôles!A:W,10,FALSE)/AA58*(IF(AY58=TRUE,BOM!B58,Tableau3[[#This Row],[surface de la tôle (m²)]])),0) -> 0 | AO58: =IF(AY58=TRUE,Paramètres!$B$13/AX58,0) -> 0 | AP58: 0 | AQ58: =IF(AI58>0, (40/AX58 +0.4*AI58)*Paramètres!$B$2/100,0) -> 0 | AR58: =IF(AJ58>0,(0.15/$AX58+$AJ58)*Paramètres!$B$2/100,0) -> 0 | AS58: =IF(AK58="Oui",(13/AX58 +AZ58)*Paramètres!$B$2/100,0) -> 0 | AT58: =IFERROR(VLOOKUP(CONCATENATE(AC58),Tôles!A:W,9,FALSE),0) -> 0 | AU58: 0 | AV58: =IFERROR(AT58/AU58/Paramètres!$B$9,0) -> 0 | AW58: =IFERROR(Paramètres!$B$8/Tableau3[[#This Row],[Surface de la pièce (m²)]]/Paramètres!$B$9,0) -> 0 | AX58: 0 | AY58: FALSE | AZ58: 0.5 | BA58: =IF(OR(ISERROR((5/$AN58 +$X58*0.08*$T58+ ($U58+$V58) * 0.001)*Paramètres!$B$2/100),AD58 = ""),0,(5/$AN58 +$X58*0.08*$T58+ ($U58+$V58) * 0.001)*Paramètres!$B$2/100) -> 0 | BB58: =IF(OR(ISERROR((10/$AN58+$X58*0.007 + ($U58+$V58) * 0.0005)*Paramètres!$B$2/100),AD58= ""),0,(10/$AN58+$X58*0.007 + ($U58+$V58) * 0.0005)*Paramètres!$B$2/100) -> 0
H59: =SUBSTITUTE(TRIM(CONCATENATE(Tableau3[[#This Row],[Niveau 1]]," ",Tableau3[[#This Row],[Niveau 2]]," ",Tableau3[[#This Row],[Niveau 3]]," ",Tableau3[[#This Row],[Niveau 4]]," ",Tableau3[[#This Row],[Niveau 5]]))," ",".") ->  | I59: =IF(COUNTBLANK(Tableau3[[#This Row],[Niveau 1]:[Niveau 5]])=4,"0",LEFT(Tableau3[[#This Row],[Niveau]],(LEN(Tableau3[[#This Row],[Niveau]])-LEN(OFFSET(Tableau3[[#This Row],[Niveau 5]],0,(-COUNTBLANK(Tableau3[[#This Row],[Niveau 1]:[Niveau 5]]))))-1))) ->  | O59: =IF(Tableau3[[#This Row],[Catégorie pièce]]="Opérations",VLOOKUP(M59,'Poste de charge'!A:C,2,FALSE),VLOOKUP(CONCATENATE(M59),[1]ARTRDCL!$A$1:$U$25000,2,FALSE)) ->  | T59: =IF(N59="Nouveau",MID(Tableau3[[#This Row],[Article produit/ Poste de charge]],2,15),"") ->  | Y59: =IF(Tableau3[[#This Row],[Catégorie pièce]]="Opération",$M$5/100,VLOOKUP(CONCATENATE(Tableau3[[#This Row],[Article produit/ Poste de charge]]),[1]ARTRDCL!$A$1:$U$65536,15,FALSE)) ->  | AA59: 0 | AB59: 0 | AM59: 0 | AN59: =IFERROR(VLOOKUP(CONCATENATE(AC59),Tôles!A:W,10,FALSE)/AA59*(IF(AY59=TRUE,BOM!B59,Tableau3[[#This Row],[surface de la tôle (m²)]])),0) -> 0 | AO59: =IF(AY59=TRUE,Paramètres!$B$13/AX59,0) -> 0 | AP59: 0 | AQ59: =IF(AI59>0, (40/AX59 +0.4*AI59)*Paramètres!$B$2/100,0) -> 0 | AR59: =IF(AJ59>0,(0.15/$AX59+$AJ59)*Paramètres!$B$2/100,0) -> 0 | AS59: =IF(AK59="Oui",(13/AX59 +AZ59)*Paramètres!$B$2/100,0) -> 0 | AT59: =IFERROR(VLOOKUP(CONCATENATE(AC59),Tôles!A:W,9,FALSE),0) -> 0 | AU59: 0 | AV59: =IFERROR(AT59/AU59/Paramètres!$B$9,0) -> 0 | AW59: =IFERROR(Paramètres!$B$8/Tableau3[[#This Row],[Surface de la pièce (m²)]]/Paramètres!$B$9,0) -> 0 | AX59: 0 | AY59: FALSE | AZ59: 0.5 | BA59: =IF(OR(ISERROR((5/$AN59 +$X59*0.08*$T59+ ($U59+$V59) * 0.001)*Paramètres!$B$2/100),AD59 = ""),0,(5/$AN59 +$X59*0.08*$T59+ ($U59+$V59) * 0.001)*Paramètres!$B$2/100) -> 0 | BB59: =IF(OR(ISERROR((10/$AN59+$X59*0.007 + ($U59+$V59) * 0.0005)*Paramètres!$B$2/100),AD59= ""),0,(10/$AN59+$X59*0.007 + ($U59+$V59) * 0.0005)*Paramètres!$B$2/100) -> 0
H60: =SUBSTITUTE(TRIM(CONCATENATE(Tableau3[[#This Row],[Niveau 1]]," ",Tableau3[[#This Row],[Niveau 2]]," ",Tableau3[[#This Row],[Niveau 3]]," ",Tableau3[[#This Row],[Niveau 4]]," ",Tableau3[[#This Row],[Niveau 5]]))," ",".") ->  | I60: =IF(COUNTBLANK(Tableau3[[#This Row],[Niveau 1]:[Niveau 5]])=4,"0",LEFT(Tableau3[[#This Row],[Niveau]],(LEN(Tableau3[[#This Row],[Niveau]])-LEN(OFFSET(Tableau3[[#This Row],[Niveau 5]],0,(-COUNTBLANK(Tableau3[[#This Row],[Niveau 1]:[Niveau 5]]))))-1))) ->  | O60: =IF(Tableau3[[#This Row],[Catégorie pièce]]="Opérations",VLOOKUP(M60,'Poste de charge'!A:C,2,FALSE),VLOOKUP(CONCATENATE(M60),[1]ARTRDCL!$A$1:$U$25000,2,FALSE)) ->  | T60: =IF(N60="Nouveau",MID(Tableau3[[#This Row],[Article produit/ Poste de charge]],2,15),"") ->  | Y60: =IF(Tableau3[[#This Row],[Catégorie pièce]]="Opération",$M$5/100,VLOOKUP(CONCATENATE(Tableau3[[#This Row],[Article produit/ Poste de charge]]),[1]ARTRDCL!$A$1:$U$65536,15,FALSE)) ->  | AA60: 0 | AB60: 0 | AM60: 0 | AN60: =IFERROR(VLOOKUP(CONCATENATE(AC60),Tôles!A:W,10,FALSE)/AA60*(IF(AY60=TRUE,BOM!B60,Tableau3[[#This Row],[surface de la tôle (m²)]])),0) -> 0 | AO60: =IF(AY60=TRUE,Paramètres!$B$13/AX60,0) -> 0 | AP60: 0 | AQ60: =IF(AI60>0, (40/AX60 +0.4*AI60)*Paramètres!$B$2/100,0) -> 0 | AR60: =IF(AJ60>0,(0.15/$AX60+$AJ60)*Paramètres!$B$2/100,0) -> 0 | AS60: =IF(AK60="Oui",(13/AX60 +AZ60)*Paramètres!$B$2/100,0) -> 0 | AT60: =IFERROR(VLOOKUP(CONCATENATE(AC60),Tôles!A:W,9,FALSE),0) -> 0 | AU60: 0 | AV60: =IFERROR(AT60/AU60/Paramètres!$B$9,0) -> 0 | AW60: =IFERROR(Paramètres!$B$8/Tableau3[[#This Row],[Surface de la pièce (m²)]]/Paramètres!$B$9,0) -> 0 | AX60: 0 | AY60: FALSE | AZ60: 0.5 | BA60: =IF(OR(ISERROR((5/$AN60 +$X60*0.08*$T60+ ($U60+$V60) * 0.001)*Paramètres!$B$2/100),AD60 = ""),0,(5/$AN60 +$X60*0.08*$T60+ ($U60+$V60) * 0.001)*Paramètres!$B$2/100) -> 0 | BB60: =IF(OR(ISERROR((10/$AN60+$X60*0.007 + ($U60+$V60) * 0.0005)*Paramètres!$B$2/100),AD60= ""),0,(10/$AN60+$X60*0.007 + ($U60+$V60) * 0.0005)*Paramètres!$B$2/100) -> 0
H61: =SUBSTITUTE(TRIM(CONCATENATE(Tableau3[[#This Row],[Niveau 1]]," ",Tableau3[[#This Row],[Niveau 2]]," ",Tableau3[[#This Row],[Niveau 3]]," ",Tableau3[[#This Row],[Niveau 4]]," ",Tableau3[[#This Row],[Niveau 5]]))," ",".") ->  | I61: =IF(COUNTBLANK(Tableau3[[#This Row],[Niveau 1]:[Niveau 5]])=4,"0",LEFT(Tableau3[[#This Row],[Niveau]],(LEN(Tableau3[[#This Row],[Niveau]])-LEN(OFFSET(Tableau3[[#This Row],[Niveau 5]],0,(-COUNTBLANK(Tableau3[[#This Row],[Niveau 1]:[Niveau 5]]))))-1))) ->  | O61: =IF(Tableau3[[#This Row],[Catégorie pièce]]="Opérations",VLOOKUP(M61,'Poste de charge'!A:C,2,FALSE),VLOOKUP(CONCATENATE(M61),[1]ARTRDCL!$A$1:$U$25000,2,FALSE)) ->  | T61: =IF(N61="Nouveau",MID(Tableau3[[#This Row],[Article produit/ Poste de charge]],2,15),"") ->  | Y61: =IF(Tableau3[[#This Row],[Catégorie pièce]]="Opération",$M$5/100,VLOOKUP(CONCATENATE(Tableau3[[#This Row],[Article produit/ Poste de charge]]),[1]ARTRDCL!$A$1:$U$65536,15,FALSE)) ->  | AA61: 0 | AB61: 0 | AM61: 0 | AN61: =IFERROR(VLOOKUP(CONCATENATE(AC61),Tôles!A:W,10,FALSE)/AA61*(IF(AY61=TRUE,BOM!B61,Tableau3[[#This Row],[surface de la tôle (m²)]])),0) -> 0 | AO61: =IF(AY61=TRUE,Paramètres!$B$13/AX61,0) -> 0 | AP61: 0 | AQ61: =IF(AI61>0, (40/AX61 +0.4*AI61)*Paramètres!$B$2/100,0) -> 0 | AR61: =IF(AJ61>0,(0.15/$AX61+$AJ61)*Paramètres!$B$2/100,0) -> 0 | AS61: =IF(AK61="Oui",(13/AX61 +AZ61)*Paramètres!$B$2/100,0) -> 0 | AT61: =IFERROR(VLOOKUP(CONCATENATE(AC61),Tôles!A:W,9,FALSE),0) -> 0 | AU61: 0 | AV61: =IFERROR(AT61/AU61/Paramètres!$B$9,0) -> 0 | AW61: =IFERROR(Paramètres!$B$8/Tableau3[[#This Row],[Surface de la pièce (m²)]]/Paramètres!$B$9,0) -> 0 | AX61: 0 | AY61: FALSE | AZ61: 0.5 | BA61: =IF(OR(ISERROR((5/$AN61 +$X61*0.08*$T61+ ($U61+$V61) * 0.001)*Paramètres!$B$2/100),AD61 = ""),0,(5/$AN61 +$X61*0.08*$T61+ ($U61+$V61) * 0.001)*Paramètres!$B$2/100) -> 0 | BB61: =IF(OR(ISERROR((10/$AN61+$X61*0.007 + ($U61+$V61) * 0.0005)*Paramètres!$B$2/100),AD61= ""),0,(10/$AN61+$X61*0.007 + ($U61+$V61) * 0.0005)*Paramètres!$B$2/100) -> 0
H62: =SUBSTITUTE(TRIM(CONCATENATE(Tableau3[[#This Row],[Niveau 1]]," ",Tableau3[[#This Row],[Niveau 2]]," ",Tableau3[[#This Row],[Niveau 3]]," ",Tableau3[[#This Row],[Niveau 4]]," ",Tableau3[[#This Row],[Niveau 5]]))," ",".") ->  | I62: =IF(COUNTBLANK(Tableau3[[#This Row],[Niveau 1]:[Niveau 5]])=4,"0",LEFT(Tableau3[[#This Row],[Niveau]],(LEN(Tableau3[[#This Row],[Niveau]])-LEN(OFFSET(Tableau3[[#This Row],[Niveau 5]],0,(-COUNTBLANK(Tableau3[[#This Row],[Niveau 1]:[Niveau 5]]))))-1))) ->  | O62: =IF(Tableau3[[#This Row],[Catégorie pièce]]="Opérations",VLOOKUP(M62,'Poste de charge'!A:C,2,FALSE),VLOOKUP(CONCATENATE(M62),[1]ARTRDCL!$A$1:$U$25000,2,FALSE)) ->  | T62: =IF(N62="Nouveau",MID(Tableau3[[#This Row],[Article produit/ Poste de charge]],2,15),"") ->  | Y62: =IF(Tableau3[[#This Row],[Catégorie pièce]]="Opérations",$M$5/100,VLOOKUP(CONCATENATE(Tableau3[[#This Row],[Article produit/ Poste de charge]]),[1]ARTRDCL!$A$1:$U$65536,15,FALSE)) ->  | AA62: 0 | AB62: 0 | AM62: 0 | AN62: =IFERROR(VLOOKUP(CONCATENATE(AC62),Tôles!A:W,10,FALSE)/AA62*(IF(AY62=TRUE,BOM!B62,Tableau3[[#This Row],[surface de la tôle (m²)]])),0) -> 0 | AO62: =IF(AY62=TRUE,Paramètres!$B$13/AX62,0) -> 0 | AP62: 0 | AQ62: =IF(AI62>0, (40/AX62 +0.4*AI62)*Paramètres!$B$2/100,0) -> 0 | AR62: =IF(AJ62>0,(0.15/$AX62+$AJ62)*Paramètres!$B$2/100,0) -> 0 | AS62: =IF(AK62="Oui",(13/AX62 +AZ62)*Paramètres!$B$2/100,0) -> 0 | AT62: =IFERROR(VLOOKUP(CONCATENATE(AC62),Tôles!A:W,9,FALSE),0) -> 0 | AU62: 0 | AV62: =IFERROR(AT62/AU62/Paramètres!$B$9,0) -> 0 | AW62: =IFERROR(Paramètres!$B$8/Tableau3[[#This Row],[Surface de la pièce (m²)]]/Paramètres!$B$9,0) -> 0 | AX62: 0 | AY62: FALSE | AZ62: 0.5 | BA62: =IF(OR(ISERROR((5/$AN62 +$X62*0.08*$T62+ ($U62+$V62) * 0.001)*Paramètres!$B$2/100),AD62 = ""),0,(5/$AN62 +$X62*0.08*$T62+ ($U62+$V62) * 0.001)*Paramètres!$B$2/100) -> 0 | BB62: =IF(OR(ISERROR((10/$AN62+$X62*0.007 + ($U62+$V62) * 0.0005)*Paramètres!$B$2/100),AD62= ""),0,(10/$AN62+$X62*0.007 + ($U62+$V62) * 0.0005)*Paramètres!$B$2/100) -> 0
BC90: =SUMPRODUCT($Y8:$Y62,BC8:BC62) ->  | BD90: =SUMPRODUCT($Y8:$Y62,BD8:BD62) -> 
Z91: 1.6218 | BC91: =BC90*$Z91 ->  | BD91: =BD90*$Z91 -> 
AC92: =#REF! -> 
AC93: =#REF! -> 
AC94: =#REF! -> 
AC95: =#REF! -> 
AC96: =#REF! -> 
AC97: =#REF! -> 
AD98: Total VCOGS
AD99: TOTAL TP

Sheet MMS
C2: MMS001 | V2: MMS002 | AG2: MMS003
C3: MMS001/E | O3: MMS001/F | Q3: MMS001/G | U3: MMS001/H | V3: MMS002/E | AC3: MMS002/F | AE3: MMS002/G
B4: Article Produit | C4: Désignation | D4: Numéro de plan | E4: Type article | F4: Groupe article | G4: Groupe produit | H4: Mét.val. stock | I4: U/M de Base | J4: Resp. article | K4: Code fab./achat | L4: Groupe approvis | M4: Mét. gestion/lot | N4: Mét. numérot. lot | O4: Poids Brut | P4: Poids net | Q4: Code configurat | R4: Catégorie Article | S4: Modèle | T4: Matricule O/N | U4: Type/volume | V4: Code acquisit | W4: Type ordre | X4: Périodes planif | Y4: Polit. planif | Z4: Délai sécurité. | AA4: Borne plan.dde. | AB4: Borne de planif | AC4: Série économique | AD4: Pol. lotissement | AE4: Emplacement | AF4: Mét sortie OF | AG4: Dél. administra | AH4: Modèle
B5: 12345678 | C5: =+VLOOKUP(B5,BOM!$M:$O,3,FALSE) ->  | D5: =VLOOKUP(B5,BOM!$M:$W,8,FALSE) ->  | E5: =IF($AH5='Modèles+listes'!$B$5,'Modèles+listes'!D$5,IF($AH5='Modèles+listes'!$B$6,'Modèles+listes'!D$6,IF($AH5='Modèles+listes'!$B$7,'Modèles+listes'!D$7,IF($AH5='Modèles+listes'!$B$8,'Modèles+listes'!D$8,IF($AH5='Modèles+listes'!$B$9,'Modèles+listes'!D$9,IF($AH5='Modèles+listes'!$B$10,'Modèles+listes'!D$10,IF($AH5='Modèles+listes'!$B$11,'Modèles+listes'!D$11,IF($AH5='Modèles+listes'!$B$12,'Modèles+listes'!D$12,IF($AH5='Modèles+listes'!$B$13,'Modèles+listes'!D$13,IF($AH5='Modèles+listes'!$B$14,'Modèles+listes'!D$14,IF($AH5='Modèles+listes'!$B$15,'Modèles+listes'!D$15,IF($AH5='Modèles+listes'!$B$16,'Modèles+listes'!D$16,IF($AH5='Modèles+listes'!$B$17,'Modèles+listes'!D$17,IF($AH5='Modèles+listes'!$B$18,'Modèles+listes'!D$18,IF($AH5='Modèles+listes'!$B$19,'Modèles+listes'!D$19,IF($AH5='Modèles+listes'!$B$20,'Modèles+listes'!D$20,FALSE)))))))))))))))) ->  | F5: =BOM!$R$4 -> 1506 | G5: =BOM!$R$5 -> 04090 | H5: =IF($AH5='Modèles+listes'!$B$5,'Modèles+listes'!E$5,IF($AH5='Modèles+listes'!$B$6,'Modèles+listes'!E$6,IF($AH5='Modèles+listes'!$B$7,'Modèles+listes'!E$7,IF($AH5='Modèles+listes'!$B$8,'Modèles+listes'!E$8,IF($AH5='Modèles+listes'!$B$9,'Modèles+listes'!E$9,IF($AH5='Modèles+listes'!$B$10,'Modèles+listes'!E$10,IF($AH5='Modèles+listes'!$B$11,'Modèles+listes'!E$11,IF($AH5='Modèles+listes'!$B$12,'Modèles+listes'!E$12,IF($AH5='Modèles+listes'!$B$13,'Modèles+listes'!E$13,IF($AH5='Modèles+listes'!$B$14,'Modèles+listes'!E$14,IF($AH5='Modèles+listes'!$B$15,'Modèles+listes'!E$15,IF($AH5='Modèles+listes'!$B$16,'Modèles+listes'!E$16,IF($AH5='Modèles+listes'!$B$17,'Modèles+listes'!E$17,IF($AH5='Modèles+listes'!$B$18,'Modèles+listes'!E$18,IF($AH5='Modèles+listes'!$B$19,'Modèles+listes'!E$19,IF($AH5='Modèles+listes'!$B$20,'Modèles+listes'!E$20,FALSE)))))))))))))))) ->  | I5: =+VLOOKUP($B5,BOM!$M:$BB,5,FALSE) ->  | J5: =+IF(E5<>"04",BOM!$R$3,BOM!$R$2) ->  | K5: =IF($AH5='Modèles+listes'!$B$5,'Modèles+listes'!F$5,IF($AH5='Modèles+listes'!$B$6,'Modèles+listes'!F$6,IF($AH5='Modèles+listes'!$B$7,'Modèles+listes'!F$7,IF($AH5='Modèles+listes'!$B$8,'Modèles+listes'!F$8,IF($AH5='Modèles+listes'!$B$9,'Modèles+listes'!F$9,IF($AH5='Modèles+listes'!$B$10,'Modèles+listes'!F$10,IF($AH5='Modèles+listes'!$B$11,'Modèles+listes'!F$11,IF($AH5='Modèles+listes'!$B$12,'Modèles+listes'!F$12,IF($AH5='Modèles+listes'!$B$13,'Modèles+listes'!F$13,IF($AH5='Modèles+listes'!$B$14,'Modèles+listes'!F$14,IF($AH5='Modèles+listes'!$B$15,'Modèles+listes'!F$15,IF($AH5='Modèles+listes'!$B$16,'Modèles+listes'!F$16,IF($AH5='Modèles+listes'!$B$17,'Modèles+listes'!F$17,IF($AH5='Modèles+listes'!$B$18,'Modèles+listes'!F$18,IF($AH5='Modèles+listes'!$B$19,'Modèles+listes'!F$19,IF($AH5='Modèles+listes'!$B$20,'Modèles+listes'!F$20,FALSE)))))))))))))))) ->  | L5: =IF($AH5='Modèles+listes'!$B$5,'Modèles+listes'!G$5,IF($AH5='Modèles+listes'!$B$6,'Modèles+listes'!G$6,IF($AH5='Modèles+listes'!$B$7,'Modèles+listes'!G$7,IF($AH5='Modèles+listes'!$B$8,'Modèles+listes'!G$8,IF($AH5='Modèles+listes'!$B$9,'Modèles+listes'!G$9,IF($AH5='Modèles+listes'!$B$10,'Modèles+listes'!G$10,IF($AH5='Modèles+listes'!$B$11,'Modèles+listes'!G$11,IF($AH5='Modèles+listes'!$B$12,'Modèles+listes'!G$12,IF($AH5='Modèles+listes'!$B$13,'Modèles+listes'!G$13,IF($AH5='Modèles+listes'!$B$14,'Modèles+listes'!G$14,IF($AH5='Modèles+listes'!$B$15,'Modèles+listes'!G$15,IF($AH5='Modèles+listes'!$B$16,'Modèles+listes'!G$16,IF($AH5='Modèles+listes'!$B$17,'Modèles+listes'!G$17,IF($AH5='Modèles+listes'!$B$18,'Modèles+listes'!G$18,IF($AH5='Modèles+listes'!$B$19,'Modèles+listes'!G$19,IF($AH5='Modèles+listes'!$B$20,'Modèles+listes'!G$20,FALSE)))))))))))))))) ->  | M5: =IF($AH5='Modèles+listes'!$B$5,'Modèles+listes'!H$5,IF($AH5='Modèles+listes'!$B$6,'Modèles+listes'!H$6,IF($AH5='Modèles+listes'!$B$7,'Modèles+listes'!H$7,IF($AH5='Modèles+listes'!$B$8,'Modèles+listes'!H$8,IF($AH5='Modèles+listes'!$B$9,'Modèles+listes'!H$9,IF($AH5='Modèles+listes'!$B$10,'Modèles+listes'!H$10,IF($AH5='Modèles+listes'!$B$11,'Modèles+listes'!H$11,IF($AH5='Modèles+listes'!$B$12,'Modèles+listes'!H$12,IF($AH5='Modèles+listes'!$B$13,'Modèles+listes'!H$13,IF($AH5='Modèles+listes'!$B$14,'Modèles+listes'!H$14,IF($AH5='Modèles+listes'!$B$15,'Modèles+listes'!H$15,IF($AH5='Modèles+listes'!$B$16,'Modèles+listes'!H$16,IF($AH5='Modèles+listes'!$B$17,'Modèles+listes'!H$17,IF($AH5='Modèles+listes'!$B$18,'Modèles+listes'!H$18,IF($AH5='Modèles+listes'!$B$19,'Modèles+listes'!H$19,IF($AH5='Modèles+listes'!$B$20,'Modèles+listes'!H$20,FALSE)))))))))))))))) ->  | N5: =IF($AH5='Modèles+listes'!$B$5,'Modèles+listes'!I$5,IF($AH5='Modèles+listes'!$B$6,'Modèles+listes'!I$6,IF($AH5='Modèles+listes'!$B$7,'Modèles+listes'!I$7,IF($AH5='Modèles+listes'!$B$8,'Modèles+listes'!I$8,IF($AH5='Modèles+listes'!$B$9,'Modèles+listes'!I$9,IF($AH5='Modèles+listes'!$B$10,'Modèles+listes'!I$10,IF($AH5='Modèles+listes'!$B$11,'Modèles+listes'!I$11,IF($AH5='Modèles+listes'!$B$12,'Modèles+listes'!I$12,IF($AH5='Modèles+listes'!$B$13,'Modèles+listes'!I$13,IF($AH5='Modèles+listes'!$B$14,'Modèles+listes'!I$14,IF($AH5='Modèles+listes'!$B$15,'Modèles+listes'!I$15,IF($AH5='Modèles+listes'!$B$16,'Modèles+listes'!I$16,IF($AH5='Modèles+listes'!$B$17,'Modèles+listes'!I$17,IF($AH5='Modèles+listes'!$B$18,'Modèles+listes'!I$18,IF($AH5='Modèles+listes'!$B$19,'Modèles+listes'!I$19,IF($AH5='Modèles+listes'!$B$20,'Modèles+listes'!I$20,FALSE)))))))))))))))) ->  | O5: =+VLOOKUP(B5,BOM!$M:$W,6,FALSE) ->  | P5: =+VLOOKUP($B5,BOM!$M:$W,7,FALSE) ->  | Q5: =IF($AH5='Modèles+listes'!$B$5,'Modèles+listes'!J$5,IF($AH5='Modèles+listes'!$B$6,'Modèles+listes'!J$6,IF($AH5='Modèles+listes'!$B$7,'Modèles+listes'!J$7,IF($AH5='Modèles+listes'!$B$8,'Modèles+listes'!J$8,IF($AH5='Modèles+listes'!$B$9,'Modèles+listes'!J$9,IF($AH5='Modèles+listes'!$B$10,'Modèles+listes'!J$10,IF($AH5='Modèles+listes'!$B$11,'Modèles+listes'!J$11,IF($AH5='Modèles+listes'!$B$12,'Modèles+listes'!J$12,IF($AH5='Modèles+listes'!$B$13,'Modèles+listes'!J$13,IF($AH5='Modèles+listes'!$B$14,'Modèles+listes'!J$14,IF($AH5='Modèles+listes'!$B$15,'Modèles+listes'!J$15,IF($AH5='Modèles+listes'!$B$16,'Modèles+listes'!J$16,IF($AH5='Modèles+listes'!$B$17,'Modèles+listes'!J$17,IF($AH5='Modèles+listes'!$B$18,'Modèles+listes'!J$18,IF($AH5='Modèles+listes'!$B$19,'Modèles+listes'!J$19,IF($AH5='Modèles+listes'!$B$20,'Modèles+listes'!J$20,FALSE)))))))))))))))) ->  | R5: =IF($AH5='Modèles+listes'!$B$5,'Modèles+listes'!K$5,IF($AH5='Modèles+listes'!$B$6,'Modèles+listes'!K$6,IF($AH5='Modèles+listes'!$B$7,'Modèles+listes'!K$7,IF($AH5='Modèles+listes'!$B$8,'Modèles+listes'!K$8,IF($AH5='Modèles+listes'!$B$9,'Modèles+listes'!K$9,IF($AH5='Modèles+listes'!$B$10,'Modèles+listes'!K$10,IF($AH5='Modèles+listes'!$B$11,'Modèles+listes'!K$11,IF($AH5='Modèles+listes'!$B$12,'Modèles+listes'!K$12,IF($AH5='Modèles+listes'!$B$13,'Modèles+listes'!K$13,IF($AH5='Modèles+listes'!$B$14,'Modèles+listes'!K$14,IF($AH5='Modèles+listes'!$B$15,'Modèles+listes'!K$15,IF($AH5='Modèles+listes'!$B$16,'Modèles+listes'!K$16,IF($AH5='Modèles+listes'!$B$17,'Modèles+listes'!K$17,IF($AH5='Modèles+listes'!$B$18,'Modèles+listes'!K$18,IF($AH5='Modèles+listes'!$B$19,'Modèles+listes'!K$19,IF($AH5='Modèles+listes'!$B$20,'Modèles+listes'!K$20,FALSE)))))))))))))))) ->  | T5: =VLOOKUP(B5,BOM!$M:$W,9,FALSE) ->  | V5: =IF($AH5='Modèles+listes'!$B$5,'Modèles+listes'!L$5,IF($AH5='Modèles+listes'!$B$6,'Modèles+listes'!L$6,IF($AH5='Modèles+listes'!$B$7,'Modèles+listes'!L$7,IF($AH5='Modèles+listes'!$B$8,'Modèles+listes'!L$8,IF($AH5='Modèles+listes'!$B$9,'Modèles+listes'!L$9,IF($AH5='Modèles+listes'!$B$10,'Modèles+listes'!L$10,IF($AH5='Modèles+listes'!$B$11,'Modèles+listes'!L$11,IF($AH5='Modèles+listes'!$B$12,'Modèles+listes'!L$12,IF($AH5='Modèles+listes'!$B$13,'Modèles+listes'!L$13,IF($AH5='Modèles+listes'!$B$14,'Modèles+listes'!L$14,IF($AH5='Modèles+listes'!$B$15,'Modèles+listes'!L$15,IF($AH5='Modèles+listes'!$B$16,'Modèles+listes'!L$16,IF($AH5='Modèles+listes'!$B$17,'Modèles+listes'!L$17,IF($AH5='Modèles+listes'!$B$18,'Modèles+listes'!L$18,IF($AH5='Modèles+listes'!$B$19,'Modèles+listes'!L$19,IF($AH5='Modèles+listes'!$B$20,'Modèles+listes'!L$20,FALSE)))))))))))))))) ->  | W5: =IF($AH5='Modèles+listes'!$B$5,'Modèles+listes'!M$5,IF($AH5='Modèles+listes'!$B$6,'Modèles+listes'!M$6,IF($AH5='Modèles+listes'!$B$7,'Modèles+listes'!M$7,IF($AH5='Modèles+listes'!$B$8,'Modèles+listes'!M$8,IF($AH5='Modèles+listes'!$B$9,'Modèles+listes'!M$9,IF($AH5='Modèles+listes'!$B$10,'Modèles+listes'!M$10,IF($AH5='Modèles+listes'!$B$11,'Modèles+listes'!M$11,IF($AH5='Modèles+listes'!$B$12,'Modèles+listes'!M$12,IF($AH5='Modèles+listes'!$B$13,'Modèles+listes'!M$13,IF($AH5='Modèles+listes'!$B$14,'Modèles+listes'!M$14,IF($AH5='Modèles+listes'!$B$15,'Modèles+listes'!M$15,IF($AH5='Modèles+listes'!$B$16,'Modèles+listes'!M$16,IF($AH5='Modèles+listes'!$B$17,'Modèles+listes'!M$17,IF($AH5='Modèles+listes'!$B$18,'Modèles+listes'!M$18,IF($AH5='Modèles+listes'!$B$19,'Modèles+listes'!M$19,IF($AH5='Modèles+listes'!$B$20,'Modèles+listes'!M$20,FALSE)))))))))))))))) ->  | X5: =IF($AH5='Modèles+listes'!$B$5,'Modèles+listes'!N$5,IF($AH5='Modèles+listes'!$B$6,'Modèles+listes'!N$6,IF($AH5='Modèles+listes'!$B$7,'Modèles+listes'!N$7,IF($AH5='Modèles+listes'!$B$8,'Modèles+listes'!N$8,IF($AH5='Modèles+listes'!$B$9,'Modèles+listes'!N$9,IF($AH5='Modèles+listes'!$B$10,'Modèles+listes'!N$10,IF($AH5='Modèles+listes'!$B$11,'Modèles+listes'!N$11,IF($AH5='Modèles+listes'!$B$12,'Modèles+listes'!N$12,IF($AH5='Modèles+listes'!$B$13,'Modèles+listes'!N$13,IF($AH5='Modèles+listes'!$B$14,'Modèles+listes'!N$14,IF($AH5='Modèles+listes'!$B$15,'Modèles+listes'!N$15,IF($AH5='Modèles+listes'!$B$16,'Modèles+listes'!N$16,IF($AH5='Modèles+listes'!$B$17,'Modèles+listes'!N$17,IF($AH5='Modèles+listes'!$B$18,'Modèles+listes'!N$18,IF($AH5='Modèles+listes'!$B$19,'Modèles+listes'!N$19,IF($AH5='Modèles+listes'!$B$20,'Modèles+listes'!N$20,FALSE)))))))))))))))) ->  | Y5: =IF($AH5='Modèles+listes'!$B$5,'Modèles+listes'!O$5,IF($AH5='Modèles+listes'!$B$6,'Modèles+listes'!O$6,IF($AH5='Modèles+listes'!$B$7,'Modèles+listes'!O$7,IF($AH5='Modèles+listes'!$B$8,'Modèles+listes'!O$8,IF($AH5='Modèles+listes'!$B$9,'Modèles+listes'!O$9,IF($AH5='Modèles+listes'!$B$10,'Modèles+listes'!O$10,IF($AH5='Modèles+listes'!$B$11,'Modèles+listes'!O$11,IF($AH5='Modèles+listes'!$B$12,'Modèles+listes'!O$12,IF($AH5='Modèles+listes'!$B$13,'Modèles+listes'!O$13,IF($AH5='Modèles+listes'!$B$14,'Modèles+listes'!O$14,IF($AH5='Modèles+listes'!$B$15,'Modèles+listes'!O$15,IF($AH5='Modèles+listes'!$B$16,'Modèles+listes'!O$16,IF($AH5='Modèles+listes'!$B$17,'Modèles+listes'!O$17,IF($AH5='Modèles+listes'!$B$18,'Modèles+listes'!O$18,IF($AH5='Modèles+listes'!$B$19,'Modèles+listes'!O$19,IF($AH5='Modèles+listes'!$B$20,'Modèles+listes'!O$20,FALSE)))))))))))))))) ->  | Z5: =IF($AH5='Modèles+listes'!$B$5,'Modèles+listes'!P$5,IF($AH5='Modèles+listes'!$B$6,'Modèles+listes'!P$6,IF($AH5='Modèles+listes'!$B$7,'Modèles+listes'!P$7,IF($AH5='Modèles+listes'!$B$8,'Modèles+listes'!P$8,IF($AH5='Modèles+listes'!$B$9,'Modèles+listes'!P$9,IF($AH5='Modèles+listes'!$B$10,'Modèles+listes'!P$10,IF($AH5='Modèles+listes'!$B$11,'Modèles+listes'!P$11,IF($AH5='Modèles+listes'!$B$12,'Modèles+listes'!P$12,IF($AH5='Modèles+listes'!$B$13,'Modèles+listes'!P$13,IF($AH5='Modèles+listes'!$B$14,'Modèles+listes'!P$14,IF($AH5='Modèles+listes'!$B$15,'Modèles+listes'!P$15,IF($AH5='Modèles+listes'!$B$16,'Modèles+listes'!P$16,IF($AH5='Modèles+listes'!$B$17,'Modèles+listes'!P$17,IF($AH5='Modèles+listes'!$B$18,'Modèles+listes'!P$18,IF($AH5='Modèles+listes'!$B$19,'Modèles+listes'!P$19,IF($AH5='Modèles+listes'!$B$20,'Modèles+listes'!P$20,FALSE)))))))))))))))) ->  | AA5: =IF($AH5='Modèles+listes'!$B$5,'Modèles+listes'!Q$5,IF($AH5='Modèles+listes'!$B$6,'Modèles+listes'!Q$6,IF($AH5='Modèles+listes'!$B$7,'Modèles+listes'!Q$7,IF($AH5='Modèles+listes'!$B$8,'Modèles+listes'!Q$8,IF($AH5='Modèles+listes'!$B$9,'Modèles+listes'!Q$9,IF($AH5='Modèles+listes'!$B$10,'Modèles+listes'!Q$10,IF($AH5='Modèles+listes'!$B$11,'Modèles+listes'!Q$11,IF($AH5='Modèles+listes'!$B$12,'Modèles+listes'!Q$12,IF($AH5='Modèles+listes'!$B$13,'Modèles+listes'!Q$13,IF($AH5='Modèles+listes'!$B$14,'Modèles+listes'!Q$14,IF($AH5='Modèles+listes'!$B$15,'Modèles+listes'!Q$15,IF($AH5='Modèles+listes'!$B$16,'Modèles+listes'!Q$16,IF($AH5='Modèles+listes'!$B$17,'Modèles+listes'!Q$17,IF($AH5='Modèles+listes'!$B$18,'Modèles+listes'!Q$18,IF($AH5='Modèles+listes'!$B$19,'Modèles+listes'!Q$19,IF($AH5='Modèles+listes'!$B$20,'Modèles+listes'!Q$20,FALSE)))))))))))))))) ->  | AB5: =IF($AH5='Modèles+listes'!$B$5,'Modèles+listes'!R$5,IF($AH5='Modèles+listes'!$B$6,'Modèles+listes'!R$6,IF($AH5='Modèles+listes'!$B$7,'Modèles+listes'!R$7,IF($AH5='Modèles+listes'!$B$8,'Modèles+listes'!R$8,IF($AH5='Modèles+listes'!$B$9,'Modèles+listes'!R$9,IF($AH5='Modèles+listes'!$B$10,'Modèles+listes'!R$10,IF($AH5='Modèles+listes'!$B$11,'Modèles+listes'!R$11,IF($AH5='Modèles+listes'!$B$12,'Modèles+listes'!R$12,IF($AH5='Modèles+listes'!$B$13,'Modèles+listes'!R$13,IF($AH5='Modèles+listes'!$B$14,'Modèles+listes'!R$14,IF($AH5='Modèles+listes'!$B$15,'Modèles+listes'!R$15,IF($AH5='Modèles+listes'!$B$16,'Modèles+listes'!R$16,IF($AH5='Modèles+listes'!$B$17,'Modèles+listes'!R$17,IF($AH5='Modèles+listes'!$B$18,'Modèles+listes'!R$18,IF($AH5='Modèles+listes'!$B$19,'Modèles+listes'!R$19,IF($AH5='Modèles+listes'!$B$20,'Modèles+listes'!R$20,FALSE)))))))))))))))) ->  | AC5: =+VLOOKUP(B5,BOM!$M:$W,11,FALSE) ->  | AD5: =IF($AH5='Modèles+listes'!$B$5,'Modèles+listes'!T$5,IF($AH5='Modèles+listes'!$B$6,'Modèles+listes'!T$6,IF($AH5='Modèles+listes'!$B$7,'Modèles+listes'!T$7,IF($AH5='Modèles+listes'!$B$8,'Modèles+listes'!T$8,IF($AH5='Modèles+listes'!$B$9,'Modèles+listes'!T$9,IF($AH5='Modèles+listes'!$B$10,'Modèles+listes'!T$10,IF($AH5='Modèles+listes'!$B$11,'Modèles+listes'!T$11,IF($AH5='Modèles+listes'!$B$12,'Modèles+listes'!T$12,IF($AH5='Modèles+listes'!$B$13,'Modèles+listes'!T$13,IF($AH5='Modèles+listes'!$B$14,'Modèles+listes'!T$14,IF($AH5='Modèles+listes'!$B$15,'Modèles+listes'!T$15,IF($AH5='Modèles+listes'!$B$16,'Modèles+listes'!T$16,IF($AH5='Modèles+listes'!$B$17,'Modèles+listes'!T$17,IF($AH5='Modèles+listes'!$B$18,'Modèles+listes'!T$18,IF($AH5='Modèles+listes'!$B$19,'Modèles+listes'!T$19,IF($AH5='Modèles+listes'!$B$20,'Modèles+listes'!T$20,FALSE)))))))))))))))) ->  | AE5: =IF($AH5='Modèles+listes'!$B$5,'Modèles+listes'!U$5,IF($AH5='Modèles+listes'!$B$6,'Modèles+listes'!U$6,IF($AH5='Modèles+listes'!$B$7,'Modèles+listes'!U$7,IF($AH5='Modèles+listes'!$B$8,'Modèles+listes'!U$8,IF($AH5='Modèles+listes'!$B$9,'Modèles+listes'!U$9,IF($AH5='Modèles+listes'!$B$10,'Modèles+listes'!U$10,IF($AH5='Modèles+listes'!$B$11,'Modèles+listes'!U$11,IF($AH5='Modèles+listes'!$B$12,'Modèles+listes'!U$12,IF($AH5='Modèles+listes'!$B$13,'Modèles+listes'!U$13,IF($AH5='Modèles+listes'!$B$14,'Modèles+listes'!U$14,IF($AH5='Modèles+listes'!$B$15,'Modèles+listes'!U$15,IF($AH5='Modèles+listes'!$B$16,'Modèles+listes'!U$16,IF($AH5='Modèles+listes'!$B$17,'Modèles+listes'!U$17,IF($AH5='Modèles+listes'!$B$18,'Modèles+listes'!U$18,IF($AH5='Modèles+listes'!$B$19,'Modèles+listes'!U$19,IF($AH5='Modèles+listes'!$B$20,'Modèles+listes'!U$20,FALSE)))))))))))))))) ->  | AF5: =IF($AH5='Modèles+listes'!$B$5,'Modèles+listes'!V$5,IF($AH5='Modèles+listes'!$B$6,'Modèles+listes'!V$6,IF($AH5='Modèles+listes'!$B$7,'Modèles+listes'!V$7,IF($AH5='Modèles+listes'!$B$8,'Modèles+listes'!V$8,IF($AH5='Modèles+listes'!$B$9,'Modèles+listes'!V$9,IF($AH5='Modèles+listes'!$B$10,'Modèles+listes'!V$10,IF($AH5='Modèles+listes'!$B$11,'Modèles+listes'!V$11,IF($AH5='Modèles+listes'!$B$12,'Modèles+listes'!V$12,IF($AH5='Modèles+listes'!$B$13,'Modèles+listes'!V$13,IF($AH5='Modèles+listes'!$B$14,'Modèles+listes'!V$14,IF($AH5='Modèles+listes'!$B$15,'Modèles+listes'!V$15,IF($AH5='Modèles+listes'!$B$16,'Modèles+listes'!V$16,IF($AH5='Modèles+listes'!$B$17,'Modèles+listes'!V$17,IF($AH5='Modèles+listes'!$B$18,'Modèles+listes'!V$18,IF($AH5='Modèles+listes'!$B$19,'Modèles+listes'!V$19,IF($AH5='Modèles+listes'!$B$20,'Modèles+listes'!V$20,FALSE)))))))))))))))) ->  | AG5: =IF($AH5='Modèles+listes'!$B$5,'Modèles+listes'!W$5,IF($AH5='Modèles+listes'!$B$6,'Modèles+listes'!W$6,IF($AH5='Modèles+listes'!$B$7,'Modèles+listes'!W$7,IF($AH5='Modèles+listes'!$B$8,'Modèles+listes'!W$8,IF($AH5='Modèles+listes'!$B$9,'Modèles+listes'!W$9,IF($AH5='Modèles+listes'!$B$10,'Modèles+listes'!W$10,IF($AH5='Modèles+listes'!$B$11,'Modèles+listes'!W$11,IF($AH5='Modèles+listes'!$B$12,'Modèles+listes'!W$12,IF($AH5='Modèles+listes'!$B$13,'Modèles+listes'!W$13,IF($AH5='Modèles+listes'!$B$14,'Modèles+listes'!W$14,IF($AH5='Modèles+listes'!$B$15,'Modèles+listes'!W$15,IF($AH5='Modèles+listes'!$B$16,'Modèles+listes'!W$16,IF($AH5='Modèles+listes'!$B$17,'Modèles+listes'!W$17,IF($AH5='Modèles+listes'!$B$18,'Modèles+listes'!W$18,IF($AH5='Modèles+listes'!$B$19,'Modèles+listes'!W$19,IF($AH5='Modèles+listes'!$B$20,'Modèles+listes'!W$20,FALSE)))))))))))))))) ->  | AH5: =+VLOOKUP(B5,BOM!$M:$W,4,FALSE) -> 
B6: MMITNO | C6: MMITDS | D6: MMDWNO | E6: MMITTY | F6: MMITGR | G6: MMITCL | H6: MMSTCD | I6: MMUNMS | J6: MMRESP | K6: MMMABU | L6: MMPRGP | M6: MMINDI | N6: MMBACD | O6: MMGRWE | P6: MMNEWE | Q6: MMCHCD | R6: MMTPCD | S6: MMCFI1 | T6: MMCFI5 | U6: MMFRE3 | V6: MBPUIT | W6: MBORTY | X6: MBDPID | Y6: MBPLCD | Z6: MBSATD | AA6: MBDMFN | AB6: MBPFTM | AC6: MBEOQT | AD6: MBEOQM | AE6: MBWHSL | AF6: MBSPMT | AG6: M9LEA4 | AJ6: modèle formule ne pas suprimer
B7: 84045006 | C7: =+VLOOKUP(B7,BOM!$M:$O,3,FALSE) -> FONCET MOBILE LISSE GCHE | D7: =VLOOKUP(B7,BOM!$M:$W,8,FALSE) -> 4045006 | E7: =IF($AH7='Modèles+listes'!$B$5,'Modèles+listes'!D$5,IF($AH7='Modèles+listes'!$B$6,'Modèles+listes'!D$6,IF($AH7='Modèles+listes'!$B$7,'Modèles+listes'!D$7,IF($AH7='Modèles+listes'!$B$8,'Modèles+listes'!D$8,IF($AH7='Modèles+listes'!$B$9,'Modèles+listes'!D$9,IF($AH7='Modèles+listes'!$B$10,'Modèles+listes'!D$10,IF($AH7='Modèles+listes'!$B$11,'Modèles+listes'!D$11,IF($AH7='Modèles+listes'!$B$12,'Modèles+listes'!D$12,IF($AH7='Modèles+listes'!$B$13,'Modèles+listes'!D$13,IF($AH7='Modèles+listes'!$B$14,'Modèles+listes'!D$14,IF($AH7='Modèles+listes'!$B$15,'Modèles+listes'!D$15,IF($AH7='Modèles+listes'!$B$16,'Modèles+listes'!D$16,IF($AH7='Modèles+listes'!$B$17,'Modèles+listes'!D$17,IF($AH7='Modèles+listes'!$B$18,'Modèles+listes'!D$18,IF($AH7='Modèles+listes'!$B$19,'Modèles+listes'!D$19,IF($AH7='Modèles+listes'!$B$20,'Modèles+listes'!D$20,FALSE)))))))))))))))) -> 04 | F7: =BOM!$R$4 -> 1506 | G7: =BOM!$R$5 -> 04090 | H7: =IF($AH7='Modèles+listes'!$B$5,'Modèles+listes'!E$5,IF($AH7='Modèles+listes'!$B$6,'Modèles+listes'!E$6,IF($AH7='Modèles+listes'!$B$7,'Modèles+listes'!E$7,IF($AH7='Modèles+listes'!$B$8,'Modèles+listes'!E$8,IF($AH7='Modèles+listes'!$B$9,'Modèles+listes'!E$9,IF($AH7='Modèles+listes'!$B$10,'Modèles+listes'!E$10,IF($AH7='Modèles+listes'!$B$11,'Modèles+listes'!E$11,IF($AH7='Modèles+listes'!$B$12,'Modèles+listes'!E$12,IF($AH7='Modèles+listes'!$B$13,'Modèles+listes'!E$13,IF($AH7='Modèles+listes'!$B$14,'Modèles+listes'!E$14,IF($AH7='Modèles+listes'!$B$15,'Modèles+listes'!E$15,IF($AH7='Modèles+listes'!$B$16,'Modèles+listes'!E$16,IF($AH7='Modèles+listes'!$B$17,'Modèles+listes'!E$17,IF($AH7='Modèles+listes'!$B$18,'Modèles+listes'!E$18,IF($AH7='Modèles+listes'!$B$19,'Modèles+listes'!E$19,IF($AH7='Modèles+listes'!$B$20,'Modèles+listes'!E$20,FALSE)))))))))))))))) -> 1 | I7: =+VLOOKUP($B7,BOM!$M:$BB,5,FALSE) -> PI | J7: =+IF(E7<>"04",BOM!$R$3,BOM!$R$2) -> JACOB | K7: =IF($AH7='Modèles+listes'!$B$5,'Modèles+listes'!F$5,IF($AH7='Modèles+listes'!$B$6,'Modèles+listes'!F$6,IF($AH7='Modèles+listes'!$B$7,'Modèles+listes'!F$7,IF($AH7='Modèles+listes'!$B$8,'Modèles+listes'!F$8,IF($AH7='Modèles+listes'!$B$9,'Modèles+listes'!F$9,IF($AH7='Modèles+listes'!$B$10,'Modèles+listes'!F$10,IF($AH7='Modèles+listes'!$B$11,'Modèles+listes'!F$11,IF($AH7='Modèles+listes'!$B$12,'Modèles+listes'!F$12,IF($AH7='Modèles+listes'!$B$13,'Modèles+listes'!F$13,IF($AH7='Modèles+listes'!$B$14,'Modèles+listes'!F$14,IF($AH7='Modèles+listes'!$B$15,'Modèles+listes'!F$15,IF($AH7='Modèles+listes'!$B$16,'Modèles+listes'!F$16,IF($AH7='Modèles+listes'!$B$17,'Modèles+listes'!F$17,IF($AH7='Modèles+listes'!$B$18,'Modèles+listes'!F$18,IF($AH7='Modèles+listes'!$B$19,'Modèles+listes'!F$19,IF($AH7='Modèles+listes'!$B$20,'Modèles+listes'!F$20,FALSE)))))))))))))))) -> 2 | L7: =IF($AH7='Modèles+listes'!$B$5,'Modèles+listes'!G$5,IF($AH7='Modèles+listes'!$B$6,'Modèles+listes'!G$6,IF($AH7='Modèles+listes'!$B$7,'Modèles+listes'!G$7,IF($AH7='Modèles+listes'!$B$8,'Modèles+listes'!G$8,IF($AH7='Modèles+listes'!$B$9,'Modèles+listes'!G$9,IF($AH7='Modèles+listes'!$B$10,'Modèles+listes'!G$10,IF($AH7='Modèles+listes'!$B$11,'Modèles+listes'!G$11,IF($AH7='Modèles+listes'!$B$12,'Modèles+listes'!G$12,IF($AH7='Modèles+listes'!$B$13,'Modèles+listes'!G$13,IF($AH7='Modèles+listes'!$B$14,'Modèles+listes'!G$14,IF($AH7='Modèles+listes'!$B$15,'Modèles+listes'!G$15,IF($AH7='Modèles+listes'!$B$16,'Modèles+listes'!G$16,IF($AH7='Modèles+listes'!$B$17,'Modèles+listes'!G$17,IF($AH7='Modèles+listes'!$B$18,'Modèles+listes'!G$18,IF($AH7='Modèles+listes'!$B$19,'Modèles+listes'!G$19,IF($AH7='Modèles+listes'!$B$20,'Modèles+listes'!G$20,FALSE)))))))))))))))) -> ? | M7: =IF($AH7='Modèles+listes'!$B$5,'Modèles+listes'!H$5,IF($AH7='Modèles+listes'!$B$6,'Modèles+listes'!H$6,IF($AH7='Modèles+listes'!$B$7,'Modèles+listes'!H$7,IF($AH7='Modèles+listes'!$B$8,'Modèles+listes'!H$8,IF($AH7='Modèles+listes'!$B$9,'Modèles+listes'!H$9,IF($AH7='Modèles+listes'!$B$10,'Modèles+listes'!H$10,IF($AH7='Modèles+listes'!$B$11,'Modèles+listes'!H$11,IF($AH7='Modèles+listes'!$B$12,'Modèles+listes'!H$12,IF($AH7='Modèles+listes'!$B$13,'Modèles+listes'!H$13,IF($AH7='Modèles+listes'!$B$14,'Modèles+listes'!H$14,IF($AH7='Modèles+listes'!$B$15,'Modèles+listes'!H$15,IF($AH7='Modèles+listes'!$B$16,'Modèles+listes'!H$16,IF($AH7='Modèles+listes'!$B$17,'Modèles+listes'!H$17,IF($AH7='Modèles+listes'!$B$18,'Modèles+listes'!H$18,IF($AH7='Modèles+listes'!$B$19,'Modèles+listes'!H$19,IF($AH7='Modèles+listes'!$B$20,'Modèles+listes'!H$20,FALSE)))))))))))))))) -> 0 | N7: =IF($AH7='Modèles+listes'!$B$5,'Modèles+listes'!I$5,IF($AH7='Modèles+listes'!$B$6,'Modèles+listes'!I$6,IF($AH7='Modèles+listes'!$B$7,'Modèles+listes'!I$7,IF($AH7='Modèles+listes'!$B$8,'Modèles+listes'!I$8,IF($AH7='Modèles+listes'!$B$9,'Modèles+listes'!I$9,IF($AH7='Modèles+listes'!$B$10,'Modèles+listes'!I$10,IF($AH7='Modèles+listes'!$B$11,'Modèles+listes'!I$11,IF($AH7='Modèles+listes'!$B$12,'Modèles+listes'!I$12,IF($AH7='Modèles+listes'!$B$13,'Modèles+listes'!I$13,IF($AH7='Modèles+listes'!$B$14,'Modèles+listes'!I$14,IF($AH7='Modèles+listes'!$B$15,'Modèles+listes'!I$15,IF($AH7='Modèles+listes'!$B$16,'Modèles+listes'!I$16,IF($AH7='Modèles+listes'!$B$17,'Modèles+listes'!I$17,IF($AH7='Modèles+listes'!$B$18,'Modèles+listes'!I$18,IF($AH7='Modèles+listes'!$B$19,'Modèles+listes'!I$19,IF($AH7='Modèles+listes'!$B$20,'Modèles+listes'!I$20,FALSE)))))))))))))))) -> 0 | O7: =+VLOOKUP(B7,BOM!$M:$W,6,FALSE) -> 11 | P7: =+VLOOKUP($B7,BOM!$M:$W,7,FALSE) -> 21 | Q7: =IF($AH7='Modèles+listes'!$B$5,'Modèles+listes'!J$5,IF($AH7='Modèles+listes'!$B$6,'Modèles+listes'!J$6,IF($AH7='Modèles+listes'!$B$7,'Modèles+listes'!J$7,IF($AH7='Modèles+listes'!$B$8,'Modèles+listes'!J$8,IF($AH7='Modèles+listes'!$B$9,'Modèles+listes'!J$9,IF($AH7='Modèles+listes'!$B$10,'Modèles+listes'!J$10,IF($AH7='Modèles+listes'!$B$11,'Modèles+listes'!J$11,IF($AH7='Modèles+listes'!$B$12,'Modèles+listes'!J$12,IF($AH7='Modèles+listes'!$B$13,'Modèles+listes'!J$13,IF($AH7='Modèles+listes'!$B$14,'Modèles+listes'!J$14,IF($AH7='Modèles+listes'!$B$15,'Modèles+listes'!J$15,IF($AH7='Modèles+listes'!$B$16,'Modèles+listes'!J$16,IF($AH7='Modèles+listes'!$B$17,'Modèles+listes'!J$17,IF($AH7='Modèles+listes'!$B$18,'Modèles+listes'!J$18,IF($AH7='Modèles+listes'!$B$19,'Modèles+listes'!J$19,IF($AH7='Modèles+listes'!$B$20,'Modèles+listes'!J$20,FALSE)))))))))))))))) -> 0 | R7: =IF($AH7='Modèles+listes'!$B$5,'Modèles+listes'!K$5,IF($AH7='Modèles+listes'!$B$6,'Modèles+listes'!K$6,IF($AH7='Modèles+listes'!$B$7,'Modèles+listes'!K$7,IF($AH7='Modèles+listes'!$B$8,'Modèles+listes'!K$8,IF($AH7='Modèles+listes'!$B$9,'Modèles+listes'!K$9,IF($AH7='Modèles+listes'!$B$10,'Modèles+listes'!K$10,IF($AH7='Modèles+listes'!$B$11,'Modèles+listes'!K$11,IF($AH7='Modèles+listes'!$B$12,'Modèles+listes'!K$12,IF($AH7='Modèles+listes'!$B$13,'Modèles+listes'!K$13,IF($AH7='Modèles+listes'!$B$14,'Modèles+listes'!K$14,IF($AH7='Modèles+listes'!$B$15,'Modèles+listes'!K$15,IF($AH7='Modèles+listes'!$B$16,'Modèles+listes'!K$16,IF($AH7='Modèles+listes'!$B$17,'Modèles+listes'!K$17,IF($AH7='Modèles+listes'!$B$18,'Modèles+listes'!K$18,IF($AH7='Modèles+listes'!$B$19,'Modèles+listes'!K$19,IF($AH7='Modèles+listes'!$B$20,'Modèles+listes'!K$20,FALSE)))))))))))))))) -> 0 | T7: =VLOOKUP(B7,BOM!$M:$W,9,FALSE) -> N | V7: =IF($AH7='Modèles+listes'!$B$5,'Modèles+listes'!L$5,IF($AH7='Modèles+listes'!$B$6,'Modèles+listes'!L$6,IF($AH7='Modèles+listes'!$B$7,'Modèles+listes'!L$7,IF($AH7='Modèles+listes'!$B$8,'Modèles+listes'!L$8,IF($AH7='Modèles+listes'!$B$9,'Modèles+listes'!L$9,IF($AH7='Modèles+listes'!$B$10,'Modèles+listes'!L$10,IF($AH7='Modèles+listes'!$B$11,'Modèles+listes'!L$11,IF($AH7='Modèles+listes'!$B$12,'Modèles+listes'!L$12,IF($AH7='Modèles+listes'!$B$13,'Modèles+listes'!L$13,IF($AH7='Modèles+listes'!$B$14,'Modèles+listes'!L$14,IF($AH7='Modèles+listes'!$B$15,'Modèles+listes'!L$15,IF($AH7='Modèles+listes'!$B$16,'Modèles+listes'!L$16,IF($AH7='Modèles+listes'!$B$17,'Modèles+listes'!L$17,IF($AH7='Modèles+listes'!$B$18,'Modèles+listes'!L$18,IF($AH7='Modèles+listes'!$B$19,'Modèles+listes'!L$19,IF($AH7='Modèles+listes'!$B$20,'Modèles+listes'!L$20,FALSE)))))))))))))))) -> 2 | W7: =IF($AH7='Modèles+listes'!$B$5,'Modèles+listes'!M$5,IF($AH7='Modèles+listes'!$B$6,'Modèles+listes'!M$6,IF($AH7='Modèles+listes'!$B$7,'Modèles+listes'!M$7,IF($AH7='Modèles+listes'!$B$8,'Modèles+listes'!M$8,IF($AH7='Modèles+listes'!$B$9,'Modèles+listes'!M$9,IF($AH7='Modèles+listes'!$B$10,'Modèles+listes'!M$10,IF($AH7='Modèles+listes'!$B$11,'Modèles+listes'!M$11,IF($AH7='Modèles+listes'!$B$12,'Modèles+listes'!M$12,IF($AH7='Modèles+listes'!$B$13,'Modèles+listes'!M$13,IF($AH7='Modèles+listes'!$B$14,'Modèles+listes'!M$14,IF($AH7='Modèles+listes'!$B$15,'Modèles+listes'!M$15,IF($AH7='Modèles+listes'!$B$16,'Modèles+listes'!M$16,IF($AH7='Modèles+listes'!$B$17,'Modèles+listes'!M$17,IF($AH7='Modèles+listes'!$B$18,'Modèles+listes'!M$18,IF($AH7='Modèles+listes'!$B$19,'Modèles+listes'!M$19,IF($AH7='Modèles+listes'!$B$20,'Modèles+listes'!M$20,FALSE)))))))))))))))) -> 30 | X7: =IF($AH7='Modèles+listes'!$B$5,'Modèles+listes'!N$5,IF($AH7='Modèles+listes'!$B$6,'Modèles+listes'!N$6,IF($AH7='Modèles+listes'!$B$7,'Modèles+listes'!N$7,IF($AH7='Modèles+listes'!$B$8,'Modèles+listes'!N$8,IF($AH7='Modèles+listes'!$B$9,'Modèles+listes'!N$9,IF($AH7='Modèles+listes'!$B$10,'Modèles+listes'!N$10,IF($AH7='Modèles+listes'!$B$11,'Modèles+listes'!N$11,IF($AH7='Modèles+listes'!$B$12,'Modèles+listes'!N$12,IF($AH7='Modèles+listes'!$B$13,'Modèles+listes'!N$13,IF($AH7='Modèles+listes'!$B$14,'Modèles+listes'!N$14,IF($AH7='Modèles+listes'!$B$15,'Modèles+listes'!N$15,IF($AH7='Modèles+listes'!$B$16,'Modèles+listes'!N$16,IF($AH7='Modèles+listes'!$B$17,'Modèles+listes'!N$17,IF($AH7='Modèles+listes'!$B$18,'Modèles+listes'!N$18,IF($AH7='Modèles+listes'!$B$19,'Modèles+listes'!N$19,IF($AH7='Modèles+listes'!$B$20,'Modèles+listes'!N$20,FALSE)))))))))))))))) -> 12 | Y7: =IF($AH7='Modèles+listes'!$B$5,'Modèles+listes'!O$5,IF($AH7='Modèles+listes'!$B$6,'Modèles+listes'!O$6,IF($AH7='Modèles+listes'!$B$7,'Modèles+listes'!O$7,IF($AH7='Modèles+listes'!$B$8,'Modèles+listes'!O$8,IF($AH7='Modèles+listes'!$B$9,'Modèles+listes'!O$9,IF($AH7='Modèles+listes'!$B$10,'Modèles+listes'!O$10,IF($AH7='Modèles+listes'!$B$11,'Modèles+listes'!O$11,IF($AH7='Modèles+listes'!$B$12,'Modèles+listes'!O$12,IF($AH7='Modèles+listes'!$B$13,'Modèles+listes'!O$13,IF($AH7='Modèles+listes'!$B$14,'Modèles+listes'!O$14,IF($AH7='Modèles+listes'!$B$15,'Modèles+listes'!O$15,IF($AH7='Modèles+listes'!$B$16,'Modèles+listes'!O$16,IF($AH7='Modèles+listes'!$B$17,'Modèles+listes'!O$17,IF($AH7='Modèles+listes'!$B$18,'Modèles+listes'!O$18,IF($AH7='Modèles+listes'!$B$19,'Modèles+listes'!O$19,IF($AH7='Modèles+listes'!$B$20,'Modèles+listes'!O$20,FALSE)))))))))))))))) -> 01 | Z7: =IF($AH7='Modèles+listes'!$B$5,'Modèles+listes'!P$5,IF($AH7='Modèles+listes'!$B$6,'Modèles+listes'!P$6,IF($AH7='Modèles+listes'!$B$7,'Modèles+listes'!P$7,IF($AH7='Modèles+listes'!$B$8,'Modèles+listes'!P$8,IF($AH7='Modèles+listes'!$B$9,'Modèles+listes'!P$9,IF($AH7='Modèles+listes'!$B$10,'Modèles+listes'!P$10,IF($AH7='Modèles+listes'!$B$11,'Modèles+listes'!P$11,IF($AH7='Modèles+listes'!$B$12,'Modèles+listes'!P$12,IF($AH7='Modèles+listes'!$B$13,'Modèles+listes'!P$13,IF($AH7='Modèles+listes'!$B$14,'Modèles+listes'!P$14,IF($AH7='Modèles+listes'!$B$15,'Modèles+listes'!P$15,IF($AH7='Modèles+listes'!$B$16,'Modèles+listes'!P$16,IF($AH7='Modèles+listes'!$B$17,'Modèles+listes'!P$17,IF($AH7='Modèles+listes'!$B$18,'Modèles+listes'!P$18,IF($AH7='Modèles+listes'!$B$19,'Modèles+listes'!P$19,IF($AH7='Modèles+listes'!$B$20,'Modèles+listes'!P$20,FALSE)))))))))))))))) -> 5 | AA7: =IF($AH7='Modèles+listes'!$B$5,'Modèles+listes'!Q$5,IF($AH7='Modèles+listes'!$B$6,'Modèles+listes'!Q$6,IF($AH7='Modèles+listes'!$B$7,'Modèles+listes'!Q$7,IF($AH7='Modèles+listes'!$B$8,'Modèles+listes'!Q$8,IF($AH7='Modèles+listes'!$B$9,'Modèles+listes'!Q$9,IF($AH7='Modèles+listes'!$B$10,'Modèles+listes'!Q$10,IF($AH7='Modèles+listes'!$B$11,'Modèles+listes'!Q$11,IF($AH7='Modèles+listes'!$B$12,'Modèles+listes'!Q$12,IF($AH7='Modèles+listes'!$B$13,'Modèles+listes'!Q$13,IF($AH7='Modèles+listes'!$B$14,'Modèles+listes'!Q$14,IF($AH7='Modèles+listes'!$B$15,'Modèles+listes'!Q$15,IF($AH7='Modèles+listes'!$B$16,'Modèles+listes'!Q$16,IF($AH7='Modèles+listes'!$B$17,'Modèles+listes'!Q$17,IF($AH7='Modèles+listes'!$B$18,'Modèles+listes'!Q$18,IF($AH7='Modèles+listes'!$B$19,'Modèles+listes'!Q$19,IF($AH7='Modèles+listes'!$B$20,'Modèles+listes'!Q$20,FALSE)))))))))))))))) -> 0 | AB7: =IF($AH7='Modèles+listes'!$B$5,'Modèles+listes'!R$5,IF($AH7='Modèles+listes'!$B$6,'Modèles+listes'!R$6,IF($AH7='Modèles+listes'!$B$7,'Modèles+listes'!R$7,IF($AH7='Modèles+listes'!$B$8,'Modèles+listes'!R$8,IF($AH7='Modèles+listes'!$B$9,'Modèles+listes'!R$9,IF($AH7='Modèles+listes'!$B$10,'Modèles+listes'!R$10,IF($AH7='Modèles+listes'!$B$11,'Modèles+listes'!R$11,IF($AH7='Modèles+listes'!$B$12,'Modèles+listes'!R$12,IF($AH7='Modèles+listes'!$B$13,'Modèles+listes'!R$13,IF($AH7='Modèles+listes'!$B$14,'Modèles+listes'!R$14,IF($AH7='Modèles+listes'!$B$15,'Modèles+listes'!R$15,IF($AH7='Modèles+listes'!$B$16,'Modèles+listes'!R$16,IF($AH7='Modèles+listes'!$B$17,'Modèles+listes'!R$17,IF($AH7='Modèles+listes'!$B$18,'Modèles+listes'!R$18,IF($AH7='Modèles+listes'!$B$19,'Modèles+listes'!R$19,IF($AH7='Modèles+listes'!$B$20,'Modèles+listes'!R$20,FALSE)))))))))))))))) -> 0 | AC7: =+VLOOKUP(B7,BOM!$M:$W,11,FALSE) -> 1 | AD7: =IF($AH7='Modèles+listes'!$B$5,'Modèles+listes'!T$5,IF($AH7='Modèles+listes'!$B$6,'Modèles+listes'!T$6,IF($AH7='Modèles+listes'!$B$7,'Modèles+listes'!T$7,IF($AH7='Modèles+listes'!$B$8,'Modèles+listes'!T$8,IF($AH7='Modèles+listes'!$B$9,'Modèles+listes'!T$9,IF($AH7='Modèles+listes'!$B$10,'Modèles+listes'!T$10,IF($AH7='Modèles+listes'!$B$11,'Modèles+listes'!T$11,IF($AH7='Modèles+listes'!$B$12,'Modèles+listes'!T$12,IF($AH7='Modèles+listes'!$B$13,'Modèles+listes'!T$13,IF($AH7='Modèles+listes'!$B$14,'Modèles+listes'!T$14,IF($AH7='Modèles+listes'!$B$15,'Modèles+listes'!T$15,IF($AH7='Modèles+listes'!$B$16,'Modèles+listes'!T$16,IF($AH7='Modèles+listes'!$B$17,'Modèles+listes'!T$17,IF($AH7='Modèles+listes'!$B$18,'Modèles+listes'!T$18,IF($AH7='Modèles+listes'!$B$19,'Modèles+listes'!T$19,IF($AH7='Modèles+listes'!$B$20,'Modèles+listes'!T$20,FALSE)))))))))))))))) -> 12 | AE7: =IF($AH7='Modèles+listes'!$B$5,'Modèles+listes'!U$5,IF($AH7='Modèles+listes'!$B$6,'Modèles+listes'!U$6,IF($AH7='Modèles+listes'!$B$7,'Modèles+listes'!U$7,IF($AH7='Modèles+listes'!$B$8,'Modèles+listes'!U$8,IF($AH7='Modèles+listes'!$B$9,'Modèles+listes'!U$9,IF($AH7='Modèles+listes'!$B$10,'Modèles+listes'!U$10,IF($AH7='Modèles+listes'!$B$11,'Modèles+listes'!U$11,IF($AH7='Modèles+listes'!$B$12,'Modèles+listes'!U$12,IF($AH7='Modèles+listes'!$B$13,'Modèles+listes'!U$13,IF($AH7='Modèles+listes'!$B$14,'Modèles+listes'!U$14,IF($AH7='Modèles+listes'!$B$15,'Modèles+listes'!U$15,IF($AH7='Modèles+listes'!$B$16,'Modèles+listes'!U$16,IF($AH7='Modèles+listes'!$B$17,'Modèles+listes'!U$17,IF($AH7='Modèles+listes'!$B$18,'Modèles+listes'!U$18,IF($AH7='Modèles+listes'!$B$19,'Modèles+listes'!U$19,IF($AH7='Modèles+listes'!$B$20,'Modèles+listes'!U$20,FALSE)))))))))))))))) -> 14 | AF7: =IF($AH7='Modèles+listes'!$B$5,'Modèles+listes'!V$5,IF($AH7='Modèles+listes'!$B$6,'Modèles+listes'!V$6,IF($AH7='Modèles+listes'!$B$7,'Modèles+listes'!V$7,IF($AH7='Modèles+listes'!$B$8,'Modèles+listes'!V$8,IF($AH7='Modèles+listes'!$B$9,'Modèles+listes'!V$9,IF($AH7='Modèles+listes'!$B$10,'Modèles+listes'!V$10,IF($AH7='Modèles+listes'!$B$11,'Modèles+listes'!V$11,IF($AH7='Modèles+listes'!$B$12,'Modèles+listes'!V$12,IF($AH7='Modèles+listes'!$B$13,'Modèles+listes'!V$13,IF($AH7='Modèles+listes'!$B$14,'Modèles+listes'!V$14,IF($AH7='Modèles+listes'!$B$15,'Modèles+listes'!V$15,IF($AH7='Modèles+listes'!$B$16,'Modèles+listes'!V$16,IF($AH7='Modèles+listes'!$B$17,'Modèles+listes'!V$17,IF($AH7='Modèles+listes'!$B$18,'Modèles+listes'!V$18,IF($AH7='Modèles+listes'!$B$19,'Modèles+listes'!V$19,IF($AH7='Modèles+listes'!$B$20,'Modèles+listes'!V$20,FALSE)))))))))))))))) -> 6 | AG7: =IF($AH7='Modèles+listes'!$B$5,'Modèles+listes'!W$5,IF($AH7='Modèles+listes'!$B$6,'Modèles+listes'!W$6,IF($AH7='Modèles+listes'!$B$7,'Modèles+listes'!W$7,IF($AH7='Modèles+listes'!$B$8,'Modèles+listes'!W$8,IF($AH7='Modèles+listes'!$B$9,'Modèles+listes'!W$9,IF($AH7='Modèles+listes'!$B$10,'Modèles+listes'!W$10,IF($AH7='Modèles+listes'!$B$11,'Modèles+listes'!W$11,IF($AH7='Modèles+listes'!$B$12,'Modèles+listes'!W$12,IF($AH7='Modèles+listes'!$B$13,'Modèles+listes'!W$13,IF($AH7='Modèles+listes'!$B$14,'Modèles+listes'!W$14,IF($AH7='Modèles+listes'!$B$15,'Modèles+listes'!W$15,IF($AH7='Modèles+listes'!$B$16,'Modèles+listes'!W$16,IF($AH7='Modèles+listes'!$B$17,'Modèles+listes'!W$17,IF($AH7='Modèles+listes'!$B$18,'Modèles+listes'!W$18,IF($AH7='Modèles+listes'!$B$19,'Modèles+listes'!W$19,IF($AH7='Modèles+listes'!$B$20,'Modèles+listes'!W$20,FALSE)))))))))))))))) -> 5 | AH7: =+VLOOKUP(B7,BOM!$M:$W,4,FALSE) -> MODEL04
B8: 84045007 | C8: =+VLOOKUP(B8,BOM!$M:$O,3,FALSE) -> FONCET MOBILE LISSE DRT | D8: =VLOOKUP(B8,BOM!$M:$W,8,FALSE) -> SP | E8: =IF($AH8='Modèles+listes'!$B$5,'Modèles+listes'!D$5,IF($AH8='Modèles+listes'!$B$6,'Modèles+listes'!D$6,IF($AH8='Modèles+listes'!$B$7,'Modèles+listes'!D$7,IF($AH8='Modèles+listes'!$B$8,'Modèles+listes'!D$8,IF($AH8='Modèles+listes'!$B$9,'Modèles+listes'!D$9,IF($AH8='Modèles+listes'!$B$10,'Modèles+listes'!D$10,IF($AH8='Modèles+listes'!$B$11,'Modèles+listes'!D$11,IF($AH8='Modèles+listes'!$B$12,'Modèles+listes'!D$12,IF($AH8='Modèles+listes'!$B$13,'Modèles+listes'!D$13,IF($AH8='Modèles+listes'!$B$14,'Modèles+listes'!D$14,IF($AH8='Modèles+listes'!$B$15,'Modèles+listes'!D$15,IF($AH8='Modèles+listes'!$B$16,'Modèles+listes'!D$16,IF($AH8='Modèles+listes'!$B$17,'Modèles+listes'!D$17,IF($AH8='Modèles+listes'!$B$18,'Modèles+listes'!D$18,IF($AH8='Modèles+listes'!$B$19,'Modèles+listes'!D$19,IF($AH8='Modèles+listes'!$B$20,'Modèles+listes'!D$20,FALSE)))))))))))))))) -> 04 | F8: =BOM!$R$4 -> 1506 | G8: =BOM!$R$5 -> 04090 | H8: =IF($AH8='Modèles+listes'!$B$5,'Modèles+listes'!E$5,IF($AH8='Modèles+listes'!$B$6,'Modèles+listes'!E$6,IF($AH8='Modèles+listes'!$B$7,'Modèles+listes'!E$7,IF($AH8='Modèles+listes'!$B$8,'Modèles+listes'!E$8,IF($AH8='Modèles+listes'!$B$9,'Modèles+listes'!E$9,IF($AH8='Modèles+listes'!$B$10,'Modèles+listes'!E$10,IF($AH8='Modèles+listes'!$B$11,'Modèles+listes'!E$11,IF($AH8='Modèles+listes'!$B$12,'Modèles+listes'!E$12,IF($AH8='Modèles+listes'!$B$13,'Modèles+listes'!E$13,IF($AH8='Modèles+listes'!$B$14,'Modèles+listes'!E$14,IF($AH8='Modèles+listes'!$B$15,'Modèles+listes'!E$15,IF($AH8='Modèles+listes'!$B$16,'Modèles+listes'!E$16,IF($AH8='Modèles+listes'!$B$17,'Modèles+listes'!E$17,IF($AH8='Modèles+listes'!$B$18,'Modèles+listes'!E$18,IF($AH8='Modèles+listes'!$B$19,'Modèles+listes'!E$19,IF($AH8='Modèles+listes'!$B$20,'Modèles+listes'!E$20,FALSE)))))))))))))))) -> 1 | I8: =+VLOOKUP($B8,BOM!$M:$BB,5,FALSE) -> PI | J8: =+IF(E8<>"04",BOM!$R$3,BOM!$R$2) -> JACOB | K8: =IF($AH8='Modèles+listes'!$B$5,'Modèles+listes'!F$5,IF($AH8='Modèles+listes'!$B$6,'Modèles+listes'!F$6,IF($AH8='Modèles+listes'!$B$7,'Modèles+listes'!F$7,IF($AH8='Modèles+listes'!$B$8,'Modèles+listes'!F$8,IF($AH8='Modèles+listes'!$B$9,'Modèles+listes'!F$9,IF($AH8='Modèles+listes'!$B$10,'Modèles+listes'!F$10,IF($AH8='Modèles+listes'!$B$11,'Modèles+listes'!F$11,IF($AH8='Modèles+listes'!$B$12,'Modèles+listes'!F$12,IF($AH8='Modèles+listes'!$B$13,'Modèles+listes'!F$13,IF($AH8='Modèles+listes'!$B$14,'Modèles+listes'!F$14,IF($AH8='Modèles+listes'!$B$15,'Modèles+listes'!F$15,IF($AH8='Modèles+listes'!$B$16,'Modèles+listes'!F$16,IF($AH8='Modèles+listes'!$B$17,'Modèles+listes'!F$17,IF($AH8='Modèles+listes'!$B$18,'Modèles+listes'!F$18,IF($AH8='Modèles+listes'!$B$19,'Modèles+listes'!F$19,IF($AH8='Modèles+listes'!$B$20,'Modèles+listes'!F$20,FALSE)))))))))))))))) -> 2 | L8: =IF($AH8='Modèles+listes'!$B$5,'Modèles+listes'!G$5,IF($AH8='Modèles+listes'!$B$6,'Modèles+listes'!G$6,IF($AH8='Modèles+listes'!$B$7,'Modèles+listes'!G$7,IF($AH8='Modèles+listes'!$B$8,'Modèles+listes'!G$8,IF($AH8='Modèles+listes'!$B$9,'Modèles+listes'!G$9,IF($AH8='Modèles+listes'!$B$10,'Modèles+listes'!G$10,IF($AH8='Modèles+listes'!$B$11,'Modèles+listes'!G$11,IF($AH8='Modèles+listes'!$B$12,'Modèles+listes'!G$12,IF($AH8='Modèles+listes'!$B$13,'Modèles+listes'!G$13,IF($AH8='Modèles+listes'!$B$14,'Modèles+listes'!G$14,IF($AH8='Modèles+listes'!$B$15,'Modèles+listes'!G$15,IF($AH8='Modèles+listes'!$B$16,'Modèles+listes'!G$16,IF($AH8='Modèles+listes'!$B$17,'Modèles+listes'!G$17,IF($AH8='Modèles+listes'!$B$18,'Modèles+listes'!G$18,IF($AH8='Modèles+listes'!$B$19,'Modèles+listes'!G$19,IF($AH8='Modèles+listes'!$B$20,'Modèles+listes'!G$20,FALSE)))))))))))))))) -> ? | M8: =IF($AH8='Modèles+listes'!$B$5,'Modèles+listes'!H$5,IF($AH8='Modèles+listes'!$B$6,'Modèles+listes'!H$6,IF($AH8='Modèles+listes'!$B$7,'Modèles+listes'!H$7,IF($AH8='Modèles+listes'!$B$8,'Modèles+listes'!H$8,IF($AH8='Modèles+listes'!$B$9,'Modèles+listes'!H$9,IF($AH8='Modèles+listes'!$B$10,'Modèles+listes'!H$10,IF($AH8='Modèles+listes'!$B$11,'Modèles+listes'!H$11,IF($AH8='Modèles+listes'!$B$12,'Modèles+listes'!H$12,IF($AH8='Modèles+listes'!$B$13,'Modèles+listes'!H$13,IF($AH8='Modèles+listes'!$B$14,'Modèles+listes'!H$14,IF($AH8='Modèles+listes'!$B$15,'Modèles+listes'!H$15,IF($AH8='Modèles+listes'!$B$16,'Modèles+listes'!H$16,IF($AH8='Modèles+listes'!$B$17,'Modèles+listes'!H$17,IF($AH8='Modèles+listes'!$B$18,'Modèles+listes'!H$18,IF($AH8='Modèles+listes'!$B$19,'Modèles+listes'!H$19,IF($AH8='Modèles+listes'!$B$20,'Modèles+listes'!H$20,FALSE)))))))))))))))) -> 0 | N8: =IF($AH8='Modèles+listes'!$B$5,'Modèles+listes'!I$5,IF($AH8='Modèles+listes'!$B$6,'Modèles+listes'!I$6,IF($AH8='Modèles+listes'!$B$7,'Modèles+listes'!I$7,IF($AH8='Modèles+listes'!$B$8,'Modèles+listes'!I$8,IF($AH8='Modèles+listes'!$B$9,'Modèles+listes'!I$9,IF($AH8='Modèles+listes'!$B$10,'Modèles+listes'!I$10,IF($AH8='Modèles+listes'!$B$11,'Modèles+listes'!I$11,IF($AH8='Modèles+listes'!$B$12,'Modèles+listes'!I$12,IF($AH8='Modèles+listes'!$B$13,'Modèles+listes'!I$13,IF($AH8='Modèles+listes'!$B$14,'Modèles+listes'!I$14,IF($AH8='Modèles+listes'!$B$15,'Modèles+listes'!I$15,IF($AH8='Modèles+listes'!$B$16,'Modèles+listes'!I$16,IF($AH8='Modèles+listes'!$B$17,'Modèles+listes'!I$17,IF($AH8='Modèles+listes'!$B$18,'Modèles+listes'!I$18,IF($AH8='Modèles+listes'!$B$19,'Modèles+listes'!I$19,IF($AH8='Modèles+listes'!$B$20,'Modèles+listes'!I$20,FALSE)))))))))))))))) -> 0 | O8: =+VLOOKUP(B8,BOM!$M:$W,6,FALSE) -> 10 | P8: =+VLOOKUP($B8,BOM!$M:$W,7,FALSE) -> 20 | Q8: =IF($AH8='Modèles+listes'!$B$5,'Modèles+listes'!J$5,IF($AH8='Modèles+listes'!$B$6,'Modèles+listes'!J$6,IF($AH8='Modèles+listes'!$B$7,'Modèles+listes'!J$7,IF($AH8='Modèles+listes'!$B$8,'Modèles+listes'!J$8,IF($AH8='Modèles+listes'!$B$9,'Modèles+listes'!J$9,IF($AH8='Modèles+listes'!$B$10,'Modèles+listes'!J$10,IF($AH8='Modèles+listes'!$B$11,'Modèles+listes'!J$11,IF($AH8='Modèles+listes'!$B$12,'Modèles+listes'!J$12,IF($AH8='Modèles+listes'!$B$13,'Modèles+listes'!J$13,IF($AH8='Modèles+listes'!$B$14,'Modèles+listes'!J$14,IF($AH8='Modèles+listes'!$B$15,'Modèles+listes'!J$15,IF($AH8='Modèles+listes'!$B$16,'Modèles+listes'!J$16,IF($AH8='Modèles+listes'!$B$17,'Modèles+listes'!J$17,IF($AH8='Modèles+listes'!$B$18,'Modèles+listes'!J$18,IF($AH8='Modèles+listes'!$B$19,'Modèles+listes'!J$19,IF($AH8='Modèles+listes'!$B$20,'Modèles+listes'!J$20,FALSE)))))))))))))))) -> 0 | R8: =IF($AH8='Modèles+listes'!$B$5,'Modèles+listes'!K$5,IF($AH8='Modèles+listes'!$B$6,'Modèles+listes'!K$6,IF($AH8='Modèles+listes'!$B$7,'Modèles+listes'!K$7,IF($AH8='Modèles+listes'!$B$8,'Modèles+listes'!K$8,IF($AH8='Modèles+listes'!$B$9,'Modèles+listes'!K$9,IF($AH8='Modèles+listes'!$B$10,'Modèles+listes'!K$10,IF($AH8='Modèles+listes'!$B$11,'Modèles+listes'!K$11,IF($AH8='Modèles+listes'!$B$12,'Modèles+listes'!K$12,IF($AH8='Modèles+listes'!$B$13,'Modèles+listes'!K$13,IF($AH8='Modèles+listes'!$B$14,'Modèles+listes'!K$14,IF($AH8='Modèles+listes'!$B$15,'Modèles+listes'!K$15,IF($AH8='Modèles+listes'!$B$16,'Modèles+listes'!K$16,IF($AH8='Modèles+listes'!$B$17,'Modèles+listes'!K$17,IF($AH8='Modèles+listes'!$B$18,'Modèles+listes'!K$18,IF($AH8='Modèles+listes'!$B$19,'Modèles+listes'!K$19,IF($AH8='Modèles+listes'!$B$20,'Modèles+listes'!K$20,FALSE)))))))))))))))) -> 0 | T8: =VLOOKUP(B8,BOM!$M:$W,9,FALSE) -> N | V8: =IF($AH8='Modèles+listes'!$B$5,'Modèles+listes'!L$5,IF($AH8='Modèles+listes'!$B$6,'Modèles+listes'!L$6,IF($AH8='Modèles+listes'!$B$7,'Modèles+listes'!L$7,IF($AH8='Modèles+listes'!$B$8,'Modèles+listes'!L$8,IF($AH8='Modèles+listes'!$B$9,'Modèles+listes'!L$9,IF($AH8='Modèles+listes'!$B$10,'Modèles+listes'!L$10,IF($AH8='Modèles+listes'!$B$11,'Modèles+listes'!L$11,IF($AH8='Modèles+listes'!$B$12,'Modèles+listes'!L$12,IF($AH8='Modèles+listes'!$B$13,'Modèles+listes'!L$13,IF($AH8='Modèles+listes'!$B$14,'Modèles+listes'!L$14,IF($AH8='Modèles+listes'!$B$15,'Modèles+listes'!L$15,IF($AH8='Modèles+listes'!$B$16,'Modèles+listes'!L$16,IF($AH8='Modèles+listes'!$B$17,'Modèles+listes'!L$17,IF($AH8='Modèles+listes'!$B$18,'Modèles+listes'!L$18,IF($AH8='Modèles+listes'!$B$19,'Modèles+listes'!L$19,IF($AH8='Modèles+listes'!$B$20,'Modèles+listes'!L$20,FALSE)))))))))))))))) -> 2 | W8: =IF($AH8='Modèles+listes'!$B$5,'Modèles+listes'!M$5,IF($AH8='Modèles+listes'!$B$6,'Modèles+listes'!M$6,IF($AH8='Modèles+listes'!$B$7,'Modèles+listes'!M$7,IF($AH8='Modèles+listes'!$B$8,'Modèles+listes'!M$8,IF($AH8='Modèles+listes'!$B$9,'Modèles+listes'!M$9,IF($AH8='Modèles+listes'!$B$10,'Modèles+listes'!M$10,IF($AH8='Modèles+listes'!$B$11,'Modèles+listes'!M$11,IF($AH8='Modèles+listes'!$B$12,'Modèles+listes'!M$12,IF($AH8='Modèles+listes'!$B$13,'Modèles+listes'!M$13,IF($AH8='Modèles+listes'!$B$14,'Modèles+listes'!M$14,IF($AH8='Modèles+listes'!$B$15,'Modèles+listes'!M$15,IF($AH8='Modèles+listes'!$B$16,'Modèles+listes'!M$16,IF($AH8='Modèles+listes'!$B$17,'Modèles+listes'!M$17,IF($AH8='Modèles+listes'!$B$18,'Modèles+listes'!M$18,IF($AH8='Modèles+listes'!$B$19,'Modèles+listes'!M$19,IF($AH8='Modèles+listes'!$B$20,'Modèles+listes'!M$20,FALSE)))))))))))))))) -> 30 | X8: =IF($AH8='Modèles+listes'!$B$5,'Modèles+listes'!N$5,IF($AH8='Modèles+listes'!$B$6,'Modèles+listes'!N$6,IF($AH8='Modèles+listes'!$B$7,'Modèles+listes'!N$7,IF($AH8='Modèles+listes'!$B$8,'Modèles+listes'!N$8,IF($AH8='Modèles+listes'!$B$9,'Modèles+listes'!N$9,IF($AH8='Modèles+listes'!$B$10,'Modèles+listes'!N$10,IF($AH8='Modèles+listes'!$B$11,'Modèles+listes'!N$11,IF($AH8='Modèles+listes'!$B$12,'Modèles+listes'!N$12,IF($AH8='Modèles+listes'!$B$13,'Modèles+listes'!N$13,IF($AH8='Modèles+listes'!$B$14,'Modèles+listes'!N$14,IF($AH8='Modèles+listes'!$B$15,'Modèles+listes'!N$15,IF($AH8='Modèles+listes'!$B$16,'Modèles+listes'!N$16,IF($AH8='Modèles+listes'!$B$17,'Modèles+listes'!N$17,IF($AH8='Modèles+listes'!$B$18,'Modèles+listes'!N$18,IF($AH8='Modèles+listes'!$B$19,'Modèles+listes'!N$19,IF($AH8='Modèles+listes'!$B$20,'Modèles+listes'!N$20,FALSE)))))))))))))))) -> 12 | Y8: =IF($AH8='Modèles+listes'!$B$5,'Modèles+listes'!O$5,IF($AH8='Modèles+listes'!$B$6,'Modèles+listes'!O$6,IF($AH8='Modèles+listes'!$B$7,'Modèles+listes'!O$7,IF($AH8='Modèles+listes'!$B$8,'Modèles+listes'!O$8,IF($AH8='Modèles+listes'!$B$9,'Modèles+listes'!O$9,IF($AH8='Modèles+listes'!$B$10,'Modèles+listes'!O$10,IF($AH8='Modèles+listes'!$B$11,'Modèles+listes'!O$11,IF($AH8='Modèles+listes'!$B$12,'Modèles+listes'!O$12,IF($AH8='Modèles+listes'!$B$13,'Modèles+listes'!O$13,IF($AH8='Modèles+listes'!$B$14,'Modèles+listes'!O$14,IF($AH8='Modèles+listes'!$B$15,'Modèles+listes'!O$15,IF($AH8='Modèles+listes'!$B$16,'Modèles+listes'!O$16,IF($AH8='Modèles+listes'!$B$17,'Modèles+listes'!O$17,IF($AH8='Modèles+listes'!$B$18,'Modèles+listes'!O$18,IF($AH8='Modèles+listes'!$B$19,'Modèles+listes'!O$19,IF($AH8='Modèles+listes'!$B$20,'Modèles+listes'!O$20,FALSE)))))))))))))))) -> 01 | Z8: =IF($AH8='Modèles+listes'!$B$5,'Modèles+listes'!P$5,IF($AH8='Modèles+listes'!$B$6,'Modèles+listes'!P$6,IF($AH8='Modèles+listes'!$B$7,'Modèles+listes'!P$7,IF($AH8='Modèles+listes'!$B$8,'Modèles+listes'!P$8,IF($AH8='Modèles+listes'!$B$9,'Modèles+listes'!P$9,IF($AH8='Modèles+listes'!$B$10,'Modèles+listes'!P$10,IF($AH8='Modèles+listes'!$B$11,'Modèles+listes'!P$11,IF($AH8='Modèles+listes'!$B$12,'Modèles+listes'!P$12,IF($AH8='Modèles+listes'!$B$13,'Modèles+listes'!P$13,IF($AH8='Modèles+listes'!$B$14,'Modèles+listes'!P$14,IF($AH8='Modèles+listes'!$B$15,'Modèles+listes'!P$15,IF($AH8='Modèles+listes'!$B$16,'Modèles+listes'!P$16,IF($AH8='Modèles+listes'!$B$17,'Modèles+listes'!P$17,IF($AH8='Modèles+listes'!$B$18,'Modèles+listes'!P$18,IF($AH8='Modèles+listes'!$B$19,'Modèles+listes'!P$19,IF($AH8='Modèles+listes'!$B$20,'Modèles+listes'!P$20,FALSE)))))))))))))))) -> 0 | AA8: =IF($AH8='Modèles+listes'!$B$5,'Modèles+listes'!Q$5,IF($AH8='Modèles+listes'!$B$6,'Modèles+listes'!Q$6,IF($AH8='Modèles+listes'!$B$7,'Modèles+listes'!Q$7,IF($AH8='Modèles+listes'!$B$8,'Modèles+listes'!Q$8,IF($AH8='Modèles+listes'!$B$9,'Modèles+listes'!Q$9,IF($AH8='Modèles+listes'!$B$10,'Modèles+listes'!Q$10,IF($AH8='Modèles+listes'!$B$11,'Modèles+listes'!Q$11,IF($AH8='Modèles+listes'!$B$12,'Modèles+listes'!Q$12,IF($AH8='Modèles+listes'!$B$13,'Modèles+listes'!Q$13,IF($AH8='Modèles+listes'!$B$14,'Modèles+listes'!Q$14,IF($AH8='Modèles+listes'!$B$15,'Modèles+listes'!Q$15,IF($AH8='Modèles+listes'!$B$16,'Modèles+listes'!Q$16,IF($AH8='Modèles+listes'!$B$17,'Modèles+listes'!Q$17,IF($AH8='Modèles+listes'!$B$18,'Modèles+listes'!Q$18,IF($AH8='Modèles+listes'!$B$19,'Modèles+listes'!Q$19,IF($AH8='Modèles+listes'!$B$20,'Modèles+listes'!Q$20,FALSE)))))))))))))))) -> 0 | AB8: =IF($AH8='Modèles+listes'!$B$5,'Modèles+listes'!R$5,IF($AH8='Modèles+listes'!$B$6,'Modèles+listes'!R$6,IF($AH8='Modèles+listes'!$B$7,'Modèles+listes'!R$7,IF($AH8='Modèles+listes'!$B$8,'Modèles+listes'!R$8,IF($AH8='Modèles+listes'!$B$9,'Modèles+listes'!R$9,IF($AH8='Modèles+listes'!$B$10,'Modèles+listes'!R$10,IF($AH8='Modèles+listes'!$B$11,'Modèles+listes'!R$11,IF($AH8='Modèles+listes'!$B$12,'Modèles+listes'!R$12,IF($AH8='Modèles+listes'!$B$13,'Modèles+listes'!R$13,IF($AH8='Modèles+listes'!$B$14,'Modèles+listes'!R$14,IF($AH8='Modèles+listes'!$B$15,'Modèles+listes'!R$15,IF($AH8='Modèles+listes'!$B$16,'Modèles+listes'!R$16,IF($AH8='Modèles+listes'!$B$17,'Modèles+listes'!R$17,IF($AH8='Modèles+listes'!$B$18,'Modèles+listes'!R$18,IF($AH8='Modèles+listes'!$B$19,'Modèles+listes'!R$19,IF($AH8='Modèles+listes'!$B$20,'Modèles+listes'!R$20,FALSE)))))))))))))))) -> 0 | AC8: =+VLOOKUP(B8,BOM!$M:$W,11,FALSE) -> 1 | AD8: =IF($AH8='Modèles+listes'!$B$5,'Modèles+listes'!T$5,IF($AH8='Modèles+listes'!$B$6,'Modèles+listes'!T$6,IF($AH8='Modèles+listes'!$B$7,'Modèles+listes'!T$7,IF($AH8='Modèles+listes'!$B$8,'Modèles+listes'!T$8,IF($AH8='Modèles+listes'!$B$9,'Modèles+listes'!T$9,IF($AH8='Modèles+listes'!$B$10,'Modèles+listes'!T$10,IF($AH8='Modèles+listes'!$B$11,'Modèles+listes'!T$11,IF($AH8='Modèles+listes'!$B$12,'Modèles+listes'!T$12,IF($AH8='Modèles+listes'!$B$13,'Modèles+listes'!T$13,IF($AH8='Modèles+listes'!$B$14,'Modèles+listes'!T$14,IF($AH8='Modèles+listes'!$B$15,'Modèles+listes'!T$15,IF($AH8='Modèles+listes'!$B$16,'Modèles+listes'!T$16,IF($AH8='Modèles+listes'!$B$17,'Modèles+listes'!T$17,IF($AH8='Modèles+listes'!$B$18,'Modèles+listes'!T$18,IF($AH8='Modèles+listes'!$B$19,'Modèles+listes'!T$19,IF($AH8='Modèles+listes'!$B$20,'Modèles+listes'!T$20,FALSE)))))))))))))))) -> 12 | AE8: =IF($AH8='Modèles+listes'!$B$5,'Modèles+listes'!U$5,IF($AH8='Modèles+listes'!$B$6,'Modèles+listes'!U$6,IF($AH8='Modèles+listes'!$B$7,'Modèles+listes'!U$7,IF($AH8='Modèles+listes'!$B$8,'Modèles+listes'!U$8,IF($AH8='Modèles+listes'!$B$9,'Modèles+listes'!U$9,IF($AH8='Modèles+listes'!$B$10,'Modèles+listes'!U$10,IF($AH8='Modèles+listes'!$B$11,'Modèles+listes'!U$11,IF($AH8='Modèles+listes'!$B$12,'Modèles+listes'!U$12,IF($AH8='Modèles+listes'!$B$13,'Modèles+listes'!U$13,IF($AH8='Modèles+listes'!$B$14,'Modèles+listes'!U$14,IF($AH8='Modèles+listes'!$B$15,'Modèles+listes'!U$15,IF($AH8='Modèles+listes'!$B$16,'Modèles+listes'!U$16,IF($AH8='Modèles+listes'!$B$17,'Modèles+listes'!U$17,IF($AH8='Modèles+listes'!$B$18,'Modèles+listes'!U$18,IF($AH8='Modèles+listes'!$B$19,'Modèles+listes'!U$19,IF($AH8='Modèles+listes'!$B$20,'Modèles+listes'!U$20,FALSE)))))))))))))))) -> ? | AF8: =IF($AH8='Modèles+listes'!$B$5,'Modèles+listes'!V$5,IF($AH8='Modèles+listes'!$B$6,'Modèles+listes'!V$6,IF($AH8='Modèles+listes'!$B$7,'Modèles+listes'!V$7,IF($AH8='Modèles+listes'!$B$8,'Modèles+listes'!V$8,IF($AH8='Modèles+listes'!$B$9,'Modèles+listes'!V$9,IF($AH8='Modèles+listes'!$B$10,'Modèles+listes'!V$10,IF($AH8='Modèles+listes'!$B$11,'Modèles+listes'!V$11,IF($AH8='Modèles+listes'!$B$12,'Modèles+listes'!V$12,IF($AH8='Modèles+listes'!$B$13,'Modèles+listes'!V$13,IF($AH8='Modèles+listes'!$B$14,'Modèles+listes'!V$14,IF($AH8='Modèles+listes'!$B$15,'Modèles+listes'!V$15,IF($AH8='Modèles+listes'!$B$16,'Modèles+listes'!V$16,IF($AH8='Modèles+listes'!$B$17,'Modèles+listes'!V$17,IF($AH8='Modèles+listes'!$B$18,'Modèles+listes'!V$18,IF($AH8='Modèles+listes'!$B$19,'Modèles+listes'!V$19,IF($AH8='Modèles+listes'!$B$20,'Modèles+listes'!V$20,FALSE)))))))))))))))) -> 4 | AG8: =IF($AH8='Modèles+listes'!$B$5,'Modèles+listes'!W$5,IF($AH8='Modèles+listes'!$B$6,'Modèles+listes'!W$6,IF($AH8='Modèles+listes'!$B$7,'Modèles+listes'!W$7,IF($AH8='Modèles+listes'!$B$8,'Modèles+listes'!W$8,IF($AH8='Modèles+listes'!$B$9,'Modèles+listes'!W$9,IF($AH8='Modèles+listes'!$B$10,'Modèles+listes'!W$10,IF($AH8='Modèles+listes'!$B$11,'Modèles+listes'!W$11,IF($AH8='Modèles+listes'!$B$12,'Modèles+listes'!W$12,IF($AH8='Modèles+listes'!$B$13,'Modèles+listes'!W$13,IF($AH8='Modèles+listes'!$B$14,'Modèles+listes'!W$14,IF($AH8='Modèles+listes'!$B$15,'Modèles+listes'!W$15,IF($AH8='Modèles+listes'!$B$16,'Modèles+listes'!W$16,IF($AH8='Modèles+listes'!$B$17,'Modèles+listes'!W$17,IF($AH8='Modèles+listes'!$B$18,'Modèles+listes'!W$18,IF($AH8='Modèles+listes'!$B$19,'Modèles+listes'!W$19,IF($AH8='Modèles+listes'!$B$20,'Modèles+listes'!W$20,FALSE)))))))))))))))) -> 5 | AH8: =+VLOOKUP(B8,BOM!$M:$W,4,FALSE) -> MODEL04Q
B9: 94098701 | C9: =+VLOOKUP(B9,BOM!$M:$O,3,FALSE) -> P/C CR4 700 SENS A | D9: =VLOOKUP(B9,BOM!$M:$W,8,FALSE) -> 4098701 | E9: =IF($AH9='Modèles+listes'!$B$5,'Modèles+listes'!D$5,IF($AH9='Modèles+listes'!$B$6,'Modèles+listes'!D$6,IF($AH9='Modèles+listes'!$B$7,'Modèles+listes'!D$7,IF($AH9='Modèles+listes'!$B$8,'Modèles+listes'!D$8,IF($AH9='Modèles+listes'!$B$9,'Modèles+listes'!D$9,IF($AH9='Modèles+listes'!$B$10,'Modèles+listes'!D$10,IF($AH9='Modèles+listes'!$B$11,'Modèles+listes'!D$11,IF($AH9='Modèles+listes'!$B$12,'Modèles+listes'!D$12,IF($AH9='Modèles+listes'!$B$13,'Modèles+listes'!D$13,IF($AH9='Modèles+listes'!$B$14,'Modèles+listes'!D$14,IF($AH9='Modèles+listes'!$B$15,'Modèles+listes'!D$15,IF($AH9='Modèles+listes'!$B$16,'Modèles+listes'!D$16,IF($AH9='Modèles+listes'!$B$17,'Modèles+listes'!D$17,IF($AH9='Modèles+listes'!$B$18,'Modèles+listes'!D$18,IF($AH9='Modèles+listes'!$B$19,'Modèles+listes'!D$19,IF($AH9='Modèles+listes'!$B$20,'Modèles+listes'!D$20,FALSE)))))))))))))))) -> 09 | F9: =BOM!$R$4 -> 1506 | G9: =BOM!$R$5 -> 04090 | H9: =IF($AH9='Modèles+listes'!$B$5,'Modèles+listes'!E$5,IF($AH9='Modèles+listes'!$B$6,'Modèles+listes'!E$6,IF($AH9='Modèles+listes'!$B$7,'Modèles+listes'!E$7,IF($AH9='Modèles+listes'!$B$8,'Modèles+listes'!E$8,IF($AH9='Modèles+listes'!$B$9,'Modèles+listes'!E$9,IF($AH9='Modèles+listes'!$B$10,'Modèles+listes'!E$10,IF($AH9='Modèles+listes'!$B$11,'Modèles+listes'!E$11,IF($AH9='Modèles+listes'!$B$12,'Modèles+listes'!E$12,IF($AH9='Modèles+listes'!$B$13,'Modèles+listes'!E$13,IF($AH9='Modèles+listes'!$B$14,'Modèles+listes'!E$14,IF($AH9='Modèles+listes'!$B$15,'Modèles+listes'!E$15,IF($AH9='Modèles+listes'!$B$16,'Modèles+listes'!E$16,IF($AH9='Modèles+listes'!$B$17,'Modèles+listes'!E$17,IF($AH9='Modèles+listes'!$B$18,'Modèles+listes'!E$18,IF($AH9='Modèles+listes'!$B$19,'Modèles+listes'!E$19,IF($AH9='Modèles+listes'!$B$20,'Modèles+listes'!E$20,FALSE)))))))))))))))) -> 0 | I9: =+VLOOKUP($B9,BOM!$M:$BB,5,FALSE) -> PI | J9: =+IF(E9<>"04",BOM!$R$3,BOM!$R$2) -> SALPETIER | K9: =IF($AH9='Modèles+listes'!$B$5,'Modèles+listes'!F$5,IF($AH9='Modèles+listes'!$B$6,'Modèles+listes'!F$6,IF($AH9='Modèles+listes'!$B$7,'Modèles+listes'!F$7,IF($AH9='Modèles+listes'!$B$8,'Modèles+listes'!F$8,IF($AH9='Modèles+listes'!$B$9,'Modèles+listes'!F$9,IF($AH9='Modèles+listes'!$B$10,'Modèles+listes'!F$10,IF($AH9='Modèles+listes'!$B$11,'Modèles+listes'!F$11,IF($AH9='Modèles+listes'!$B$12,'Modèles+listes'!F$12,IF($AH9='Modèles+listes'!$B$13,'Modèles+listes'!F$13,IF($AH9='Modèles+listes'!$B$14,'Modèles+listes'!F$14,IF($AH9='Modèles+listes'!$B$15,'Modèles+listes'!F$15,IF($AH9='Modèles+listes'!$B$16,'Modèles+listes'!F$16,IF($AH9='Modèles+listes'!$B$17,'Modèles+listes'!F$17,IF($AH9='Modèles+listes'!$B$18,'Modèles+listes'!F$18,IF($AH9='Modèles+listes'!$B$19,'Modèles+listes'!F$19,IF($AH9='Modèles+listes'!$B$20,'Modèles+listes'!F$20,FALSE)))))))))))))))) -> 1 | L9: =IF($AH9='Modèles+listes'!$B$5,'Modèles+listes'!G$5,IF($AH9='Modèles+listes'!$B$6,'Modèles+listes'!G$6,IF($AH9='Modèles+listes'!$B$7,'Modèles+listes'!G$7,IF($AH9='Modèles+listes'!$B$8,'Modèles+listes'!G$8,IF($AH9='Modèles+listes'!$B$9,'Modèles+listes'!G$9,IF($AH9='Modèles+listes'!$B$10,'Modèles+listes'!G$10,IF($AH9='Modèles+listes'!$B$11,'Modèles+listes'!G$11,IF($AH9='Modèles+listes'!$B$12,'Modèles+listes'!G$12,IF($AH9='Modèles+listes'!$B$13,'Modèles+listes'!G$13,IF($AH9='Modèles+listes'!$B$14,'Modèles+listes'!G$14,IF($AH9='Modèles+listes'!$B$15,'Modèles+listes'!G$15,IF($AH9='Modèles+listes'!$B$16,'Modèles+listes'!G$16,IF($AH9='Modèles+listes'!$B$17,'Modèles+listes'!G$17,IF($AH9='Modèles+listes'!$B$18,'Modèles+listes'!G$18,IF($AH9='Modèles+listes'!$B$19,'Modèles+listes'!G$19,IF($AH9='Modèles+listes'!$B$20,'Modèles+listes'!G$20,FALSE)))))))))))))))) -> FAB | M9: =IF($AH9='Modèles+listes'!$B$5,'Modèles+listes'!H$5,IF($AH9='Modèles+listes'!$B$6,'Modèles+listes'!H$6,IF($AH9='Modèles+listes'!$B$7,'Modèles+listes'!H$7,IF($AH9='Modèles+listes'!$B$8,'Modèles+listes'!H$8,IF($AH9='Modèles+listes'!$B$9,'Modèles+listes'!H$9,IF($AH9='Modèles+listes'!$B$10,'Modèles+listes'!H$10,IF($AH9='Modèles+listes'!$B$11,'Modèles+listes'!H$11,IF($AH9='Modèles+listes'!$B$12,'Modèles+listes'!H$12,IF($AH9='Modèles+listes'!$B$13,'Modèles+listes'!H$13,IF($AH9='Modèles+listes'!$B$14,'Modèles+listes'!H$14,IF($AH9='Modèles+listes'!$B$15,'Modèles+listes'!H$15,IF($AH9='Modèles+listes'!$B$16,'Modèles+listes'!H$16,IF($AH9='Modèles+listes'!$B$17,'Modèles+listes'!H$17,IF($AH9='Modèles+listes'!$B$18,'Modèles+listes'!H$18,IF($AH9='Modèles+listes'!$B$19,'Modèles+listes'!H$19,IF($AH9='Modèles+listes'!$B$20,'Modèles+listes'!H$20,FALSE)))))))))))))))) -> 0 | N9: =IF($AH9='Modèles+listes'!$B$5,'Modèles+listes'!I$5,IF($AH9='Modèles+listes'!$B$6,'Modèles+listes'!I$6,IF($AH9='Modèles+listes'!$B$7,'Modèles+listes'!I$7,IF($AH9='Modèles+listes'!$B$8,'Modèles+listes'!I$8,IF($AH9='Modèles+listes'!$B$9,'Modèles+listes'!I$9,IF($AH9='Modèles+listes'!$B$10,'Modèles+listes'!I$10,IF($AH9='Modèles+listes'!$B$11,'Modèles+listes'!I$11,IF($AH9='Modèles+listes'!$B$12,'Modèles+listes'!I$12,IF($AH9='Modèles+listes'!$B$13,'Modèles+listes'!I$13,IF($AH9='Modèles+listes'!$B$14,'Modèles+listes'!I$14,IF($AH9='Modèles+listes'!$B$15,'Modèles+listes'!I$15,IF($AH9='Modèles+listes'!$B$16,'Modèles+listes'!I$16,IF($AH9='Modèles+listes'!$B$17,'Modèles+listes'!I$17,IF($AH9='Modèles+listes'!$B$18,'Modèles+listes'!I$18,IF($AH9='Modèles+listes'!$B$19,'Modèles+listes'!I$19,IF($AH9='Modèles+listes'!$B$20,'Modèles+listes'!I$20,FALSE)))))))))))))))) -> 0 | O9: =+VLOOKUP(B9,BOM!$M:$W,6,FALSE) -> 10 | P9: =+VLOOKUP($B9,BOM!$M:$W,7,FALSE) -> 20 | Q9: =IF($AH9='Modèles+listes'!$B$5,'Modèles+listes'!J$5,IF($AH9='Modèles+listes'!$B$6,'Modèles+listes'!J$6,IF($AH9='Modèles+listes'!$B$7,'Modèles+listes'!J$7,IF($AH9='Modèles+listes'!$B$8,'Modèles+listes'!J$8,IF($AH9='Modèles+listes'!$B$9,'Modèles+listes'!J$9,IF($AH9='Modèles+listes'!$B$10,'Modèles+listes'!J$10,IF($AH9='Modèles+listes'!$B$11,'Modèles+listes'!J$11,IF($AH9='Modèles+listes'!$B$12,'Modèles+listes'!J$12,IF($AH9='Modèles+listes'!$B$13,'Modèles+listes'!J$13,IF($AH9='Modèles+listes'!$B$14,'Modèles+listes'!J$14,IF($AH9='Modèles+listes'!$B$15,'Modèles+listes'!J$15,IF($AH9='Modèles+listes'!$B$16,'Modèles+listes'!J$16,IF($AH9='Modèles+listes'!$B$17,'Modèles+listes'!J$17,IF($AH9='Modèles+listes'!$B$18,'Modèles+listes'!J$18,IF($AH9='Modèles+listes'!$B$19,'Modèles+listes'!J$19,IF($AH9='Modèles+listes'!$B$20,'Modèles+listes'!J$20,FALSE)))))))))))))))) -> 0 | R9: =IF($AH9='Modèles+listes'!$B$5,'Modèles+listes'!K$5,IF($AH9='Modèles+listes'!$B$6,'Modèles+listes'!K$6,IF($AH9='Modèles+listes'!$B$7,'Modèles+listes'!K$7,IF($AH9='Modèles+listes'!$B$8,'Modèles+listes'!K$8,IF($AH9='Modèles+listes'!$B$9,'Modèles+listes'!K$9,IF($AH9='Modèles+listes'!$B$10,'Modèles+listes'!K$10,IF($AH9='Modèles+listes'!$B$11,'Modèles+listes'!K$11,IF($AH9='Modèles+listes'!$B$12,'Modèles+listes'!K$12,IF($AH9='Modèles+listes'!$B$13,'Modèles+listes'!K$13,IF($AH9='Modèles+listes'!$B$14,'Modèles+listes'!K$14,IF($AH9='Modèles+listes'!$B$15,'Modèles+listes'!K$15,IF($AH9='Modèles+listes'!$B$16,'Modèles+listes'!K$16,IF($AH9='Modèles+listes'!$B$17,'Modèles+listes'!K$17,IF($AH9='Modèles+listes'!$B$18,'Modèles+listes'!K$18,IF($AH9='Modèles+listes'!$B$19,'Modèles+listes'!K$19,IF($AH9='Modèles+listes'!$B$20,'Modèles+listes'!K$20,FALSE)))))))))))))))) -> 2 | T9: =VLOOKUP(B9,BOM!$M:$W,9,FALSE) -> N | V9: =IF($AH9='Modèles+listes'!$B$5,'Modèles+listes'!L$5,IF($AH9='Modèles+listes'!$B$6,'Modèles+listes'!L$6,IF($AH9='Modèles+listes'!$B$7,'Modèles+listes'!L$7,IF($AH9='Modèles+listes'!$B$8,'Modèles+listes'!L$8,IF($AH9='Modèles+listes'!$B$9,'Modèles+listes'!L$9,IF($AH9='Modèles+listes'!$B$10,'Modèles+listes'!L$10,IF($AH9='Modèles+listes'!$B$11,'Modèles+listes'!L$11,IF($AH9='Modèles+listes'!$B$12,'Modèles+listes'!L$12,IF($AH9='Modèles+listes'!$B$13,'Modèles+listes'!L$13,IF($AH9='Modèles+listes'!$B$14,'Modèles+listes'!L$14,IF($AH9='Modèles+listes'!$B$15,'Modèles+listes'!L$15,IF($AH9='Modèles+listes'!$B$16,'Modèles+listes'!L$16,IF($AH9='Modèles+listes'!$B$17,'Modèles+listes'!L$17,IF($AH9='Modèles+listes'!$B$18,'Modèles+listes'!L$18,IF($AH9='Modèles+listes'!$B$19,'Modèles+listes'!L$19,IF($AH9='Modèles+listes'!$B$20,'Modèles+listes'!L$20,FALSE)))))))))))))))) -> 1 | W9: =IF($AH9='Modèles+listes'!$B$5,'Modèles+listes'!M$5,IF($AH9='Modèles+listes'!$B$6,'Modèles+listes'!M$6,IF($AH9='Modèles+listes'!$B$7,'Modèles+listes'!M$7,IF($AH9='Modèles+listes'!$B$8,'Modèles+listes'!M$8,IF($AH9='Modèles+listes'!$B$9,'Modèles+listes'!M$9,IF($AH9='Modèles+listes'!$B$10,'Modèles+listes'!M$10,IF($AH9='Modèles+listes'!$B$11,'Modèles+listes'!M$11,IF($AH9='Modèles+listes'!$B$12,'Modèles+listes'!M$12,IF($AH9='Modèles+listes'!$B$13,'Modèles+listes'!M$13,IF($AH9='Modèles+listes'!$B$14,'Modèles+listes'!M$14,IF($AH9='Modèles+listes'!$B$15,'Modèles+listes'!M$15,IF($AH9='Modèles+listes'!$B$16,'Modèles+listes'!M$16,IF($AH9='Modèles+listes'!$B$17,'Modèles+listes'!M$17,IF($AH9='Modèles+listes'!$B$18,'Modèles+listes'!M$18,IF($AH9='Modèles+listes'!$B$19,'Modèles+listes'!M$19,IF($AH9='Modèles+listes'!$B$20,'Modèles+listes'!M$20,FALSE)))))))))))))))) -> 01 | X9: =IF($AH9='Modèles+listes'!$B$5,'Modèles+listes'!N$5,IF($AH9='Modèles+listes'!$B$6,'Modèles+listes'!N$6,IF($AH9='Modèles+listes'!$B$7,'Modèles+listes'!N$7,IF($AH9='Modèles+listes'!$B$8,'Modèles+listes'!N$8,IF($AH9='Modèles+listes'!$B$9,'Modèles+listes'!N$9,IF($AH9='Modèles+listes'!$B$10,'Modèles+listes'!N$10,IF($AH9='Modèles+listes'!$B$11,'Modèles+listes'!N$11,IF($AH9='Modèles+listes'!$B$12,'Modèles+listes'!N$12,IF($AH9='Modèles+listes'!$B$13,'Modèles+listes'!N$13,IF($AH9='Modèles+listes'!$B$14,'Modèles+listes'!N$14,IF($AH9='Modèles+listes'!$B$15,'Modèles+listes'!N$15,IF($AH9='Modèles+listes'!$B$16,'Modèles+listes'!N$16,IF($AH9='Modèles+listes'!$B$17,'Modèles+listes'!N$17,IF($AH9='Modèles+listes'!$B$18,'Modèles+listes'!N$18,IF($AH9='Modèles+listes'!$B$19,'Modèles+listes'!N$19,IF($AH9='Modèles+listes'!$B$20,'Modèles+listes'!N$20,FALSE)))))))))))))))) -> 1 | Y9: =IF($AH9='Modèles+listes'!$B$5,'Modèles+listes'!O$5,IF($AH9='Modèles+listes'!$B$6,'Modèles+listes'!O$6,IF($AH9='Modèles+listes'!$B$7,'Modèles+listes'!O$7,IF($AH9='Modèles+listes'!$B$8,'Modèles+listes'!O$8,IF($AH9='Modèles+listes'!$B$9,'Modèles+listes'!O$9,IF($AH9='Modèles+listes'!$B$10,'Modèles+listes'!O$10,IF($AH9='Modèles+listes'!$B$11,'Modèles+listes'!O$11,IF($AH9='Modèles+listes'!$B$12,'Modèles+listes'!O$12,IF($AH9='Modèles+listes'!$B$13,'Modèles+listes'!O$13,IF($AH9='Modèles+listes'!$B$14,'Modèles+listes'!O$14,IF($AH9='Modèles+listes'!$B$15,'Modèles+listes'!O$15,IF($AH9='Modèles+listes'!$B$16,'Modèles+listes'!O$16,IF($AH9='Modèles+listes'!$B$17,'Modèles+listes'!O$17,IF($AH9='Modèles+listes'!$B$18,'Modèles+listes'!O$18,IF($AH9='Modèles+listes'!$B$19,'Modèles+listes'!O$19,IF($AH9='Modèles+listes'!$B$20,'Modèles+listes'!O$20,FALSE)))))))))))))))) -> 03 | Z9: =IF($AH9='Modèles+listes'!$B$5,'Modèles+listes'!P$5,IF($AH9='Modèles+listes'!$B$6,'Modèles+listes'!P$6,IF($AH9='Modèles+listes'!$B$7,'Modèles+listes'!P$7,IF($AH9='Modèles+listes'!$B$8,'Modèles+listes'!P$8,IF($AH9='Modèles+listes'!$B$9,'Modèles+listes'!P$9,IF($AH9='Modèles+listes'!$B$10,'Modèles+listes'!P$10,IF($AH9='Modèles+listes'!$B$11,'Modèles+listes'!P$11,IF($AH9='Modèles+listes'!$B$12,'Modèles+listes'!P$12,IF($AH9='Modèles+listes'!$B$13,'Modèles+listes'!P$13,IF($AH9='Modèles+listes'!$B$14,'Modèles+listes'!P$14,IF($AH9='Modèles+listes'!$B$15,'Modèles+listes'!P$15,IF($AH9='Modèles+listes'!$B$16,'Modèles+listes'!P$16,IF($AH9='Modèles+listes'!$B$17,'Modèles+listes'!P$17,IF($AH9='Modèles+listes'!$B$18,'Modèles+listes'!P$18,IF($AH9='Modèles+listes'!$B$19,'Modèles+listes'!P$19,IF($AH9='Modèles+listes'!$B$20,'Modèles+listes'!P$20,FALSE)))))))))))))))) -> 0 | AA9: =IF($AH9='Modèles+listes'!$B$5,'Modèles+listes'!Q$5,IF($AH9='Modèles+listes'!$B$6,'Modèles+listes'!Q$6,IF($AH9='Modèles+listes'!$B$7,'Modèles+listes'!Q$7,IF($AH9='Modèles+listes'!$B$8,'Modèles+listes'!Q$8,IF($AH9='Modèles+listes'!$B$9,'Modèles+listes'!Q$9,IF($AH9='Modèles+listes'!$B$10,'Modèles+listes'!Q$10,IF($AH9='Modèles+listes'!$B$11,'Modèles+listes'!Q$11,IF($AH9='Modèles+listes'!$B$12,'Modèles+listes'!Q$12,IF($AH9='Modèles+listes'!$B$13,'Modèles+listes'!Q$13,IF($AH9='Modèles+listes'!$B$14,'Modèles+listes'!Q$14,IF($AH9='Modèles+listes'!$B$15,'Modèles+listes'!Q$15,IF($AH9='Modèles+listes'!$B$16,'Modèles+listes'!Q$16,IF($AH9='Modèles+listes'!$B$17,'Modèles+listes'!Q$17,IF($AH9='Modèles+listes'!$B$18,'Modèles+listes'!Q$18,IF($AH9='Modèles+listes'!$B$19,'Modèles+listes'!Q$19,IF($AH9='Modèles+listes'!$B$20,'Modèles+listes'!Q$20,FALSE)))))))))))))))) -> 5 | AB9: =IF($AH9='Modèles+listes'!$B$5,'Modèles+listes'!R$5,IF($AH9='Modèles+listes'!$B$6,'Modèles+listes'!R$6,IF($AH9='Modèles+listes'!$B$7,'Modèles+listes'!R$7,IF($AH9='Modèles+listes'!$B$8,'Modèles+listes'!R$8,IF($AH9='Modèles+listes'!$B$9,'Modèles+listes'!R$9,IF($AH9='Modèles+listes'!$B$10,'Modèles+listes'!R$10,IF($AH9='Modèles+listes'!$B$11,'Modèles+listes'!R$11,IF($AH9='Modèles+listes'!$B$12,'Modèles+listes'!R$12,IF($AH9='Modèles+listes'!$B$13,'Modèles+listes'!R$13,IF($AH9='Modèles+listes'!$B$14,'Modèles+listes'!R$14,IF($AH9='Modèles+listes'!$B$15,'Modèles+listes'!R$15,IF($AH9='Modèles+listes'!$B$16,'Modèles+listes'!R$16,IF($AH9='Modèles+listes'!$B$17,'Modèles+listes'!R$17,IF($AH9='Modèles+listes'!$B$18,'Modèles+listes'!R$18,IF($AH9='Modèles+listes'!$B$19,'Modèles+listes'!R$19,IF($AH9='Modèles+listes'!$B$20,'Modèles+listes'!R$20,FALSE)))))))))))))))) -> 10 | AC9: =+VLOOKUP(B9,BOM!$M:$W,11,FALSE) -> 1 | AD9: =IF($AH9='Modèles+listes'!$B$5,'Modèles+listes'!T$5,IF($AH9='Modèles+listes'!$B$6,'Modèles+listes'!T$6,IF($AH9='Modèles+listes'!$B$7,'Modèles+listes'!T$7,IF($AH9='Modèles+listes'!$B$8,'Modèles+listes'!T$8,IF($AH9='Modèles+listes'!$B$9,'Modèles+listes'!T$9,IF($AH9='Modèles+listes'!$B$10,'Modèles+listes'!T$10,IF($AH9='Modèles+listes'!$B$11,'Modèles+listes'!T$11,IF($AH9='Modèles+listes'!$B$12,'Modèles+listes'!T$12,IF($AH9='Modèles+listes'!$B$13,'Modèles+listes'!T$13,IF($AH9='Modèles+listes'!$B$14,'Modèles+listes'!T$14,IF($AH9='Modèles+listes'!$B$15,'Modèles+listes'!T$15,IF($AH9='Modèles+listes'!$B$16,'Modèles+listes'!T$16,IF($AH9='Modèles+listes'!$B$17,'Modèles+listes'!T$17,IF($AH9='Modèles+listes'!$B$18,'Modèles+listes'!T$18,IF($AH9='Modèles+listes'!$B$19,'Modèles+listes'!T$19,IF($AH9='Modèles+listes'!$B$20,'Modèles+listes'!T$20,FALSE)))))))))))))))) -> 12 | AE9: =IF($AH9='Modèles+listes'!$B$5,'Modèles+listes'!U$5,IF($AH9='Modèles+listes'!$B$6,'Modèles+listes'!U$6,IF($AH9='Modèles+listes'!$B$7,'Modèles+listes'!U$7,IF($AH9='Modèles+listes'!$B$8,'Modèles+listes'!U$8,IF($AH9='Modèles+listes'!$B$9,'Modèles+listes'!U$9,IF($AH9='Modèles+listes'!$B$10,'Modèles+listes'!U$10,IF($AH9='Modèles+listes'!$B$11,'Modèles+listes'!U$11,IF($AH9='Modèles+listes'!$B$12,'Modèles+listes'!U$12,IF($AH9='Modèles+listes'!$B$13,'Modèles+listes'!U$13,IF($AH9='Modèles+listes'!$B$14,'Modèles+listes'!U$14,IF($AH9='Modèles+listes'!$B$15,'Modèles+listes'!U$15,IF($AH9='Modèles+listes'!$B$16,'Modèles+listes'!U$16,IF($AH9='Modèles+listes'!$B$17,'Modèles+listes'!U$17,IF($AH9='Modèles+listes'!$B$18,'Modèles+listes'!U$18,IF($AH9='Modèles+listes'!$B$19,'Modèles+listes'!U$19,IF($AH9='Modèles+listes'!$B$20,'Modèles+listes'!U$20,FALSE)))))))))))))))) -> ? | AF9: =IF($AH9='Modèles+listes'!$B$5,'Modèles+listes'!V$5,IF($AH9='Modèles+listes'!$B$6,'Modèles+listes'!V$6,IF($AH9='Modèles+listes'!$B$7,'Modèles+listes'!V$7,IF($AH9='Modèles+listes'!$B$8,'Modèles+listes'!V$8,IF($AH9='Modèles+listes'!$B$9,'Modèles+listes'!V$9,IF($AH9='Modèles+listes'!$B$10,'Modèles+listes'!V$10,IF($AH9='Modèles+listes'!$B$11,'Modèles+listes'!V$11,IF($AH9='Modèles+listes'!$B$12,'Modèles+listes'!V$12,IF($AH9='Modèles+listes'!$B$13,'Modèles+listes'!V$13,IF($AH9='Modèles+listes'!$B$14,'Modèles+listes'!V$14,IF($AH9='Modèles+listes'!$B$15,'Modèles+listes'!V$15,IF($AH9='Modèles+listes'!$B$16,'Modèles+listes'!V$16,IF($AH9='Modèles+listes'!$B$17,'Modèles+listes'!V$17,IF($AH9='Modèles+listes'!$B$18,'Modèles+listes'!V$18,IF($AH9='Modèles+listes'!$B$19,'Modèles+listes'!V$19,IF($AH9='Modèles+listes'!$B$20,'Modèles+listes'!V$20,FALSE)))))))))))))))) -> 4 | AG9: =IF($AH9='Modèles+listes'!$B$5,'Modèles+listes'!W$5,IF($AH9='Modèles+listes'!$B$6,'Modèles+listes'!W$6,IF($AH9='Modèles+listes'!$B$7,'Modèles+listes'!W$7,IF($AH9='Modèles+listes'!$B$8,'Modèles+listes'!W$8,IF($AH9='Modèles+listes'!$B$9,'Modèles+listes'!W$9,IF($AH9='Modèles+listes'!$B$10,'Modèles+listes'!W$10,IF($AH9='Modèles+listes'!$B$11,'Modèles+listes'!W$11,IF($AH9='Modèles+listes'!$B$12,'Modèles+listes'!W$12,IF($AH9='Modèles+listes'!$B$13,'Modèles+listes'!W$13,IF($AH9='Modèles+listes'!$B$14,'Modèles+listes'!W$14,IF($AH9='Modèles+listes'!$B$15,'Modèles+listes'!W$15,IF($AH9='Modèles+listes'!$B$16,'Modèles+listes'!W$16,IF($AH9='Modèles+listes'!$B$17,'Modèles+listes'!W$17,IF($AH9='Modèles+listes'!$B$18,'Modèles+listes'!W$18,IF($AH9='Modèles+listes'!$B$19,'Modèles+listes'!W$19,IF($AH9='Modèles+listes'!$B$20,'Modèles+listes'!W$20,FALSE)))))))))))))))) -> 0 | AH9: =+VLOOKUP(B9,BOM!$M:$W,4,FALSE) -> MODEL09
B10: 94098702 | C10: =+VLOOKUP(B10,BOM!$M:$O,3,FALSE) -> P/C CR4 700 SENS D | D10: =VLOOKUP(B10,BOM!$M:$W,8,FALSE) -> 4098702 | E10: =IF($AH10='Modèles+listes'!$B$5,'Modèles+listes'!D$5,IF($AH10='Modèles+listes'!$B$6,'Modèles+listes'!D$6,IF($AH10='Modèles+listes'!$B$7,'Modèles+listes'!D$7,IF($AH10='Modèles+listes'!$B$8,'Modèles+listes'!D$8,IF($AH10='Modèles+listes'!$B$9,'Modèles+listes'!D$9,IF($AH10='Modèles+listes'!$B$10,'Modèles+listes'!D$10,IF($AH10='Modèles+listes'!$B$11,'Modèles+listes'!D$11,IF($AH10='Modèles+listes'!$B$12,'Modèles+listes'!D$12,IF($AH10='Modèles+listes'!$B$13,'Modèles+listes'!D$13,IF($AH10='Modèles+listes'!$B$14,'Modèles+listes'!D$14,IF($AH10='Modèles+listes'!$B$15,'Modèles+listes'!D$15,IF($AH10='Modèles+listes'!$B$16,'Modèles+listes'!D$16,IF($AH10='Modèles+listes'!$B$17,'Modèles+listes'!D$17,IF($AH10='Modèles+listes'!$B$18,'Modèles+listes'!D$18,IF($AH10='Modèles+listes'!$B$19,'Modèles+listes'!D$19,IF($AH10='Modèles+listes'!$B$20,'Modèles+listes'!D$20,FALSE)))))))))))))))) -> 03 | F10: =BOM!$R$4 -> 1506 | G10: =BOM!$R$5 -> 04090 | H10: =IF($AH10='Modèles+listes'!$B$5,'Modèles+listes'!E$5,IF($AH10='Modèles+listes'!$B$6,'Modèles+listes'!E$6,IF($AH10='Modèles+listes'!$B$7,'Modèles+listes'!E$7,IF($AH10='Modèles+listes'!$B$8,'Modèles+listes'!E$8,IF($AH10='Modèles+listes'!$B$9,'Modèles+listes'!E$9,IF($AH10='Modèles+listes'!$B$10,'Modèles+listes'!E$10,IF($AH10='Modèles+listes'!$B$11,'Modèles+listes'!E$11,IF($AH10='Modèles+listes'!$B$12,'Modèles+listes'!E$12,IF($AH10='Modèles+listes'!$B$13,'Modèles+listes'!E$13,IF($AH10='Modèles+listes'!$B$14,'Modèles+listes'!E$14,IF($AH10='Modèles+listes'!$B$15,'Modèles+listes'!E$15,IF($AH10='Modèles+listes'!$B$16,'Modèles+listes'!E$16,IF($AH10='Modèles+listes'!$B$17,'Modèles+listes'!E$17,IF($AH10='Modèles+listes'!$B$18,'Modèles+listes'!E$18,IF($AH10='Modèles+listes'!$B$19,'Modèles+listes'!E$19,IF($AH10='Modèles+listes'!$B$20,'Modèles+listes'!E$20,FALSE)))))))))))))))) -> 1 | I10: =+VLOOKUP($B10,BOM!$M:$BB,5,FALSE) -> PI | J10: =+IF(E10<>"04",BOM!$R$3,BOM!$R$2) -> SALPETIER | K10: =IF($AH10='Modèles+listes'!$B$5,'Modèles+listes'!F$5,IF($AH10='Modèles+listes'!$B$6,'Modèles+listes'!F$6,IF($AH10='Modèles+listes'!$B$7,'Modèles+listes'!F$7,IF($AH10='Modèles+listes'!$B$8,'Modèles+listes'!F$8,IF($AH10='Modèles+listes'!$B$9,'Modèles+listes'!F$9,IF($AH10='Modèles+listes'!$B$10,'Modèles+listes'!F$10,IF($AH10='Modèles+listes'!$B$11,'Modèles+listes'!F$11,IF($AH10='Modèles+listes'!$B$12,'Modèles+listes'!F$12,IF($AH10='Modèles+listes'!$B$13,'Modèles+listes'!F$13,IF($AH10='Modèles+listes'!$B$14,'Modèles+listes'!F$14,IF($AH10='Modèles+listes'!$B$15,'Modèles+listes'!F$15,IF($AH10='Modèles+listes'!$B$16,'Modèles+listes'!F$16,IF($AH10='Modèles+listes'!$B$17,'Modèles+listes'!F$17,IF($AH10='Modèles+listes'!$B$18,'Modèles+listes'!F$18,IF($AH10='Modèles+listes'!$B$19,'Modèles+listes'!F$19,IF($AH10='Modèles+listes'!$B$20,'Modèles+listes'!F$20,FALSE)))))))))))))))) -> 2 | L10: =IF($AH10='Modèles+listes'!$B$5,'Modèles+listes'!G$5,IF($AH10='Modèles+listes'!$B$6,'Modèles+listes'!G$6,IF($AH10='Modèles+listes'!$B$7,'Modèles+listes'!G$7,IF($AH10='Modèles+listes'!$B$8,'Modèles+listes'!G$8,IF($AH10='Modèles+listes'!$B$9,'Modèles+listes'!G$9,IF($AH10='Modèles+listes'!$B$10,'Modèles+listes'!G$10,IF($AH10='Modèles+listes'!$B$11,'Modèles+listes'!G$11,IF($AH10='Modèles+listes'!$B$12,'Modèles+listes'!G$12,IF($AH10='Modèles+listes'!$B$13,'Modèles+listes'!G$13,IF($AH10='Modèles+listes'!$B$14,'Modèles+listes'!G$14,IF($AH10='Modèles+listes'!$B$15,'Modèles+listes'!G$15,IF($AH10='Modèles+listes'!$B$16,'Modèles+listes'!G$16,IF($AH10='Modèles+listes'!$B$17,'Modèles+listes'!G$17,IF($AH10='Modèles+listes'!$B$18,'Modèles+listes'!G$18,IF($AH10='Modèles+listes'!$B$19,'Modèles+listes'!G$19,IF($AH10='Modèles+listes'!$B$20,'Modèles+listes'!G$20,FALSE)))))))))))))))) -> ? | M10: =IF($AH10='Modèles+listes'!$B$5,'Modèles+listes'!H$5,IF($AH10='Modèles+listes'!$B$6,'Modèles+listes'!H$6,IF($AH10='Modèles+listes'!$B$7,'Modèles+listes'!H$7,IF($AH10='Modèles+listes'!$B$8,'Modèles+listes'!H$8,IF($AH10='Modèles+listes'!$B$9,'Modèles+listes'!H$9,IF($AH10='Modèles+listes'!$B$10,'Modèles+listes'!H$10,IF($AH10='Modèles+listes'!$B$11,'Modèles+listes'!H$11,IF($AH10='Modèles+listes'!$B$12,'Modèles+listes'!H$12,IF($AH10='Modèles+listes'!$B$13,'Modèles+listes'!H$13,IF($AH10='Modèles+listes'!$B$14,'Modèles+listes'!H$14,IF($AH10='Modèles+listes'!$B$15,'Modèles+listes'!H$15,IF($AH10='Modèles+listes'!$B$16,'Modèles+listes'!H$16,IF($AH10='Modèles+listes'!$B$17,'Modèles+listes'!H$17,IF($AH10='Modèles+listes'!$B$18,'Modèles+listes'!H$18,IF($AH10='Modèles+listes'!$B$19,'Modèles+listes'!H$19,IF($AH10='Modèles+listes'!$B$20,'Modèles+listes'!H$20,FALSE)))))))))))))))) -> 0 | N10: =IF($AH10='Modèles+listes'!$B$5,'Modèles+listes'!I$5,IF($AH10='Modèles+listes'!$B$6,'Modèles+listes'!I$6,IF($AH10='Modèles+listes'!$B$7,'Modèles+listes'!I$7,IF($AH10='Modèles+listes'!$B$8,'Modèles+listes'!I$8,IF($AH10='Modèles+listes'!$B$9,'Modèles+listes'!I$9,IF($AH10='Modèles+listes'!$B$10,'Modèles+listes'!I$10,IF($AH10='Modèles+listes'!$B$11,'Modèles+listes'!I$11,IF($AH10='Modèles+listes'!$B$12,'Modèles+listes'!I$12,IF($AH10='Modèles+listes'!$B$13,'Modèles+listes'!I$13,IF($AH10='Modèles+listes'!$B$14,'Modèles+listes'!I$14,IF($AH10='Modèles+listes'!$B$15,'Modèles+listes'!I$15,IF($AH10='Modèles+listes'!$B$16,'Modèles+listes'!I$16,IF($AH10='Modèles+listes'!$B$17,'Modèles+listes'!I$17,IF($AH10='Modèles+listes'!$B$18,'Modèles+listes'!I$18,IF($AH10='Modèles+listes'!$B$19,'Modèles+listes'!I$19,IF($AH10='Modèles+listes'!$B$20,'Modèles+listes'!I$20,FALSE)))))))))))))))) -> 0 | O10: =+VLOOKUP(B10,BOM!$M:$W,6,FALSE) -> 0 | P10: =+VLOOKUP($B10,BOM!$M:$W,7,FALSE) -> 0 | Q10: =IF($AH10='Modèles+listes'!$B$5,'Modèles+listes'!J$5,IF($AH10='Modèles+listes'!$B$6,'Modèles+listes'!J$6,IF($AH10='Modèles+listes'!$B$7,'Modèles+listes'!J$7,IF($AH10='Modèles+listes'!$B$8,'Modèles+listes'!J$8,IF($AH10='Modèles+listes'!$B$9,'Modèles+listes'!J$9,IF($AH10='Modèles+listes'!$B$10,'Modèles+listes'!J$10,IF($AH10='Modèles+listes'!$B$11,'Modèles+listes'!J$11,IF($AH10='Modèles+listes'!$B$12,'Modèles+listes'!J$12,IF($AH10='Modèles+listes'!$B$13,'Modèles+listes'!J$13,IF($AH10='Modèles+listes'!$B$14,'Modèles+listes'!J$14,IF($AH10='Modèles+listes'!$B$15,'Modèles+listes'!J$15,IF($AH10='Modèles+listes'!$B$16,'Modèles+listes'!J$16,IF($AH10='Modèles+listes'!$B$17,'Modèles+listes'!J$17,IF($AH10='Modèles+listes'!$B$18,'Modèles+listes'!J$18,IF($AH10='Modèles+listes'!$B$19,'Modèles+listes'!J$19,IF($AH10='Modèles+listes'!$B$20,'Modèles+listes'!J$20,FALSE)))))))))))))))) -> 0 | R10: =IF($AH10='Modèles+listes'!$B$5,'Modèles+listes'!K$5,IF($AH10='Modèles+listes'!$B$6,'Modèles+listes'!K$6,IF($AH10='Modèles+listes'!$B$7,'Modèles+listes'!K$7,IF($AH10='Modèles+listes'!$B$8,'Modèles+listes'!K$8,IF($AH10='Modèles+listes'!$B$9,'Modèles+listes'!K$9,IF($AH10='Modèles+listes'!$B$10,'Modèles+listes'!K$10,IF($AH10='Modèles+listes'!$B$11,'Modèles+listes'!K$11,IF($AH10='Modèles+listes'!$B$12,'Modèles+listes'!K$12,IF($AH10='Modèles+listes'!$B$13,'Modèles+listes'!K$13,IF($AH10='Modèles+listes'!$B$14,'Modèles+listes'!K$14,IF($AH10='Modèles+listes'!$B$15,'Modèles+listes'!K$15,IF($AH10='Modèles+listes'!$B$16,'Modèles+listes'!K$16,IF($AH10='Modèles+listes'!$B$17,'Modèles+listes'!K$17,IF($AH10='Modèles+listes'!$B$18,'Modèles+listes'!K$18,IF($AH10='Modèles+listes'!$B$19,'Modèles+listes'!K$19,IF($AH10='Modèles+listes'!$B$20,'Modèles+listes'!K$20,FALSE)))))))))))))))) -> 0 | T10: =VLOOKUP(B10,BOM!$M:$W,9,FALSE) -> N | V10: =IF($AH10='Modèles+listes'!$B$5,'Modèles+listes'!L$5,IF($AH10='Modèles+listes'!$B$6,'Modèles+listes'!L$6,IF($AH10='Modèles+listes'!$B$7,'Modèles+listes'!L$7,IF($AH10='Modèles+listes'!$B$8,'Modèles+listes'!L$8,IF($AH10='Modèles+listes'!$B$9,'Modèles+listes'!L$9,IF($AH10='Modèles+listes'!$B$10,'Modèles+listes'!L$10,IF($AH10='Modèles+listes'!$B$11,'Modèles+listes'!L$11,IF($AH10='Modèles+listes'!$B$12,'Modèles+listes'!L$12,IF($AH10='Modèles+listes'!$B$13,'Modèles+listes'!L$13,IF($AH10='Modèles+listes'!$B$14,'Modèles+listes'!L$14,IF($AH10='Modèles+listes'!$B$15,'Modèles+listes'!L$15,IF($AH10='Modèles+listes'!$B$16,'Modèles+listes'!L$16,IF($AH10='Modèles+listes'!$B$17,'Modèles+listes'!L$17,IF($AH10='Modèles+listes'!$B$18,'Modèles+listes'!L$18,IF($AH10='Modèles+listes'!$B$19,'Modèles+listes'!L$19,IF($AH10='Modèles+listes'!$B$20,'Modèles+listes'!L$20,FALSE)))))))))))))))) -> 2 | W10: =IF($AH10='Modèles+listes'!$B$5,'Modèles+listes'!M$5,IF($AH10='Modèles+listes'!$B$6,'Modèles+listes'!M$6,IF($AH10='Modèles+listes'!$B$7,'Modèles+listes'!M$7,IF($AH10='Modèles+listes'!$B$8,'Modèles+listes'!M$8,IF($AH10='Modèles+listes'!$B$9,'Modèles+listes'!M$9,IF($AH10='Modèles+listes'!$B$10,'Modèles+listes'!M$10,IF($AH10='Modèles+listes'!$B$11,'Modèles+listes'!M$11,IF($AH10='Modèles+listes'!$B$12,'Modèles+listes'!M$12,IF($AH10='Modèles+listes'!$B$13,'Modèles+listes'!M$13,IF($AH10='Modèles+listes'!$B$14,'Modèles+listes'!M$14,IF($AH10='Modèles+listes'!$B$15,'Modèles+listes'!M$15,IF($AH10='Modèles+listes'!$B$16,'Modèles+listes'!M$16,IF($AH10='Modèles+listes'!$B$17,'Modèles+listes'!M$17,IF($AH10='Modèles+listes'!$B$18,'Modèles+listes'!M$18,IF($AH10='Modèles+listes'!$B$19,'Modèles+listes'!M$19,IF($AH10='Modèles+listes'!$B$20,'Modèles+listes'!M$20,FALSE)))))))))))))))) -> 30 | X10: =IF($AH10='Modèles+listes'!$B$5,'Modèles+listes'!N$5,IF($AH10='Modèles+listes'!$B$6,'Modèles+listes'!N$6,IF($AH10='Modèles+listes'!$B$7,'Modèles+listes'!N$7,IF($AH10='Modèles+listes'!$B$8,'Modèles+listes'!N$8,IF($AH10='Modèles+listes'!$B$9,'Modèles+listes'!N$9,IF($AH10='Modèles+listes'!$B$10,'Modèles+listes'!N$10,IF($AH10='Modèles+listes'!$B$11,'Modèles+listes'!N$11,IF($AH10='Modèles+listes'!$B$12,'Modèles+listes'!N$12,IF($AH10='Modèles+listes'!$B$13,'Modèles+listes'!N$13,IF($AH10='Modèles+listes'!$B$14,'Modèles+listes'!N$14,IF($AH10='Modèles+listes'!$B$15,'Modèles+listes'!N$15,IF($AH10='Modèles+listes'!$B$16,'Modèles+listes'!N$16,IF($AH10='Modèles+listes'!$B$17,'Modèles+listes'!N$17,IF($AH10='Modèles+listes'!$B$18,'Modèles+listes'!N$18,IF($AH10='Modèles+listes'!$B$19,'Modèles+listes'!N$19,IF($AH10='Modèles+listes'!$B$20,'Modèles+listes'!N$20,FALSE)))))))))))))))) -> 1 | Y10: =IF($AH10='Modèles+listes'!$B$5,'Modèles+listes'!O$5,IF($AH10='Modèles+listes'!$B$6,'Modèles+listes'!O$6,IF($AH10='Modèles+listes'!$B$7,'Modèles+listes'!O$7,IF($AH10='Modèles+listes'!$B$8,'Modèles+listes'!O$8,IF($AH10='Modèles+listes'!$B$9,'Modèles+listes'!O$9,IF($AH10='Modèles+listes'!$B$10,'Modèles+listes'!O$10,IF($AH10='Modèles+listes'!$B$11,'Modèles+listes'!O$11,IF($AH10='Modèles+listes'!$B$12,'Modèles+listes'!O$12,IF($AH10='Modèles+listes'!$B$13,'Modèles+listes'!O$13,IF($AH10='Modèles+listes'!$B$14,'Modèles+listes'!O$14,IF($AH10='Modèles+listes'!$B$15,'Modèles+listes'!O$15,IF($AH10='Modèles+listes'!$B$16,'Modèles+listes'!O$16,IF($AH10='Modèles+listes'!$B$17,'Modèles+listes'!O$17,IF($AH10='Modèles+listes'!$B$18,'Modèles+listes'!O$18,IF($AH10='Modèles+listes'!$B$19,'Modèles+listes'!O$19,IF($AH10='Modèles+listes'!$B$20,'Modèles+listes'!O$20,FALSE)))))))))))))))) -> 01 | Z10: =IF($AH10='Modèles+listes'!$B$5,'Modèles+listes'!P$5,IF($AH10='Modèles+listes'!$B$6,'Modèles+listes'!P$6,IF($AH10='Modèles+listes'!$B$7,'Modèles+listes'!P$7,IF($AH10='Modèles+listes'!$B$8,'Modèles+listes'!P$8,IF($AH10='Modèles+listes'!$B$9,'Modèles+listes'!P$9,IF($AH10='Modèles+listes'!$B$10,'Modèles+listes'!P$10,IF($AH10='Modèles+listes'!$B$11,'Modèles+listes'!P$11,IF($AH10='Modèles+listes'!$B$12,'Modèles+listes'!P$12,IF($AH10='Modèles+listes'!$B$13,'Modèles+listes'!P$13,IF($AH10='Modèles+listes'!$B$14,'Modèles+listes'!P$14,IF($AH10='Modèles+listes'!$B$15,'Modèles+listes'!P$15,IF($AH10='Modèles+listes'!$B$16,'Modèles+listes'!P$16,IF($AH10='Modèles+listes'!$B$17,'Modèles+listes'!P$17,IF($AH10='Modèles+listes'!$B$18,'Modèles+listes'!P$18,IF($AH10='Modèles+listes'!$B$19,'Modèles+listes'!P$19,IF($AH10='Modèles+listes'!$B$20,'Modèles+listes'!P$20,FALSE)))))))))))))))) -> 0 | AA10: =IF($AH10='Modèles+listes'!$B$5,'Modèles+listes'!Q$5,IF($AH10='Modèles+listes'!$B$6,'Modèles+listes'!Q$6,IF($AH10='Modèles+listes'!$B$7,'Modèles+listes'!Q$7,IF($AH10='Modèles+listes'!$B$8,'Modèles+listes'!Q$8,IF($AH10='Modèles+listes'!$B$9,'Modèles+listes'!Q$9,IF($AH10='Modèles+listes'!$B$10,'Modèles+listes'!Q$10,IF($AH10='Modèles+listes'!$B$11,'Modèles+listes'!Q$11,IF($AH10='Modèles+listes'!$B$12,'Modèles+listes'!Q$12,IF($AH10='Modèles+listes'!$B$13,'Modèles+listes'!Q$13,IF($AH10='Modèles+listes'!$B$14,'Modèles+listes'!Q$14,IF($AH10='Modèles+listes'!$B$15,'Modèles+listes'!Q$15,IF($AH10='Modèles+listes'!$B$16,'Modèles+listes'!Q$16,IF($AH10='Modèles+listes'!$B$17,'Modèles+listes'!Q$17,IF($AH10='Modèles+listes'!$B$18,'Modèles+listes'!Q$18,IF($AH10='Modèles+listes'!$B$19,'Modèles+listes'!Q$19,IF($AH10='Modèles+listes'!$B$20,'Modèles+listes'!Q$20,FALSE)))))))))))))))) -> 0 | AB10: =IF($AH10='Modèles+listes'!$B$5,'Modèles+listes'!R$5,IF($AH10='Modèles+listes'!$B$6,'Modèles+listes'!R$6,IF($AH10='Modèles+listes'!$B$7,'Modèles+listes'!R$7,IF($AH10='Modèles+listes'!$B$8,'Modèles+listes'!R$8,IF($AH10='Modèles+listes'!$B$9,'Modèles+listes'!R$9,IF($AH10='Modèles+listes'!$B$10,'Modèles+listes'!R$10,IF($AH10='Modèles+listes'!$B$11,'Modèles+listes'!R$11,IF($AH10='Modèles+listes'!$B$12,'Modèles+listes'!R$12,IF($AH10='Modèles+listes'!$B$13,'Modèles+listes'!R$13,IF($AH10='Modèles+listes'!$B$14,'Modèles+listes'!R$14,IF($AH10='Modèles+listes'!$B$15,'Modèles+listes'!R$15,IF($AH10='Modèles+listes'!$B$16,'Modèles+listes'!R$16,IF($AH10='Modèles+listes'!$B$17,'Modèles+listes'!R$17,IF($AH10='Modèles+listes'!$B$18,'Modèles+listes'!R$18,IF($AH10='Modèles+listes'!$B$19,'Modèles+listes'!R$19,IF($AH10='Modèles+listes'!$B$20,'Modèles+listes'!R$20,FALSE)))))))))))))))) -> 0 | AC10: =+VLOOKUP(B10,BOM!$M:$W,11,FALSE) -> 1 | AD10: =IF($AH10='Modèles+listes'!$B$5,'Modèles+listes'!T$5,IF($AH10='Modèles+listes'!$B$6,'Modèles+listes'!T$6,IF($AH10='Modèles+listes'!$B$7,'Modèles+listes'!T$7,IF($AH10='Modèles+listes'!$B$8,'Modèles+listes'!T$8,IF($AH10='Modèles+listes'!$B$9,'Modèles+listes'!T$9,IF($AH10='Modèles+listes'!$B$10,'Modèles+listes'!T$10,IF($AH10='Modèles+listes'!$B$11,'Modèles+listes'!T$11,IF($AH10='Modèles+listes'!$B$12,'Modèles+listes'!T$12,IF($AH10='Modèles+listes'!$B$13,'Modèles+listes'!T$13,IF($AH10='Modèles+listes'!$B$14,'Modèles+listes'!T$14,IF($AH10='Modèles+listes'!$B$15,'Modèles+listes'!T$15,IF($AH10='Modèles+listes'!$B$16,'Modèles+listes'!T$16,IF($AH10='Modèles+listes'!$B$17,'Modèles+listes'!T$17,IF($AH10='Modèles+listes'!$B$18,'Modèles+listes'!T$18,IF($AH10='Modèles+listes'!$B$19,'Modèles+listes'!T$19,IF($AH10='Modèles+listes'!$B$20,'Modèles+listes'!T$20,FALSE)))))))))))))))) -> 12 | AE10: =IF($AH10='Modèles+listes'!$B$5,'Modèles+listes'!U$5,IF($AH10='Modèles+listes'!$B$6,'Modèles+listes'!U$6,IF($AH10='Modèles+listes'!$B$7,'Modèles+listes'!U$7,IF($AH10='Modèles+listes'!$B$8,'Modèles+listes'!U$8,IF($AH10='Modèles+listes'!$B$9,'Modèles+listes'!U$9,IF($AH10='Modèles+listes'!$B$10,'Modèles+listes'!U$10,IF($AH10='Modèles+listes'!$B$11,'Modèles+listes'!U$11,IF($AH10='Modèles+listes'!$B$12,'Modèles+listes'!U$12,IF($AH10='Modèles+listes'!$B$13,'Modèles+listes'!U$13,IF($AH10='Modèles+listes'!$B$14,'Modèles+listes'!U$14,IF($AH10='Modèles+listes'!$B$15,'Modèles+listes'!U$15,IF($AH10='Modèles+listes'!$B$16,'Modèles+listes'!U$16,IF($AH10='Modèles+listes'!$B$17,'Modèles+listes'!U$17,IF($AH10='Modèles+listes'!$B$18,'Modèles+listes'!U$18,IF($AH10='Modèles+listes'!$B$19,'Modèles+listes'!U$19,IF($AH10='Modèles+listes'!$B$20,'Modèles+listes'!U$20,FALSE)))))))))))))))) -> ? | AF10: =IF($AH10='Modèles+listes'!$B$5,'Modèles+listes'!V$5,IF($AH10='Modèles+listes'!$B$6,'Modèles+listes'!V$6,IF($AH10='Modèles+listes'!$B$7,'Modèles+listes'!V$7,IF($AH10='Modèles+listes'!$B$8,'Modèles+listes'!V$8,IF($AH10='Modèles+listes'!$B$9,'Modèles+listes'!V$9,IF($AH10='Modèles+listes'!$B$10,'Modèles+listes'!V$10,IF($AH10='Modèles+listes'!$B$11,'Modèles+listes'!V$11,IF($AH10='Modèles+listes'!$B$12,'Modèles+listes'!V$12,IF($AH10='Modèles+listes'!$B$13,'Modèles+listes'!V$13,IF($AH10='Modèles+listes'!$B$14,'Modèles+listes'!V$14,IF($AH10='Modèles+listes'!$B$15,'Modèles+listes'!V$15,IF($AH10='Modèles+listes'!$B$16,'Modèles+listes'!V$16,IF($AH10='Modèles+listes'!$B$17,'Modèles+listes'!V$17,IF($AH10='Modèles+listes'!$B$18,'Modèles+listes'!V$18,IF($AH10='Modèles+listes'!$B$19,'Modèles+listes'!V$19,IF($AH10='Modèles+listes'!$B$20,'Modèles+listes'!V$20,FALSE)))))))))))))))) -> 4 | AG10: =IF($AH10='Modèles+listes'!$B$5,'Modèles+listes'!W$5,IF($AH10='Modèles+listes'!$B$6,'Modèles+listes'!W$6,IF($AH10='Modèles+listes'!$B$7,'Modèles+listes'!W$7,IF($AH10='Modèles+listes'!$B$8,'Modèles+listes'!W$8,IF($AH10='Modèles+listes'!$B$9,'Modèles+listes'!W$9,IF($AH10='Modèles+listes'!$B$10,'Modèles+listes'!W$10,IF($AH10='Modèles+listes'!$B$11,'Modèles+listes'!W$11,IF($AH10='Modèles+listes'!$B$12,'Modèles+listes'!W$12,IF($AH10='Modèles+listes'!$B$13,'Modèles+listes'!W$13,IF($AH10='Modèles+listes'!$B$14,'Modèles+listes'!W$14,IF($AH10='Modèles+listes'!$B$15,'Modèles+listes'!W$15,IF($AH10='Modèles+listes'!$B$16,'Modèles+listes'!W$16,IF($AH10='Modèles+listes'!$B$17,'Modèles+listes'!W$17,IF($AH10='Modèles+listes'!$B$18,'Modèles+listes'!W$18,IF($AH10='Modèles+listes'!$B$19,'Modèles+listes'!W$19,IF($AH10='Modèles+listes'!$B$20,'Modèles+listes'!W$20,FALSE)))))))))))))))) -> 5 | AH10: =+VLOOKUP(B10,BOM!$M:$W,4,FALSE) -> MODEL03

Sheet CRS230
B2: CRS230
B3: CRS230/E
A4: Article Produit | B4: No document | C4: Nom | D4: Type document | E4: Responsable
A5: 12456006 | B5: =MID(A5,2,8) -> 2456006 | C5: =+VLOOKUP(A5,BOM!M:O,3,FALSE) ->  | D5: PL | E5: =+VLOOKUP(A5,MMS!B:AH,9,FALSE) ->  | F5: modèle formule ne pas suprimer
A6: Article Produit | B6: DODOID | C6: DODODE | D6: DODOTY | E6: DORESP
A7: 84045006 | B7: 4045006 | C7: FONCET MOBILE LISSE GCHE | D7: PL | E7: =+VLOOKUP(A7,MMS!B:AH,9,FALSE) -> JACOB
A8: 94098701 | B8: 4098701 | C8: P/C CR4 700 SENS A | D8: PL | E8: =+VLOOKUP(A8,MMS!B:AH,9,FALSE) -> SALPETIER
A9: 94098702 | B9: 4098702 | C9: P/C CR4 700 SENS D | D9: PL | E9: =+VLOOKUP(A9,MMS!B:AH,9,FALSE) -> SALPETIER

Sheet ECS411
B1: PAGE A REMPLIR MANUELLEMENT
B2: ECS411
B3: ECS411/B
B4: No document | C4: Sous-document | D4: Remarques
B5: DLDOID | C5: DLSUID | D5: DLREMK
C6: 4045006 | D6: FONCET MOBILE LISSE GCHE

Sheet PDS021 Article
B2: PDS021 Création NOUVEAU CODE
B4: Article Produit | C4: Responsable
B5: XXXXXXXXX | C5: =BOM!$R$3 -> SALPETIER
B6: PHPRNO | C6: PHRESP
B7: 84045006 | C7: =BOM!$R$3 -> SALPETIER
B8: 84045007 | C8: =BOM!$R$3 -> SALPETIER
B9: 94098701 | C9: =BOM!$R$3 -> SALPETIER
B10: 94098702 | C10: =BOM!$R$3 -> SALPETIER

Sheet PDS021 Opérations
B1: exemple | D1: 22380 | F1: =VLOOKUP(D1,'Poste de charge'!A:C,3,FALSE) -> 0.15
B2: PDS021 Opérations
B3: identification article. 15 caractères maxi. Obligatoire | C3: indique l'ordre dans lequel les opérations seront réalisées | D3: Poste de Charge sur lequel l'opération est effectuée | E3: Libellé de l'opération | F3: Temps expérimé en heure | G3: temps exprimé en centième d'heure, Est défini par défaut sur le PDC mais peut être renseignée | H3: Doit exister dans CRS230
B4: Article Produit | C4: n° opération | D4: PDC | E4: Désignation opération | F4: Temps préparation | G4: Temps exécution | H4: n° document
B5: POPRNO | C5: POOPNO | D5: POPLGR | E5: POOPDS | F5: POSETI | G5: POPITI | H5: PODOID
B6: 84045006 | C6: 10 | D6: 22520 | E6: LASER BYSTRONIC | F6: 0,05 | G6: 1 | H6: PANO-MDPX | I6: Opérations
B7: 84045006 | C7: 15 | D7: 22630 | E7: PLIEUSES CN 170T | F7: 0,4 | G7: 1 | I7: Opérations
B8: 84045007 | C8: 10 | D8: 22520 | E8: LASER BYSTRONIC | F8: 0,05 | G8: 1 | I8: Opérations
B9: 84045007 | C9: 15 | D9: 22630 | E9: PLIEUSES CN 170T | F9: 0,4 | G9: 1 | I9: Opérations
B10: 94098701 | C10: 100 | D10: 26200 | E10: ASSEMBLAGE ESPACE 50C | F10: 0 | G10: 50 | I10: Opérations
B11: 94098701 | C11: 110 | D11: 27540 | E11: CHAINE PEINTURE POUDRE | F11: 0,13 | G11: 50 | I11: Opérations
B12: 94098702 | C12: 100 | D12: 26200 | E12: ASSEMBLAGE ESPACE 50C | F12: 0 | G12: 50 | I12: Opérations
B13: 94098702 | C13: 110 | D13: 27540 | E13: CHAINE PEINTURE POUDRE | F13: 0,13 | G13: 50 | I13: Opérations

Sheet PDS021 Composants
G1: 0
B2: PDS021 Composants
B3: Doit exister dans MOVEX ou dans le fichier de création | C3: Ordre dans lequel les composants doivent apparaitre dans la structure | D3: Doit exister dans le fichier opérations | E3: Doit exister ds MOVEX ou ds le fichier de création | F3: Coefficient d'assemblage, Toujours positif | G3: Préciser 1 si le composant est à réintégrer (lien négatif)
B4: Article Produit | C4: séquence | D4: n° opération | E4: composant | F4: quantité | G4: Code SS/Co Prod
B5: PMPRNO | C5: PMMSEQ | D5: PMOPNO | E5: PMMTNO | F5: PMCNQT | G5: PMBYPR
B6: 94098701 | C6: 20 | D6: 100 | E6: 84045006 | F6: 1 | G6: 0 | I6: Nouveau
B7: 84045006 | C7: 5 | D7: 10 | E7: 11110021 | F7: 1 | G7: 0 | I7: Composants
B8: 94098701 | D8: 100 | E8: 84045007 | F8: 2 | G8: 1 | I8: Nouveau
B9: 84045007 | C9: 5 | D9: 10 | E9: 11110021 | F9: 1 | G9: 0 | I9: Opérations
B10: 94098702 | C10: 20 | D10: 100 | E10: 84045006 | F10: 2 | G10: 0 | I10: Nouveau
B11: 94098702 | C11: 25 | D11: 100 | E11: 84045007 | F11: 3 | G11: 0 | I11: Nouveau

Sheet Modèles+listes (hidden)
D2: MMS001 | L2: MMS002 | W2: MMS003
D3: MMS001/E | J3: MMS001/G | L3: MMS002/E | T3: MMS002/F | U3: MMS002/G
B4: MODEL | C4: DESIGNATION | D4: Type article | E4: Mét.val.stock | F4: Code fab./achat | G4: Groupe approvis | H4: Mét. gestion/lot | I4: Mét.numérot.lot | J4: Code configurat | K4: Catégorie Article | L4: Code acquisit | M4: Type ordre | N4: Périodes planif | O4: Polit. planif | P4: Délai sécurité. | Q4: Borne plan.dde. | R4: Borne de planif | S4: Fournisseur | T4: Pol.lotissement | U4: Emplacement | V4: Mét sortie OF | W4: Dél.administra
B5: MODEL | C5: FABRIQUE,NON GERE,LOT | D5: 02 | E5: 1 | F5: 1 | G5: FAB | H5: 0 | I5: 0 | J5: 0 | K5: 0 | L5: 1 | M5: 01 | N5: 1 | O5: 03 | P5: 1 | Q5: 5 | R5: 10 | S5: XX | T5: 12 | U5: ? | V5: 4 | W5: 2
B6: MODELHA | C6: ACHAT SUR INVEST, NON STOCKE | D6: HA | E6: 0 | F6: 2 | G6: ? | H6: 0 | I6: 0 | J6: 0 | K6: 0 | L6: 2 | M6: 50 | N6: 1 | O6: ST | P6: 0 | Q6: 5 | R6: 10 | S6: XX | T6: 0 | U6: ? | V6: 4 | W6: 0
B7: MODEL01 | C7: PF FAB CONFIG,IMMA = STANDARD | D7: 01 | E7: 3 | F7: 1 | G7: FAB | H7: 5 | I7: 5 | J7: 2 | K7: 0 | L7: 1 | M7: 01 | N7: 1 | O7: 02 | P7: 0 | Q7: 5 | R7: 0 | S7: XX | T7: 11 | U7: 14EXP | V7: 4 | W7: 2
B8: MODEL01A | C8: PF FAB NON CONFIG,IMMA | D8: 01 | E8: 1 | F8: 1 | G8: FAB | H8: 5 | I8: 5 | J8: 0 | K8: 0 | L8: 1 | M8: 01 | N8: 1 | O8: 02 | P8: 0 | Q8: 5 | R8: 15 | S8: XX | T8: 11 | U8: 14EXP | V8: 4 | W8: 2
B9: MODEL01C | C9: PF NON CONFIG,NON IMMA=ACCESS | D9: 01 | E9: 1 | F9: 1 | G9: FAB | H9: 0 | I9: 0 | J9: 0 | K9: 0 | L9: 1 | M9: 01 | N9: 1 | O9: 02 | P9: 0 | Q9: 5 | R9: 15 | S9: XX | T9: 11 | U9: 14EXP | V9: 4 | W9: 2
B10: MODEL01F | C10: PF CONFIG,NON IMMA = EV'HORA | D10: 01 | E10: 3 | F10: 1 | G10: FAB | H10: 5 | I10: 5 | J10: 2 | K10: 0 | L10: 1 | M10: 01 | N10: 1 | O10: 02 | P10: 0 | Q10: 5 | R10: 15 | S10: XX | T10: 11 | U10: 14EXP | V10: 4 | W10: 2
B11: MODEL02 | C11: SF FAB = P/C | D11: 02 | E11: 1 | F11: 1 | G11: FAB | H11: 1 | I11: 5 | J11: 0 | K11: 0 | L11: 1 | M11: 01 | N11: 1 | O11: 03 | P11: 1 | Q11: 5 | R11: 15 | S11: XX | T11: 12 | U11: ? | V11: 1 | W11: 2
B12: MODEL02J | C12: SF FAB ASSEMBLAGE OU OPTION | D12: 02 | E12: 1 | F12: 1 | G12: FAB | H12: 0 | I12: 0 | J12: 0 | K12: 0 | L12: 1 | M12: 01 | N12: 1 | O12: 03 | P12: 1 | Q12: 5 | R12: 15 | S12: XX | T12: 12 | U12: ? | V12: 4 | W12: 2
B13: MODEL02P | C13: PIECE PRIMAIRE | D13: PP | E13: 1 | F13: 1 | G13: FAB | H13: 0 | I13: 0 | J13: 0 | K13: 0 | L13: 1 | M13: 01 | N13: 1 | O13: 12 | P13: 1 | Q13: 9 | R13: 10 | S13: XX | T13: 12 | U13: ? | V13: 4 | W13: 6
B14: MODEL03 | C14: MATIERE PREMIERE | D14: 03 | E14: 1 | F14: 2 | G14: ? | H14: 0 | I14: 0 | J14: 0 | K14: 0 | L14: 2 | M14: 30 | N14: 1 | O14: 01 | P14: 0 | Q14: 0 | R14: 0 | S14: XX | T14: 12 | U14: ? | V14: 4 | W14: 5
B15: MODEL04 | C15: PIECE ACHETEE | D15: 04 | E15: 1 | F15: 2 | G15: ? | H15: 0 | I15: 0 | J15: 0 | K15: 0 | L15: 2 | M15: 30 | N15: 12 | O15: 01 | P15: 5 | Q15: 0 | R15: 0 | S15: XX | T15: 12 | U15: 14 | V15: 6 | W15: 5
B16: MODEL04Q | C16: PIECES ACH.= VIS,COLLE,... | D16: 04 | E16: 1 | F16: 2 | G16: ? | H16: 0 | I16: 0 | J16: 0 | K16: 0 | L16: 2 | M16: 30 | N16: 12 | O16: 01 | P16: 0 | Q16: 0 | R16: 0 | S16: XX | T16: 12 | U16: ? | V16: 4 | W16: 5
B17: MODEL05 | C17: SF NON GERE/LOT, SS-TRAITANCE | D17: 05 | E17: 1 | F17: 1 | G17: ? | H17: 0 | I17: 0 | J17: 0 | K17: 0 | L17: 1 | M17: 01 | N17: 12 | O17: 05 | P17: 5 | Q17: 0 | R17: 0 | S17: XX | T17: 12 | U17: 14 | V17: 6 | W17: 0
B18: MODEL06 | C18: KIT EXPEDITION, SAV | D18: 01 | E18: 1 | F18: 1 | G18: FAB | H18: 0 | I18: 0 | J18: 0 | K18: 0 | L18: 1 | M18: 01 | N18: 1 | O18: 02 | P18: 0 | Q18: 5 | R18: 10 | S18: XX | T18: 11 | U18: 14EXP | V18: 4 | W18: 0
B19: MODEL06A | C19: PORTE DE RECHANGE | D19: 01 | E19: 1 | F19: 1 | G19: FAB | H19: 0 | I19: 0 | J19: 0 | K19: 0 | L19: 1 | M19: 01 | N19: 1 | O19: 02 | P19: 0 | Q19: 5 | R19: 10 | S19: XX | T19: 11 | U19: 14EXP | V19: 4 | W19: 2
B20: MODEL09 | C20: FANTOME | D20: 09 | E20: 0 | F20: 1 | G20: FAB | H20: 0 | I20: 0 | J20: 0 | K20: 2 | L20: 1 | M20: 01 | N20: 1 | O20: 03 | P20: 0 | Q20: 5 | R20: 10 | S20: XX | T20: 12 | U20: ? | V20: 4 | W20: 0
B22: Unité | C22: Désignation
B23: PI | C23: Pièce
B24: KG | C24: Kilogramme
B25: MT | C25: Mètre
B26: LT | C26: Litre
B27: M2 | C27: Surface en M²
B29: Matricule O/N
B30: O
B31: N
B33: Responsable article
B34: SALPETIER
B35: MAHUT
B36: LANZETTI
B37: JACOB
B38: BARON
B39: JOSEPH
B42: Type de document | C42: Designation
B43: PL | C43: Plan
B44: GR | C44: Groupement de plans
B46: Code nouveau ou existant
B47: Nouveau
B48: Existant
B50: Catégorie pièce | C50: Type de pièces
B51: Nouveau | C51: Achetée
B52: Existant | C52: Fabriquée
B53: Composants | C53: Assemblage
B54: Opérations | C54: Lot de pièces (FICT)
C55: PP
C56: Temps
C57: Panoplie

Sheet Poste de charge
A1: PPPLGR | B1: PPPLNM | C1: Tps prepa
A2: 10101 | B2: DECL. KITTING COFFRE | C2: 0
A3: 10102 | B3: DECL. PORTE | C3: 0
A4: 10103 | B4: DECL. CAISSE | C4: 0
A5: 10104 | B5: DECL. BETON | C5: 0
A6: 10104F | B6: DECL. BETON IGNIFUGE (FEU) | C6: 0
A7: 10105 | B7: DECL. PORTE/CAISSE | C7: 0
A8: 10106 | B8: DECL. PEINTURE | C8: 0
A9: 10107 | B9: DECL. MONTAGE SERRURE | C9: 0
A10: 10108 | B10: EXPEDITION SOUS-TRAITANCE | C10: 0
A11: 10108C | B11: RECEPTION SOUS-TRAITANCE | C11: 0
A12: 10108L | B12: RECEPTION SOUS-TRAIT LAQUE | C12: 0
A13: 10109 | B13: DECL. FIN DE GAMME | C13: 0
A14: 10109MG | B14: DECL. FIN DE GAMME, dest:MAG | C14: 0
A15: 1010E | B15: DECL. EMBALL STANDARD | C15: 0
A16: 10206 | B16: DECL. PEINTURE | C16: 0
A17: 10500 | B17: SERVICE TECHNIQUE SPECIAL | C17: 0
A18: 14001 | B18: MAIN D'OEUVRE MAGASIN | C18: 0.08
A19: 14100 | B19: TRAVAUX MENUISERIE | C19: 0
A20: 14200 | B20: ASSEMBLAGE CAISSE MARITIME | C20: 0
A21: 14999 | B21: MANUTENTION MAGASIN | C21: 0.05
A22: 18001 | B22: TRAVAUX/GAMMES | C22: 0.15
A23: 18003 | B23: CENTRE D'USINAGE SABRE | C23: 0.5
A24: 18100 | B24: TRAVAUX LABORATOIRE | C24: 0
A25: 19800 | B25: REPRISE MONT SERR STOCK ABC | C25: 0
A26: 19999 | B26: MANUTENTION REMONTAGE SERRURE | C26: 0
A27: 20310 | B27: ASSEMBLAGE 4.5.6. | C27: 0
A28: 20330 | B28: ASSEMBLAGE COFFRE K | C28: 0
A29: 20350 | B29: ASS MILLIUM III et IV (540Là1235L) | C29: 0
A30: 20410 | B30: PORTE/CAISSE COFFRE K,MT,EUROREVO | C30: 0
A31: 20620 | B31: MONTAGE SERRURE COFFRE K | C31: 0
A32: 20999 | B32: MANUTENTION COFFRE K | C32: 0
A33: 21320 | B33: ASSEMBLAGE PRODUITS MTi | C33: 0
A34: 21330 | B34: ASSEMBLAGE PRODUITS COMPLICE | C34: 0
A35: 21340 | B35: ASSEMBLAGE PRODUITS MARCHES | C35: 0
A36: 21355 | B36: ROBOT SOUDURE SDF | C36: 0.05
A37: 21400 | B37: ASS ARMOIRE IGNIFUGES | C37: 0
A38: 21500 | B38: PORTE/CAISSE IGNIFUGES | C38: 0
A39: 21800 | B39: MONTAGE SERRURE IGNIFUGES | C39: 0
A40: 21900 | B40: MONTAGE SERRURE COMPLICES | C40: 0
A41: 21999 | B41: MANUTENTION MARCHE | C41: 0
A42: 22100 | B42: DECOUPE GRILLAGE | C42: 0.16
A43: 22110 | B43: PANNEAUTEUSE FINN POWER | C43: 0.15
A44: 22150 | B44: PLIEUSE FAVRIN CARENA MILLIUM | C44: 0.25
A45: 22220 | B45: CISAILLE EHT | C45: 0.38
A46: 22305 | B46: PRESSE VERSON | C46: 0.4
A47: 22380 | B47: POINC CN FINN POWER SG | C47: 0.15
A48: 22385 | B48: POINC CN SALVAGNINI | C48: 0.15
A49: 22520 | B49: LASER BYSTRONIC | C49: 0.05
A50: 22630 | B50: PLIEUSES CN 170T | C50: 0.4
A51: 22998 | B51: MANUT LIGNE ACCESSOIRES | C51: 0.05
A52: 22999 | B52: MANUTENTION PIECES PRIMAIRES | C52: 0.1
A53: 24050 | B53: PREPARATION SERRURERIE | C53: 0.35
A54: 24306 | B54: ASS POMPES M2B/M3B/MpX | C54: 0.11
A55: 24601 | B55: ASS BLOC SERRURE | C55: 0.11
A56: 24706 | B56: ASS COMBINAISON MONEO/MC4 | C56: 0.25
A57: 24800 | B57: DIVERS SERRURERIE | C57: 0.08
A58: 24920 | B58: CABLAGE ELECTRONIQUE | C58: 0.25
A59: 24999 | B59: MANUTENTION SERRURERIE | C59: 0.1
A60: 26105 | B60: ASS PF OPTEMA OPTURA | C60: 0
A61: 26200 | B61: ASSEMBLAGE ESPACE 50C | C61: 0
A62: 26301 | B62: MONTAGE SERRURE PF OPTEMA OPTURA | C62: 0
A63: 26305 | B63: MONTAGE SERRURE PORTE E50 | C63: 0
A64: 26310 | B64: PEINT MONT SERR PANNEAUX GVX | C64: 0
A65: 26999 | B65: MANUTENTION BANQUE | C65: 0.05
A66: 27010 | B66: TRONCONNEUSE KALTENBACH et AMADA | C66: 0.15
A67: 27200 | B67: ASSEMBLAGE AUTOMATION CLX,ADX | C67: 0
A68: 27205 | B68: ASSEMBLAGE SAC DE DEPOT | C68: 0
A69: 27301 | B69: ASSEMBLAGE COLONNES COMPARTIMENTS | C69: 0.15
A70: 27305 | B70: SOUDURE PORTES COMPARTIMENTS | C70: 0.05
A71: 27320 | B71: SOUDURE LANGUEPIN E30 | C71: 0.11
A72: 27410 | B72: USINAGE PRODUITS BANQUE | C72: 0.25
A73: 27470 | B73: TAILLAGE CLEFS SERCAO varilock | C73: 0.11
A74: 27475 | B74: GRAVURES TOUS TYPES & RIVETAGE | C74: 0.45
A75: 27540 | B75: CHAINE PEINTURE POUDRE | C75: 0.13
A76: 27599 | B76: MANUTENTION COMPARTIMENTS | C76: 0
A77: 27605 | B77: ASSEMBLAGE COMPTS 530 | C77: 0
A78: 27630 | B78: ASSEMBLAGE COMPTS E30 | C78: 0.11
A79: 27999 | B79: MANUTENTION CHAINE DE POUDRAGE | C79: 0.05
A80: 28200 | B80: ASSEMBLAGE CADRE CARENA | C80: 0
A81: 28300 | B81: ASSEMBLAGE PALATRE CARENA | C81: 0
A82: 28400 | B82: ASSEMBLAGE CAISSE CARENA | C82: 0
A83: 28425 | B83: COFFRAGE CAISSE CARENA | C83: 0
A84: 28450 | B84: COFFRAGE PORTE CARENA | C84: 0
A85: 28600 | B85: PORTE / CAISSE CARENA | C85: 0
A86: 28800 | B86: MONTAGE SERRURE CARENA | C86: 0
A87: 28999 | B87: MANUTENTION CARENA | C87: 0
A88: 29540 | B88: CHAINE PEINTURE LAQUE | C88: 0
A89: 29999 | B89: MANUTENTION PEINTURE LAQUE | C89: 0
A90: 30300 | B90: SOUDURE PANNEAUX | C90: 0
A91: 30400 | B91: SOUDURE PANNEAUX GVX | C91: 0
A92: 30910 | B92: BETON VOL | C92: 0
A93: 30920 | B93: CENTRALE PCM IGNIFUGE | C93: 0
A94: 30930 | B94: BETON IGNIFUGES | C94: 0
A95: 30940 | B95: SOUDURE FONDS / CAISSE | C95: 0
A96: 30999 | B96: MANUTENTION COMPOSITES | C96: 0
A97: 31100 | B97: ASSEMBLAGE AUTOMATION | C97: 0
A98: 31999 | B98: MANUTENTION AUTOMATION | C98: 0.1
A99: 40500 | B99: ACCESSOIRES SANS BETON | C99: 0.15
A100: 41300 | B100: ASSEMBLAGE AF ENIGMA | C100: 0
A101: 41800 | B101: MONTAGE SERRURE AF ENIGMA | C101: 0
A102: 41999 | B102: MANUT ASS SOUD AF ENIGMA | C102: 0
A103: 43120 | B103: EMBALLAGE | C103: 0
A104: 43125 | B104: IMMATRICULATION | C104: 0
A105: 43998 | B105: MANUTENTION EMBALLAGE BOB | C105: 0.05
A106: 43999 | B106: MANUTENTION EMBALLAGE | C106: 0
A107: 76000 | B107: ASSEMBLAGE HSDS | C107: 0
A108: 77001 | B108: PREPA PIECES POUR ASSEMBL 4.5.6. | C108: 0
A109: 77002 | B109: PREPA PIECES POUR ASSEMBL COFFRE K | C109: 0
A110: 77003 | B110: PREPA PIECES POUR ASSEMBL CAR/MIL | C110: 0
A111: 99100 | B111: S/T APF | C111: 0
A112: 99150 | B112: FABRICATION | C112: 0
A113: 99400 | B113: ZINGAGE BLANC | C113: 0
A114: 99600 | B114: NICKELAGE | C114: 0
A115: 99800 | B115: DORURE | C115: 0
A116: 99910 | B116: BRUNISSAGE + VERNISSAGE | C116: 0
A117: 99999 | B117: SOUS-TRAIT | C117: 0

Sheet Tôles (hidden)
A1: ID | B1: ART | C1: STATUT | D1: DESIGNAT | E1: Matière | F1: Epaisseur | G1: Largeur | H1: Longueur | I1: Surface (m²) | J1: CVP(M²) | K1: DATECREAT | L1: DTDERNSORT | M1: CONSOAN | N1: TYPECOUT | O1: DIRECTMAT | P1: DIRECTMO | Q1: CVP | R1: CTP | S1: CC | T1: GRPAPPRO | U1: FNR | V1: NOM | W1: PAYS
A2: =CONCATENATE(E2,"_",F2) -> TC_1 | B2: 11110021 | C2: =VLOOKUP(CONCATENATE($B2),[1]ARTRDCL!$A$1:$U$65536,3,FALSE) -> 20 | D2: =VLOOKUP(CONCATENATE($B2),[1]ARTRDCL!$A$1:$U$65536,2,FALSE) -> TOLE TC 1250X2500X10/10 | E2: TC | F2: 1 | G2: 1250 | H2: 2500 | I2: =G2/1000*H2/1000 -> 3.125 | J2: =Q2/I2 -> 6.79104 | K2: 19981106 | L2: 20141222 | M2: 3008.11 | N2: 1 | O2: =VLOOKUP(CONCATENATE($B2),[1]ARTRDCL!$A$1:$U$65536,13,FALSE) -> 21.222 | P2: 0 | Q2: =VLOOKUP(CONCATENATE($B2),[1]ARTRDCL!$A$1:$U$65536,15,FALSE) -> 21.222 | R2: 23.606 | S2: 25.683 | T2: 1CA | U2: 999456 | V2: EISEN STAHL GmbH | W2: ALLEMAGNE
A3: =CONCATENATE(E3,"_",F3) -> TC_1,2 | B3: 11112012 | C3: =VLOOKUP(CONCATENATE($B3),[1]ARTRDCL!$A$1:$U$65536,3,FALSE) -> 20 | D3: =VLOOKUP(CONCATENATE($B3),[1]ARTRDCL!$A$1:$U$65536,2,FALSE) -> TOLE TC 1500X2200X12/10 | E3: TC | F3: 1.2 | G3: 1500 | H3: 2200 | I3: =G3/1000*H3/1000 -> 3.3 | J3: =Q3/I3 -> 8.149393939 | K3: 19981106 | L3: 20141217 | M3: 1356.773 | N3: 1 | O3: =VLOOKUP(CONCATENATE($B3),[1]ARTRDCL!$A$1:$U$65536,13,FALSE) -> 26.893 | P3: 0 | Q3: =VLOOKUP(CONCATENATE($B3),[1]ARTRDCL!$A$1:$U$65536,15,FALSE) -> 26.893 | R3: 29.912 | S3: 32.544 | T3: 1CA | U3: 999456 | V3: EISEN STAHL GmbH | W3: ALLEMAGNE
A4: TC_1,5 | B4: 11115015 | C4: =VLOOKUP(CONCATENATE($B4),[1]ARTRDCL!$A$1:$U$65536,3,FALSE) -> 20 | D4: =VLOOKUP(CONCATENATE($B4),[1]ARTRDCL!$A$1:$U$65536,2,FALSE) -> TOLE TC 1250X2500X15/10 | E4: TC | F4: 1.5 | G4: 1250 | H4: 2500 | I4: 3.125 | J4: 9.216 | K4: 19981106 | L4: 20141222 | M4: 4871.622 | N4: 1 | O4: =VLOOKUP(CONCATENATE($B4),[1]ARTRDCL!$A$1:$U$65536,13,FALSE) -> 28.8 | P4: 0 | Q4: =VLOOKUP(CONCATENATE($B4),[1]ARTRDCL!$A$1:$U$65536,15,FALSE) -> 28.8 | R4: 31.425 | S4: 34.19 | T4: 1CA | U4: 999456 | V4: EISEN STAHL GmbH | W4: ALLEMAGNE
A5: TC_2 | B5: 11120025 | C5: =VLOOKUP(CONCATENATE($B5),[1]ARTRDCL!$A$1:$U$65536,3,FALSE) -> 20 | D5: =VLOOKUP(CONCATENATE($B5),[1]ARTRDCL!$A$1:$U$65536,2,FALSE) -> TOLE TC 1250X2500X20/10 | E5: TC | F5: 2 | G5: 1250 | H5: 2500 | I5: 3.125 | J5: 11.78144 | K5: 19981106 | L5: 20141222 | M5: 3691.836 | N5: 1 | O5: =VLOOKUP(CONCATENATE($B5),[1]ARTRDCL!$A$1:$U$65536,13,FALSE) -> 36.817 | P5: 0 | Q5: =VLOOKUP(CONCATENATE($B5),[1]ARTRDCL!$A$1:$U$65536,15,FALSE) -> 36.817 | R5: 41.013 | S5: 44.622 | T5: 1CA | U5: 999456 | V5: EISEN STAHL GmbH | W5: ALLEMAGNE
A6: =CONCATENATE(E6,"_",F6) -> TC_2,5 | B6: 11125024 | C6: =VLOOKUP(CONCATENATE($B6),[1]ARTRDCL!$A$1:$U$65536,3,FALSE) -> 20 | D6: =VLOOKUP(CONCATENATE($B6),[1]ARTRDCL!$A$1:$U$65536,2,FALSE) -> TOLE TC 1250X2200X25/10 | E6: TC | F6: 2.5 | G6: 1250 | H6: 2200 | I6: 2.75 | J6: 14.65636364 | K6: 20070622 | L6: 20141222 | M6: 1015.584 | N6: 1 | O6: =VLOOKUP(CONCATENATE($B6),[1]ARTRDCL!$A$1:$U$65536,13,FALSE) -> 40.305 | P6: 0 | Q6: =VLOOKUP(CONCATENATE($B6),[1]ARTRDCL!$A$1:$U$65536,15,FALSE) -> 40.305 | R6: 44.872 | S6: 48.821 | T6: 1CA | U6: 999456 | V6: EISEN STAHL GmbH | W6: ALLEMAGNE
A7: =CONCATENATE(E7,"_",F7) -> TC_3 | B7: 11130051 | C7: =VLOOKUP(CONCATENATE($B7),[1]ARTRDCL!$A$1:$U$65536,3,FALSE) -> 20 | D7: =VLOOKUP(CONCATENATE($B7),[1]ARTRDCL!$A$1:$U$65536,2,FALSE) -> TOLE TC 1250X2500X30/10 | E7: TC | F7: 3 | G7: 1250 | H7: 2500 | I7: 3.125 | J7: 17.13312 | K7: 19981106 | L7: 20141222 | M7: 7132.334 | N7: 1 | O7: =VLOOKUP(CONCATENATE($B7),[1]ARTRDCL!$A$1:$U$65536,13,FALSE) -> 53.541 | P7: 0 | Q7: =VLOOKUP(CONCATENATE($B7),[1]ARTRDCL!$A$1:$U$65536,15,FALSE) -> 53.541 | R7: 59.481 | S7: 64.715 | T7: 1CA | U7: 999456 | V7: EISEN STAHL GmbH | W7: ALLEMAGNE
A8: _ | B8: 11130053 | C8: =VLOOKUP(CONCATENATE($B8),[1]ARTRDCL!$A$1:$U$65536,3,FALSE) -> 20 | D8: =VLOOKUP(CONCATENATE($B8),[1]ARTRDCL!$A$1:$U$65536,2,FALSE) -> TOLE 3MM HB500 2000 X 1000 | I8: 0 | K8: 20110214 | L8: 20121219 | M8: 0 | N8: 1 | O8: =VLOOKUP(CONCATENATE($B8),[1]ARTRDCL!$A$1:$U$65536,13,FALSE) -> 115.303 | P8: 0 | Q8: =VLOOKUP(CONCATENATE($B8),[1]ARTRDCL!$A$1:$U$65536,15,FALSE) -> 115.303 | R8: 152.961 | S8: 166.422 | T8: 1CD | U8: 999456 | V8: EISEN STAHL GmbH | W8: ALLEMAGNE
A9: _4 | B9: 11340010 | C9: =VLOOKUP(CONCATENATE($B9),[1]ARTRDCL!$A$1:$U$65536,3,FALSE) -> 20 | D9: =VLOOKUP(CONCATENATE($B9),[1]ARTRDCL!$A$1:$U$65536,2,FALSE) -> 1250X2500X4M/M 203246 | F9: 4 | G9: 1250 | H9: 2500 | I9: 3.125 | J9: 23.07488 | K9: 19981106 | L9: 20141222 | M9: 2045.709 | N9: 1 | O9: =VLOOKUP(CONCATENATE($B9),[1]ARTRDCL!$A$1:$U$65536,13,FALSE) -> 72.109 | P9: 0 | Q9: =VLOOKUP(CONCATENATE($B9),[1]ARTRDCL!$A$1:$U$65536,15,FALSE) -> 72.109 | R9: 80.109 | S9: 87.159 | T9: 1CA | U9: 999456 | V9: EISEN STAHL GmbH | W9: ALLEMAGNE
A10: _4 | B10: 11340015 | C10: =VLOOKUP(CONCATENATE($B10),[1]ARTRDCL!$A$1:$U$65536,3,FALSE) -> 20 | D10: =VLOOKUP(CONCATENATE($B10),[1]ARTRDCL!$A$1:$U$65536,2,FALSE) -> 1500X3000X4M/M 203250 | F10: 4 | G10: 1500 | H10: 3000 | I10: 4.5 | J10: 22.75422222 | K10: 19981106 | L10: 20141219 | M10: 432.207 | N10: 1 | O10: =VLOOKUP(CONCATENATE($B10),[1]ARTRDCL!$A$1:$U$65536,13,FALSE) -> 102.394 | P10: 0 | Q10: =VLOOKUP(CONCATENATE($B10),[1]ARTRDCL!$A$1:$U$65536,15,FALSE) -> 102.394 | R10: 113.756 | S10: 123.767 | T10: 1CA | U10: 999456 | V10: EISEN STAHL GmbH | W10: ALLEMAGNE
A11: _ | B11: 11350022 | C11: =VLOOKUP(CONCATENATE($B11),[1]ARTRDCL!$A$1:$U$65536,3,FALSE) -> 20 | D11: =VLOOKUP(CONCATENATE($B11),[1]ARTRDCL!$A$1:$U$65536,2,FALSE) -> TOLE TC 2100x1000x50/10 | I11: 0 | K11: 20011120 | L11: 20141219 | M11: 334.599 | N11: 1 | O11: =VLOOKUP(CONCATENATE($B11),[1]ARTRDCL!$A$1:$U$65536,13,FALSE) -> 61.064 | P11: 0 | Q11: =VLOOKUP(CONCATENATE($B11),[1]ARTRDCL!$A$1:$U$65536,15,FALSE) -> 61.064 | R11: 67.911 | S11: 73.887 | T11: 1CA | U11: 999456 | V11: EISEN STAHL GmbH | W11: ALLEMAGNE
A12: _ | B12: 11360010 | C12: =VLOOKUP(CONCATENATE($B12),[1]ARTRDCL!$A$1:$U$65536,3,FALSE) -> 20 | D12: =VLOOKUP(CONCATENATE($B12),[1]ARTRDCL!$A$1:$U$65536,2,FALSE) -> 1250X2500X6M/M 203288 | G12: 1250 | H12: 2500 | I12: 3.125 | J12: 36.58208 | K12: 19981106 | L12: 20141217 | M12: 68.9 | N12: 1 | O12: =VLOOKUP(CONCATENATE($B12),[1]ARTRDCL!$A$1:$U$65536,13,FALSE) -> 114.319 | P12: 0 | Q12: =VLOOKUP(CONCATENATE($B12),[1]ARTRDCL!$A$1:$U$65536,15,FALSE) -> 114.319 | R12: 127.909 | S12: 139.165 | T12: 1CA | U12: 999456 | V12: EISEN STAHL GmbH | W12: ALLEMAGNE
A13: _ | B13: 11380001 | C13: =VLOOKUP(CONCATENATE($B13),[1]ARTRDCL!$A$1:$U$65536,3,FALSE) -> 20 | D13: =VLOOKUP(CONCATENATE($B13),[1]ARTRDCL!$A$1:$U$65536,2,FALSE) -> 1250X2500X8M/M 203307 | G13: 1250 | H13: 2500 | I13: 3.125 | J13: 51.0272 | K13: 19981106 | L13: 20141222 | M13: 70.888 | N13: 1 | O13: =VLOOKUP(CONCATENATE($B13),[1]ARTRDCL!$A$1:$U$65536,13,FALSE) -> 159.46 | P13: 0 | Q13: =VLOOKUP(CONCATENATE($B13),[1]ARTRDCL!$A$1:$U$65536,15,FALSE) -> 159.46 | R13: 180.873 | S13: 196.79 | T13: 1CA | U13: 999456 | V13: EISEN STAHL GmbH | W13: ALLEMAGNE
A14: _ | B14: 11380011 | C14: =VLOOKUP(CONCATENATE($B14),[1]ARTRDCL!$A$1:$U$65536,3,FALSE) -> 20 | D14: =VLOOKUP(CONCATENATE($B14),[1]ARTRDCL!$A$1:$U$65536,2,FALSE) -> BANDE TOLE 286X2500X8 | I14: 0 | K14: 19981106 | L14: 20141223 | M14: 73303.2 | N14: 1 | O14: =VLOOKUP(CONCATENATE($B14),[1]ARTRDCL!$A$1:$U$65536,13,FALSE) -> 0.371 | P14: 0 | Q14: =VLOOKUP(CONCATENATE($B14),[1]ARTRDCL!$A$1:$U$65536,15,FALSE) -> 0.371 | R14: 0.413 | S14: 0.449 | T14: 1CA | U14: 017708 | V14: AMSP FRANCE | W14: FRANCE
A15: _ | B15: 11399005 | C15: =VLOOKUP(CONCATENATE($B15),[1]ARTRDCL!$A$1:$U$65536,3,FALSE) -> 20 | D15: =VLOOKUP(CONCATENATE($B15),[1]ARTRDCL!$A$1:$U$65536,2,FALSE) -> 1000X2000X10M/M | I15: 0 | K15: 19981106 | L15: 20141217 | M15: 5.631 | N15: 1 | O15: =VLOOKUP(CONCATENATE($B15),[1]ARTRDCL!$A$1:$U$65536,13,FALSE) -> 164.525 | P15: 0 | Q15: =VLOOKUP(CONCATENATE($B15),[1]ARTRDCL!$A$1:$U$65536,15,FALSE) -> 164.525 | R15: 200.643 | S15: 218.3 | T15: 1CA | U15: 999456 | V15: EISEN STAHL GmbH | W15: ALLEMAGNE
A16: Inox_1,5 | B16: 11610005 | C16: =VLOOKUP(CONCATENATE($B16),[1]ARTRDCL!$A$1:$U$65536,3,FALSE) -> 20 | D16: =VLOOKUP(CONCATENATE($B16),[1]ARTRDCL!$A$1:$U$65536,2,FALSE) -> INOX 1,5 1250X2500 430 | E16: Inox | F16: 1.5 | G16: 1250 | H16: 2500 | I16: 3.125 | J16: 31.53088 | K16: 19981106 | L16: 20141222 | M16: 116 | N16: 1 | O16: =VLOOKUP(CONCATENATE($B16),[1]ARTRDCL!$A$1:$U$65536,13,FALSE) -> 98.534 | P16: 0 | Q16: =VLOOKUP(CONCATENATE($B16),[1]ARTRDCL!$A$1:$U$65536,15,FALSE) -> 98.534 | R16: 157.043 | S16: 170.863 | T16: 1CE | U16: 016708 | V16: ARCELORMITTAL DISTRIBUTION SOLUTIONS | W16: FRANCE
A17: Inox 304L_2 | B17: 11620007 | C17: =VLOOKUP(CONCATENATE($B17),[1]ARTRDCL!$A$1:$U$65536,3,FALSE) -> 20 | D17: =VLOOKUP(CONCATENATE($B17),[1]ARTRDCL!$A$1:$U$65536,2,FALSE) -> INOX 2MM 304L GRAIN 80 | E17: Inox 304L | F17: 2 | I17: 0 | K17: 19981106 | L17: 20141127 | M17: 3.028 | N17: 1 | O17: =VLOOKUP(CONCATENATE($B17),[1]ARTRDCL!$A$1:$U$65536,13,FALSE) -> 315.989 | P17: 0 | Q17: =VLOOKUP(CONCATENATE($B17),[1]ARTRDCL!$A$1:$U$65536,15,FALSE) -> 315.989 | R17: 397.597 | S17: 432.586 | T17: 1CE | U17: 016708 | V17: ARCELORMITTAL DISTRIBUTION SOLUTIONS | W17: FRANCE
A18: Inox 304L_3 | B18: 11620009 | C18: =VLOOKUP(CONCATENATE($B18),[1]ARTRDCL!$A$1:$U$65536,3,FALSE) -> 20 | D18: =VLOOKUP(CONCATENATE($B18),[1]ARTRDCL!$A$1:$U$65536,2,FALSE) -> INOX304L 1250X2500X30/10 GR 80 | E18: Inox 304L | F18: 3 | G18: 1250 | H18: 2500 | I18: 3.125 | J18: 151.67456 | K18: 19981106 | L18: 20140930 | M18: 7.53 | N18: 1 | O18: =VLOOKUP(CONCATENATE($B18),[1]ARTRDCL!$A$1:$U$65536,13,FALSE) -> 473.983 | P18: 0 | Q18: =VLOOKUP(CONCATENATE($B18),[1]ARTRDCL!$A$1:$U$65536,15,FALSE) -> 473.983 | R18: 596.394 | S18: 648.877 | T18: 1CE | U18: 016708 | V18: ARCELORMITTAL DISTRIBUTION SOLUTIONS | W18: FRANCE
A19: Inox 304L_1,2 | B19: 11630003 | C19: =VLOOKUP(CONCATENATE($B19),[1]ARTRDCL!$A$1:$U$65536,3,FALSE) -> 20 | D19: =VLOOKUP(CONCATENATE($B19),[1]ARTRDCL!$A$1:$U$65536,2,FALSE) -> INOX304PD1,22X2,5X12/10 | E19: Inox 304L | F19: 1.2 | G19: 1220 | H19: 2500 | I19: 3.05 | J19: 65.16032787 | K19: 19981106 | L19: 20140828 | M19: 1.115 | N19: 1 | O19: =VLOOKUP(CONCATENATE($B19),[1]ARTRDCL!$A$1:$U$65536,13,FALSE) -> 198.739 | P19: 0 | Q19: =VLOOKUP(CONCATENATE($B19),[1]ARTRDCL!$A$1:$U$65536,15,FALSE) -> 198.739 | R19: 250.065 | S19: 272.071 | T19: 1CE | U19: 016708 | V19: ARCELORMITTAL DISTRIBUTION SOLUTIONS | W19: FRANCE
A20: Inox 304L_1 | B20: 11630009 | C20: =VLOOKUP(CONCATENATE($B20),[1]ARTRDCL!$A$1:$U$65536,3,FALSE) -> 20 | D20: =VLOOKUP(CONCATENATE($B20),[1]ARTRDCL!$A$1:$U$65536,2,FALSE) -> INOX 304 BROSSE(1250X2500X1) | E20: Inox 304L | F20: 1 | G20: 1250 | H20: 2500 | I20: 3.125 | J20: 37.33248 | K20: 19981106 | L20: 20141218 | M20: 127.929 | N20: 1 | O20: =VLOOKUP(CONCATENATE($B20),[1]ARTRDCL!$A$1:$U$65536,13,FALSE) -> 116.664 | P20: 0 | Q20: =VLOOKUP(CONCATENATE($B20),[1]ARTRDCL!$A$1:$U$65536,15,FALSE) -> 116.664 | R20: 198.798 | S20: 216.292 | T20: 1CE | U20: 016708 | V20: ARCELORMITTAL DISTRIBUTION SOLUTIONS | W20: FRANCE
A21: Inox_4 | B21: 11640000 | C21: =VLOOKUP(CONCATENATE($B21),[1]ARTRDCL!$A$1:$U$65536,3,FALSE) -> 20 | D21: =VLOOKUP(CONCATENATE($B21),[1]ARTRDCL!$A$1:$U$65536,2,FALSE) -> TOLE INOX 1250X2500X4M/M | E21: Inox | F21: 4 | G21: 1250 | H21: 2500 | I21: 3.125 | J21: 81.30592 | K21: 20010201 | L21: 20141222 | M21: 492.644 | N21: 1 | O21: =VLOOKUP(CONCATENATE($B21),[1]ARTRDCL!$A$1:$U$65536,13,FALSE) -> 254.081 | P21: 0 | Q21: =VLOOKUP(CONCATENATE($B21),[1]ARTRDCL!$A$1:$U$65536,15,FALSE) -> 254.081 | R21: 319.7 | S21: 347.834 | T21: 1CE | U21: 999456 | V21: EISEN STAHL GmbH | W21: ALLEMAGNE
A22: _ | B22: 12111047 | C22: =VLOOKUP(CONCATENATE($B22),[1]ARTRDCL!$A$1:$U$65536,3,FALSE) -> 20 | D22: =VLOOKUP(CONCATENATE($B22),[1]ARTRDCL!$A$1:$U$65536,2,FALSE) -> ETIRE 20X10 | I22: 0 | K22: 20070507 | L22: 20141219 | M22: 9.68 | N22: 1 | O22: =VLOOKUP(CONCATENATE($B22),[1]ARTRDCL!$A$1:$U$65536,13,FALSE) -> 5.534 | P22: 0 | Q22: =VLOOKUP(CONCATENATE($B22),[1]ARTRDCL!$A$1:$U$65536,15,FALSE) -> 5.534 | R22: 2.733 | S22: 2.974 | T22: 1CA | U22: 006420 | V22: SMH | W22: FRANCE
A23: _ | B23: 12121102 | C23: =VLOOKUP(CONCATENATE($B23),[1]ARTRDCL!$A$1:$U$65536,3,FALSE) -> 20 | D23: =VLOOKUP(CONCATENATE($B23),[1]ARTRDCL!$A$1:$U$65536,2,FALSE) -> ETIRE PLAT 32X20 204023 | I23: 0 | K23: 19981106 | L23: 20141223 | M23: 216 | N23: 1 | O23: =VLOOKUP(CONCATENATE($B23),[1]ARTRDCL!$A$1:$U$65536,13,FALSE) -> 12.503 | P23: 0 | Q23: =VLOOKUP(CONCATENATE($B23),[1]ARTRDCL!$A$1:$U$65536,15,FALSE) -> 12.503 | R23: 15.732 | S23: 17.116 | T23: 1CA | U23: 006420 | V23: SMH | W23: FRANCE
A24: _ | B24: 12121165 | C24: =VLOOKUP(CONCATENATE($B24),[1]ARTRDCL!$A$1:$U$65536,3,FALSE) -> 20 | D24: =VLOOKUP(CONCATENATE($B24),[1]ARTRDCL!$A$1:$U$65536,2,FALSE) -> ETIRE PLAT 50X3 204069 | I24: 0 | K24: 19981106 | L24: 20141223 | M24: 624 | N24: 1 | O24: =VLOOKUP(CONCATENATE($B24),[1]ARTRDCL!$A$1:$U$65536,13,FALSE) -> 3.7 | P24: 0 | Q24: =VLOOKUP(CONCATENATE($B24),[1]ARTRDCL!$A$1:$U$65536,15,FALSE) -> 3.7 | R24: 4.656 | S24: 5.066 | T24: 1CA | U24: 006420 | V24: SMH | W24: FRANCE
A25: _ | B25: 12121175 | C25: =VLOOKUP(CONCATENATE($B25),[1]ARTRDCL!$A$1:$U$65536,3,FALSE) -> 20 | D25: =VLOOKUP(CONCATENATE($B25),[1]ARTRDCL!$A$1:$U$65536,2,FALSE) -> ETIRE PLAT 50X6 204071 | I25: 0 | K25: 19981106 | L25: 20141223 | M25: 991 | N25: 1 | O25: =VLOOKUP(CONCATENATE($B25),[1]ARTRDCL!$A$1:$U$65536,13,FALSE) -> 6.213 | P25: 0 | Q25: =VLOOKUP(CONCATENATE($B25),[1]ARTRDCL!$A$1:$U$65536,15,FALSE) -> 6.213 | R25: 7.818 | S25: 8.506 | T25: 1CA | U25: 006420 | V25: SMH | W25: FRANCE
A26: _ | B26: 12121265 | C26: =VLOOKUP(CONCATENATE($B26),[1]ARTRDCL!$A$1:$U$65536,3,FALSE) -> 20 | D26: =VLOOKUP(CONCATENATE($B26),[1]ARTRDCL!$A$1:$U$65536,2,FALSE) -> ETIRE PLAT 40x6 | I26: 0 | K26: 20081107 | L26: 20140403 | M26: 58.74 | N26: 1 | O26: =VLOOKUP(CONCATENATE($B26),[1]ARTRDCL!$A$1:$U$65536,13,FALSE) -> 4.373 | P26: 0 | Q26: =VLOOKUP(CONCATENATE($B26),[1]ARTRDCL!$A$1:$U$65536,15,FALSE) -> 4.373 | R26: 5.503 | S26: 5.987 | T26: 1CA | U26: 006420 | V26: SMH | W26: FRANCE
A27: _ | B27: 12121301 | C27: =VLOOKUP(CONCATENATE($B27),[1]ARTRDCL!$A$1:$U$65536,3,FALSE) -> 20 | D27: =VLOOKUP(CONCATENATE($B27),[1]ARTRDCL!$A$1:$U$65536,2,FALSE) -> ETIRE PLAT 20 X 8 | I27: 0 | K27: 20111026 | L27: 20141203 | M27: 25.2 | N27: 1 | O27: =VLOOKUP(CONCATENATE($B27),[1]ARTRDCL!$A$1:$U$65536,13,FALSE) -> 3.142 | P27: 0 | Q27: =VLOOKUP(CONCATENATE($B27),[1]ARTRDCL!$A$1:$U$65536,15,FALSE) -> 3.142 | R27: 0 | S27: 0 | T27: 1CE
A28: ALU_1,5 | B28: 14110061 | C28: =VLOOKUP(CONCATENATE($B28),[1]ARTRDCL!$A$1:$U$65536,3,FALSE) -> 20 | D28: =VLOOKUP(CONCATENATE($B28),[1]ARTRDCL!$A$1:$U$65536,2,FALSE) -> ALUMINIUM 15/10 1250x2500-5754 | E28: ALU | F28: 1.5 | G28: 1250 | H28: 2500 | I28: 3.125 | J28: 18.53504 | K28: 20081106 | L28: 20141204 | M28: 30.006 | N28: 1 | O28: =VLOOKUP(CONCATENATE($B28),[1]ARTRDCL!$A$1:$U$65536,13,FALSE) -> 57.922 | P28: 0 | Q28: =VLOOKUP(CONCATENATE($B28),[1]ARTRDCL!$A$1:$U$65536,15,FALSE) -> 57.922 | R28: 72.881 | S28: 79.295 | T28: 1BA | U28: 016708 | V28: ARCELORMITTAL DISTRIBUTION SOLUTIONS | W28: FRANCE
A29: EZ_2 | B29: 14540005 | C29: =VLOOKUP(CONCATENATE($B29),[1]ARTRDCL!$A$1:$U$65536,3,FALSE) -> 20 | D29: =VLOOKUP(CONCATENATE($B29),[1]ARTRDCL!$A$1:$U$65536,2,FALSE) -> TOLE EZ 1250X2500X20/10 | E29: EZ | F29: 2 | G29: 1250 | H29: 2500 | I29: 3.125 | J29: 15.94592 | K29: 19981106 | L29: 20141219 | M29: 748.699 | N29: 1 | O29: =VLOOKUP(CONCATENATE($B29),[1]ARTRDCL!$A$1:$U$65536,13,FALSE) -> 49.831 | P29: 0 | Q29: =VLOOKUP(CONCATENATE($B29),[1]ARTRDCL!$A$1:$U$65536,15,FALSE) -> 49.831 | R29: 50.677 | S29: 55.137 | T29: 1CA | U29: 999456 | V29: EISEN STAHL GmbH | W29: ALLEMAGNE
A30: EZ_0,6 | B30: 14540009 | C30: =VLOOKUP(CONCATENATE($B30),[1]ARTRDCL!$A$1:$U$65536,3,FALSE) -> 20 | D30: =VLOOKUP(CONCATENATE($B30),[1]ARTRDCL!$A$1:$U$65536,2,FALSE) -> TOLE EZ 1000X3000X6/10 | E30: EZ | F30: 0.6 | G30: 1000 | H30: 3000 | I30: 3 | J30: 5.267666667 | K30: 20080923 | L30: 20141222 | M30: 244.166 | N30: 1 | O30: =VLOOKUP(CONCATENATE($B30),[1]ARTRDCL!$A$1:$U$65536,13,FALSE) -> 15.803 | P30: 0 | Q30: =VLOOKUP(CONCATENATE($B30),[1]ARTRDCL!$A$1:$U$65536,15,FALSE) -> 15.803 | R30: 16.507 | S30: 17.96 | T30: 1CA | U30: 999456 | V30: EISEN STAHL GmbH | W30: ALLEMAGNE
A31: EZ_1,5 | B31: 14540015 | C31: =VLOOKUP(CONCATENATE($B31),[1]ARTRDCL!$A$1:$U$65536,3,FALSE) -> 20 | D31: =VLOOKUP(CONCATENATE($B31),[1]ARTRDCL!$A$1:$U$65536,2,FALSE) -> TOLE EZ 1500X3000X15/10 | E31: EZ | F31: 1.5 | G31: 1500 | H31: 3000 | I31: 4.5 | J31: 12.11422222 | K31: 19981106 | L31: 20141216 | M31: 702.84 | N31: 1 | O31: =VLOOKUP(CONCATENATE($B31),[1]ARTRDCL!$A$1:$U$65536,13,FALSE) -> 54.514 | P31: 0 | Q31: =VLOOKUP(CONCATENATE($B31),[1]ARTRDCL!$A$1:$U$65536,15,FALSE) -> 54.514 | R31: 55.925 | S31: 60.846 | T31: 1CA | U31: 999456 | V31: EISEN STAHL GmbH | W31: ALLEMAGNE
A32: EZ_2,5 | B32: 14540040 | C32: =VLOOKUP(CONCATENATE($B32),[1]ARTRDCL!$A$1:$U$65536,3,FALSE) -> 20 | D32: =VLOOKUP(CONCATENATE($B32),[1]ARTRDCL!$A$1:$U$65536,2,FALSE) -> TOLE EZ 1250X2500X25/10 | E32: EZ | F32: 2.5 | G32: 1250 | H32: 2500 | I32: 3.125 | J32: 19.88928 | K32: 20110718 | L32: 20141216 | M32: 34.681 | N32: 1 | O32: =VLOOKUP(CONCATENATE($B32),[1]ARTRDCL!$A$1:$U$65536,13,FALSE) -> 62.154 | P32: 0 | Q32: =VLOOKUP(CONCATENATE($B32),[1]ARTRDCL!$A$1:$U$65536,15,FALSE) -> 62.154 | R32: 63.662 | S32: 69.264 | T32: 1CA | U32: 999456 | V32: EISEN STAHL GmbH | W32: ALLEMAGNE
A33: EZ_1 | B33: 14540043 | C33: =VLOOKUP(CONCATENATE($B33),[1]ARTRDCL!$A$1:$U$65536,3,FALSE) -> 20 | D33: =VLOOKUP(CONCATENATE($B33),[1]ARTRDCL!$A$1:$U$65536,2,FALSE) -> TOLE EZ 1250X2500X10/10 | E33: EZ | F33: 1 | G33: 1250 | H33: 2500 | I33: 3.125 | J33: 8.01984 | K33: 19981106 | L33: 20141222 | M33: 151.158 | N33: 1 | O33: =VLOOKUP(CONCATENATE($B33),[1]ARTRDCL!$A$1:$U$65536,13,FALSE) -> 25.062 | P33: 0 | Q33: =VLOOKUP(CONCATENATE($B33),[1]ARTRDCL!$A$1:$U$65536,15,FALSE) -> 25.062 | R33: 25.671 | S33: 27.93 | T33: 1CA | U33: 999456 | V33: EISEN STAHL GmbH | W33: ALLEMAGNE
A34: EZ_3 | B34: 14540045 | C34: =VLOOKUP(CONCATENATE($B34),[1]ARTRDCL!$A$1:$U$65536,3,FALSE) -> 20 | D34: =VLOOKUP(CONCATENATE($B34),[1]ARTRDCL!$A$1:$U$65536,2,FALSE) -> TOLE EZ 1250X2500X30/10 | E34: EZ | F34: 3 | G34: 1250 | H34: 2500 | I34: 3.125 | J34: 23.8064 | K34: 19981106 | L34: 20141222 | M34: 630.788 | N34: 1 | O34: =VLOOKUP(CONCATENATE($B34),[1]ARTRDCL!$A$1:$U$65536,13,FALSE) -> 74.395 | P34: 0 | Q34: =VLOOKUP(CONCATENATE($B34),[1]ARTRDCL!$A$1:$U$65536,15,FALSE) -> 74.395 | R34: 76.016 | S34: 82.705 | T34: 1CA | U34: 999456 | V34: EISEN STAHL GmbH | W34: ALLEMAGNE
A35: Galva_1 | B35: 14540055 | C35: =VLOOKUP(CONCATENATE($B35),[1]ARTRDCL!$A$1:$U$65536,3,FALSE) -> 20 | D35: =VLOOKUP(CONCATENATE($B35),[1]ARTRDCL!$A$1:$U$65536,2,FALSE) -> TOLE GALVA 1500X2200X10/10 | E35: Galva | F35: 1 | G35: 1500 | H35: 2200 | I35: 3.3 | J35: 8.526363636 | K35: 20100303 | L35: 20141218 | M35: 1936.587 | N35: 1 | O35: =VLOOKUP(CONCATENATE($B35),[1]ARTRDCL!$A$1:$U$65536,13,FALSE) -> 28.137 | P35: 0 | Q35: =VLOOKUP(CONCATENATE($B35),[1]ARTRDCL!$A$1:$U$65536,15,FALSE) -> 28.137 | R35: 32.717 | S35: 35.596 | T35: 1CA | U35: 999456 | V35: EISEN STAHL GmbH | W35: ALLEMAGNE
A36: Galva_1,5 | B36: 14540060 | C36: =VLOOKUP(CONCATENATE($B36),[1]ARTRDCL!$A$1:$U$65536,3,FALSE) -> 20 | D36: =VLOOKUP(CONCATENATE($B36),[1]ARTRDCL!$A$1:$U$65536,2,FALSE) -> TOLE GALVA 1500X2200X15/10 | E36: Galva | F36: 1.5 | G36: 1500 | H36: 2200 | I36: 3.3 | J36: 12.78969697 | K36: 20100303 | L36: 20141218 | M36: 884.504 | N36: 1 | O36: =VLOOKUP(CONCATENATE($B36),[1]ARTRDCL!$A$1:$U$65536,13,FALSE) -> 42.206 | P36: 0 | Q36: =VLOOKUP(CONCATENATE($B36),[1]ARTRDCL!$A$1:$U$65536,15,FALSE) -> 42.206 | R36: 49.075 | S36: 53.394 | T36: 1CA | U36: 999456 | V36: EISEN STAHL GmbH | W36: ALLEMAGNE
A37: MG_1,5 | B37: 15615001 | C37: =VLOOKUP(CONCATENATE($B37),[1]ARTRDCL!$A$1:$U$65536,3,FALSE) -> 20 | D37: =VLOOKUP(CONCATENATE($B37),[1]ARTRDCL!$A$1:$U$65536,2,FALSE) -> 1000X2000X1,5 MA 203423 | E37: MG | F37: 1.5 | G37: 1000 | H37: 2000 | I37: 2 | J37: 87.656 | K37: 19981106 | L37: 20141222 | M37: 180.417 | N37: 1 | O37: =VLOOKUP(CONCATENATE($B37),[1]ARTRDCL!$A$1:$U$65536,13,FALSE) -> 175.312 | P37: 0 | Q37: =VLOOKUP(CONCATENATE($B37),[1]ARTRDCL!$A$1:$U$65536,15,FALSE) -> 175.312 | R37: 223.068 | S37: 242.698 | T37: 1CD | U37: 002508 | V37: THYSSEN | W37: FRANCE
A38: MG_3 | B38: 15630001 | C38: =VLOOKUP(CONCATENATE($B38),[1]ARTRDCL!$A$1:$U$65536,3,FALSE) -> 20 | D38: =VLOOKUP(CONCATENATE($B38),[1]ARTRDCL!$A$1:$U$65536,2,FALSE) -> 1000X2000X3 MANG 203430 | E38: MG | F38: 3 | G38: 1000 | H38: 2000 | I38: 2 | J38: 105.525 | K38: 19981106 | L38: 20141023 | M38: 706 | N38: 1 | O38: =VLOOKUP(CONCATENATE($B38),[1]ARTRDCL!$A$1:$U$65536,13,FALSE) -> 211.05 | P38: 0 | Q38: =VLOOKUP(CONCATENATE($B38),[1]ARTRDCL!$A$1:$U$65536,15,FALSE) -> 211.05 | R38: 265.556 | S38: 288.925 | T38: 1CD | U38: 999456 | V38: EISEN STAHL GmbH | W38: ALLEMAGNE

Sheet Paramètres (hidden)
A1: Référence de simulation
A2: Coût CH | B2: =BOM!$M$5 -> 39.3608
A3: Format de Tôle 11115015 (mm)
A4: Surface de la tôle 11115015 (m²)
A5: Tarif CVP tôle
A6: Tarif M3 Tôle
A7: Format de Tôle cisaillée | B7: 460 | C7: 980 | D7: 1.5
A8: Surface de la tôle 11115015 (m²) | B8: =B7/1000*C7/1000 -> 0.4508
A9: Taux chute | B9: 1.18
A10: List de réponse | B10: Oui
B11: Non
A13: Cout cisaillage | B13: 5
